Ref No,Fund Type,Dept,Cost Centre Description    ,Description    ,Creditor Name    ,GL Code Net Amount,Payment date        
2,Revenue,CAHD,Bed Purchasing - South,Permanent Residential,.,1589.2, 10-May-2016
3,Revenue,CAHD,Bed Purchasing - South,Permanent Nursing,.,985.3, 10-May-2016
4,Revenue,CAHD,Bed Purchasing - South,Permanent Nursing,.,24472.25, 10-May-2016
5,Revenue,CAHD,18-25 Year Olds,Permanent Residential,1 St Georges House,13536.44, 10-May-2016
6,Revenue,CAHD,Home Care - Elderly - North,Supported Living,3 Trees Community Support Limited,639.8, 10-May-2016
7,Revenue,CAHD,Home Care - Elderly - South,Day Care / Social Activities,3 Trees Community Support Ltd,94.92, 05-May-2016
8,Revenue,CAHD,Home Care - Elderly - North,Day Care / Social Activities,3 Trees Community Support Ltd,3290.56, 05-May-2016
9,Revenue,CAHD,Home Care - Elderly - North,Supported Living,3 Trees Community Support Ltd,9690.69, 05-May-2016
10,Revenue,CAHD,Home Care - Elderly - South,Day Care / Social Activities,3 Trees Community Support Ltd,96.18, 10-May-2016
11,Revenue,CAHD,Home Care - Elderly - North,Day Care / Social Activities,3 Trees Community Support Ltd,3288.44, 10-May-2016
12,Revenue,CAHD,Home Care - Elderly - North,Supported Living,3 Trees Community Support Ltd,9396.23, 10-May-2016
13,Revenue,CAHD,Home Care - Elderly - South,Day Care / Social Activities,3 Trees Community Support Ltd,91.6, 19-May-2016
14,Revenue,CAHD,Home Care - Elderly - North,Day Care / Social Activities,3 Trees Community Support Ltd,1818.26, 19-May-2016
15,Revenue,CAHD,Home Care - Elderly - North,Other Small Contracts,3 Trees Community Support Ltd,696.16, 19-May-2016
16,Revenue,CAHD,Home Care - Elderly - North,Supported Living,3 Trees Community Support Ltd,9963.16, 19-May-2016
17,Revenue,CAHD,Home Care - Elderly - South,Day Care / Social Activities,3 Trees Community Support Ltd,91.6, 17-May-2016
18,Revenue,CAHD,Home Care - Elderly - North,Day Care / Social Activities,3 Trees Community Support Ltd,1667.12, 17-May-2016
19,Revenue,CAHD,Home Care - Elderly - North,Other Small Contracts,3 Trees Community Support Ltd,54.96, 17-May-2016
20,Revenue,CAHD,Home Care - Elderly - North,Supported Living,3 Trees Community Support Ltd,9731.05, 17-May-2016
21,Revenue,CAHD,Home Care - Elderly - South,Day Care / Social Activities,3 Trees Community Support Ltd,91.6, 24-May-2016
22,Revenue,CAHD,Home Care - Elderly - North,Day Care / Social Activities,3 Trees Community Support Ltd,1534.3, 24-May-2016
23,Revenue,CAHD,Home Care - Elderly - North,Other Small Contracts,3 Trees Community Support Ltd,687, 24-May-2016
24,Revenue,CAHD,Home Care - Elderly - North,Supported Living,3 Trees Community Support Ltd,6821.07, 24-May-2016
25,Revenue,CAHD,Home Care - Elderly - North,Supported Living,3 Trees Community Support Ltd,1965, 24-May-2016
26,Revenue,CAHD,Bed Purchasing - South,Permanent Residential,5Th Floor Harlech Court,16462.84, 10-May-2016
27,Revenue,CAHD,18-25 Year Olds,Permanent Residential,5Th Floor Harlech Court,14031.44, 10-May-2016
28,Revenue,CAHD,18-25 Year Olds,Permanent Residential,5Th Floor Harlech Court,14309.6, 10-May-2016
29,Revenue,CAHD,18-25 Year Olds,Permanent Residential,5Th Floor Harlech Court,12561.64, 10-May-2016
30,Revenue,CAHD,Bed Purchasing - North,Permanent Residential,5Th Floor Harlech Court,15345.12, 10-May-2016
31,Revenue,CAHD,Bed Purchasing - North,Permanent Residential,5Th Floor Harlech Court,3836.28, 10-May-2016
32,Revenue,CAHD,Bed Purchasing - North,Respite Planned - Residential,5Th Floor Harlech Court,11671.2, 10-May-2016
33,Revenue,CAHD,Bed Purchasing - North,Permanent Residential,5Th Floor Harlech Court,218629.71, 10-May-2016
34,Revenue,CAHD,Bed Purchasing - North,Permanent Residential,5Th Floor Harlech Court,9683.62, 10-May-2016
35,Revenue,CAHD,Bed Purchasing - North,Permanent Residential,5Th Floor Harlech Court,13923.28, 10-May-2016
36,Revenue,CAHD,Jointly Funded H&SC Packages,Permanent Residential,5Th Floor Harlech Court,3078.96, 10-May-2016
37,Revenue,CAHD,Jointly Funded H&SC Packages,Permanent Residential,5Th Floor Harlech Court,1722.68, 10-May-2016
38,Revenue,CAHD,Bed Purchasing - North,Permanent Residential,5Th Floor Harlech Court,6778.44, 10-May-2016
39,Revenue,CAHD,18-25 Year Olds,Permanent Residential,5Th Floor Harlech Court,16146.32, 10-May-2016
40,Revenue,CAHD,Bed Purchasing - South,Permanent Residential,5Th Floor Harlech Court,9535.64, 10-May-2016
41,Revenue,CAHD,Bed purchasing - S28A Under 65 - South,Permanent Residential,5Th Floor Harlech Court,9992.84, 10-May-2016
42,Revenue,CAHD,Bed Purchasing - South,Permanent Residential,5Th Floor Harlech Court,10497.68, 10-May-2016
43,Revenue,CAHD,Alexandra Way,Premises Maintenance by Contractor,A E Horder (Contracting) Limited,988.23, 27-May-2016
44,Revenue,CAHD,Bed Purchasing - North,Permanent Nursing,ABI Development Limited,7147, 10-May-2016
45,Revenue,CAHD,Home Care - Elderly - South,Day Care / Social Activities,About Me Care and Support Limited,595.1, 31-May-2016
46,Revenue,CAHD,Training Budget - Children`s Social Serv,Training Expenses,AC Education Ltd,1100, 06-May-2016
47,Revenue,CAHD,CSC - Agency Fostering,Foster Parent Allowances,Action for Children,3428.57, 23-May-2016
48,Revenue,CAHD,CSC - Agency Fostering,Foster Parent Allowances,Action for Children,2703, 23-May-2016
49,Revenue,CAHD,CSC - Agency Fostering,Foster Parent Allowances,Action for Children,3542.86, 26-May-2016
50,Revenue,CAHD,CSC - Agency Fostering,Foster Parent Allowances,Action for Children,3352.43, 26-May-2016
51,Revenue,CAHD,Home Care - Elderly - South,Other Small Contracts,Agincare Chippenham,854.7, 04-May-2016
52,Revenue,CAHD,Home Care - Elderly - North,Other Small Contracts,Agincare Chippenham,492.8, 04-May-2016
53,Revenue,CAHD,Home Care - Elderly - South,Other Small Contracts,Agincare Chippenham,920.15, 04-May-2016
54,Revenue,CAHD,Home Care - Elderly - North,Other Small Contracts,Agincare Chippenham,492.8, 04-May-2016
55,Revenue,CAHD,Home Care - Elderly - South,Other Small Contracts,Agincare Chippenham,903.21, 05-May-2016
56,Revenue,CAHD,Home Care - Elderly - North,Other Small Contracts,Agincare Chippenham,504.39, 05-May-2016
57,Revenue,CAHD,Home Care - Elderly - South,Other Small Contracts,Agincare Chippenham,887.57, 05-May-2016
58,Revenue,CAHD,Home Care - Elderly - North,Other Small Contracts,Agincare Chippenham,520.03, 05-May-2016
59,Revenue,CAHD,Home Care - Elderly - South,Other Small Contracts,Agincare Chippenham,895.39, 24-May-2016
60,Revenue,CAHD,Home Care - Elderly - North,Other Small Contracts,Agincare Chippenham,496.57, 24-May-2016
61,Revenue,CAHD,Home Care - Elderly - South,Other Small Contracts,Agincare Chippenham,934.49, 24-May-2016
62,Revenue,CAHD,Home Care - Elderly - North,Other Small Contracts,Agincare Chippenham,508.3, 24-May-2016
63,Revenue,CAHD,Home Care - Elderly - South,Other Small Contracts,Agincare UK Limited,947.1, 06-May-2016
64,Revenue,CAHD,Home Care - Elderly - North,Other Small Contracts,Agincare UK Limited,30.8, 06-May-2016
65,Revenue,CAHD,Home Care - Elderly - South,Other Small Contracts,Agincare UK Limited,974.05, 06-May-2016
66,Revenue,CAHD,Home Care - Elderly - North,Other Small Contracts,Agincare UK Limited,619.85, 06-May-2016
67,Revenue,CAHD,Home Care - Elderly - South,Other Small Contracts,Agincare UK Limited,1036.15, 06-May-2016
68,Revenue,CAHD,Home Care - Elderly - North,Other Small Contracts,Agincare UK Limited,637.33, 06-May-2016
69,Revenue,CAHD,Home Care - Elderly - South,Other Small Contracts,Agincare UK Limited,1004.87, 06-May-2016
70,Revenue,CAHD,Home Care - Elderly - North,Other Small Contracts,Agincare UK Limited,637.33, 06-May-2016
71,Revenue,CAHD,Home Care - Elderly - South,Other Small Contracts,Agincare UK Limited,997.05, 24-May-2016
72,Revenue,CAHD,Home Care - Elderly - North,Other Small Contracts,Agincare UK Limited,484.84, 24-May-2016
73,Revenue,CAHD,Home Care - Elderly - North,Other Small Contracts,Agincare UK Nutfield,1771, 12-May-2016
74,Revenue,CAHD,Home Care - Elderly - North,Other Small Contracts,Agincare UK Nutfield,1570.8, 13-May-2016
75,Revenue,CAHD,Home Care - Elderly - North,Other Small Contracts,Agincare UK Nutfield,1640.1, 13-May-2016
76,Revenue,CAHD,Home Care - Elderly - North,Other Small Contracts,Agincare UK Nutfield,1667.05, 13-May-2016
77,Revenue,CAHD,Home Care - Elderly - North,Other Small Contracts,Agincare UK Nutfield,1696.94, 13-May-2016
78,Revenue,CAHD,Home Care - Elderly - North,Other Small Contracts,Agincare UK Nutfield,1689.12, 13-May-2016
79,Revenue,CAHD,Home Care - Elderly - North,Other Small Contracts,Agincare UK Nutfield,1689.12, 24-May-2016
80,Revenue,CAHD,Home Care - Elderly - North,Other Small Contracts,Agincare UK Nutfield,1810.33, 24-May-2016
81,Revenue,CAHD,Home Care - Elderly - South,Day Care / Social Activities,Alexandra Homes (Bristol) Limited,2001, 17-May-2016
82,Revenue,CAHD,Home Care - Elderly - South,Other Small Contracts,AliMo Care Ltd,1249.82, 05-May-2016
83,Revenue,CAHD,Home Care - Elderly - South,Other Small Contracts,AliMo Care Ltd,1463, 05-May-2016
84,Revenue,CAHD,Home Care - Elderly - South,Other Small Contracts,AliMo Care Ltd,1600.94, 11-May-2016
85,Revenue,CAHD,Home Care - Elderly - South,Other Small Contracts,AliMo Care Ltd,1628.16, 18-May-2016
86,Revenue,CAHD,Home Care - Elderly - South,Other Small Contracts,AliMo Care Ltd,1526.4, 27-May-2016
87,Revenue,CAHD,Bed Purchasing - South,Permanent Nursing,Ambleside Nusing Ho!,1544.24, 10-May-2016
88,Revenue,CAHD,Bed Purchasing - Southmead Hospital,Permanent Nursing,Amerind Grove Nursing Home,1950.64, 10-May-2016
89,Revenue,CAHD,Bed Purchasing - Southmead Hospital,Permanent Nursing,Amerind Grove Nursing Home,1711.28, 10-May-2016
90,Revenue,CAHD,CSC - Agency Fostering,Foster Parent Allowances,Amicus Foster Care Ltd,4767.5, 10-May-2016
91,Revenue,CAHD,Tenancy Start Up Scheme,Other Supplies & Services,Andrews letting & Management Ltd,1610, 12-May-2016
92,Revenue,CAHD,CAHC - Complaints & Advocacy Service,Complaints External Expenses,Individual,898.13, 27-May-2016
93,Revenue,CAHD,CSC - Safeguarding Board,Training Expenses,Individual,850, 31-May-2016
94,Revenue,CAHD,Independent Special Placements - Pre 16,Other Private Contractors,Arc Schools,18625, 17-May-2016
95,Revenue,CAHD,Independent Special Placements - Pre 16,Other Private Contractors,Arc Schools,18625, 16-May-2016
96,Revenue,CAHD,Bed Purchasing - North,Permanent Residential,Ark Care Homes Ltd,10494.48, 10-May-2016
97,Revenue,CAHD,NHS Health Checks & Tobacco Control,Drugs & Medical Supplies,Asda Stores Limited,729.75, 09-May-2016
98,Revenue,CAHD,NHS Health Checks & Tobacco Control,Drugs & Medical Supplies,Asda Stores Limited,799.23, 09-May-2016
99,Revenue,CAHD,S117 Placements PCT,Permanent Residential,Ash View House,7148.68, 10-May-2016
100,Revenue,CAHD,18-25 Year Olds,Permanent Residential,Ash View House,6315.92, 10-May-2016
101,Revenue,CAHD,Section 117 Placements MH Younger,Permanent Residential,Ash View House,4658.52, 10-May-2016
102,Revenue,CAHD,Jointly Funded H&SC Packages,Permanent Residential,Ash View House,1996.52, 10-May-2016
103,Revenue,CAHD,Bed purchasing - Elderly S117 - South,Permanent Residential,Ash View House,6331.72, 10-May-2016
104,Revenue,CAHD,DAT Treatment,Rent,Ashville Asset Management Limited,432.72, 19-May-2016
105,Revenue,CAHD,Bed Purchasing - North,Permanent Residential,Aspects 2 Limited,6519.96, 10-May-2016
106,Revenue,CAHD,Bed Purchasing - South,Permanent Residential,Autism Specialised Care Homes,5755.24, 10-May-2016
107,Revenue,CAHD,Bed Purchasing - North,Respite Planned - Residential,Avery Homes WSM Limited,687.61, 10-May-2016
108,Revenue,CAHD,Younger Adult Mental Health,Health Services (Third Party Payments),Avon & Wiltshire Mental Health,1667, 06-May-2016
109,Revenue,CAHD,Pathway 2 - (Interim Beds),Permanent Nursing,Avon Lodge Care Centre,10339, 26-May-2016
110,Revenue,CAHD,Tenancy Start Up Scheme,Other Supplies & Services,B R Property Services,521.16, 18-May-2016
111,Revenue,CAHD,CSC - Family Placement Team,Agency Staff (Admin/Support Staff) Pay,Baltimore Consulting Group,7315, 18-May-2016
112,Revenue,CAHD,CSC - Family Group Conferencing,Grants to Voluntary Bodies,Barnardo Services Limited,5350, 03-May-2016
113,Revenue,CAHD,CSC - Be Safe/Base,Project Funding,Barnardo`s,7500, 03-May-2016
114,Revenue,CAHD,CSC - Vinney Green Secure Unit,Support Services Recharges (above line),Barnardo`s,3780, 04-May-2016
115,Revenue,CAHD,Pensions - Non DSG,Annual Pension,Bath & North East Somerset Council,116850.83, 19-May-2016
116,Revenue,CAHD,Purchase of RAC places,Other L.A.'s - General,Bath & North East Somerset Dist Council,354.4, 25-May-2016
117,Revenue,CAHD,Purchase of RAC places,Other L.A.'s - General,Bath & North East Somerset Dist Council,1772, 25-May-2016
118,Revenue,CAHD,Purchase of RAC places,Other L.A.'s - General,Bath & North East Somerset Dist Council,1417.6, 25-May-2016
119,Revenue,CAHD,Purchase of RAC places,Other L.A.'s - General,Bath & North East Somerset Dist Council,772.84, 25-May-2016
120,Revenue,CAHD,Purchase of RAC places,Other L.A.'s - General,Bath & North East Somerset Dist Council,966.08, 25-May-2016
121,Revenue,CAHD,Purchase of RAC places,Other L.A.'s - General,Bath & North East Somerset Dist Council,5282.92, 19-May-2016
122,Revenue,CAHD,Purchase of RAC places,Other L.A.'s - General,Bath & North East Somerset Dist Council,6603.65, 19-May-2016
123,Revenue,CAHD,Purchase of RAC places,Other L.A.'s - General,Bath & North East Somerset Dist Council,5583.5, 27-May-2016
124,Revenue,CAHD,Purchase of RAC places,Other L.A.'s - General,Bath & North East Somerset Dist Council,1902.4, 27-May-2016
125,Revenue,CAHD,Purchase of RAC places,Other L.A.'s - General,Bath & North East Somerset Dist Council,1902.4, 27-May-2016
126,Revenue,CAHD,Bed Purchasing - Southmead Hospital,Permanent Nursing,Bayview Nursing & Residential Home,1503.96, 10-May-2016
127,Revenue,CAHD,Pathway 3 - (Complex Beds),Permanent Nursing,Beaufort Care Ltd,5271, 26-May-2016
128,Revenue,CAHD,Bed Purchasing - Elderly S117- North,Permanent Nursing,Beaufort Grange Care Home,4411.2, 10-May-2016
129,Revenue,CAHD,Bed Purchasing - Elderly S117- North,Permanent Nursing,Beaufort Grange Care Home,4613.92, 10-May-2016
130,Revenue,CAHD,Bed Purchasing - North,Permanent Residential,Beaufort House,1705.4, 10-May-2016
131,Revenue,CAHD,Bed Purchasing - North,Permanent Residential,Beaufort House,17400, 10-May-2016
132,Revenue,CAHD,Bed Purchasing - North,Permanent Residential,Beaufort House,2432.64, 10-May-2016
133,Revenue,CAHD,Bed Purchasing - North,Permanent Residential,Beaufort House,1216.32, 10-May-2016
134,Revenue,CAHD,Bed Purchasing - North,Permanent Residential,Beaufort House,2458.92, 10-May-2016
135,Revenue,CAHD,Bed Purchasing - North,Respite Planned - Residential,Beaufort House,1260, 10-May-2016
136,Revenue,CAHD,Bed Purchasing - North,Permanent Residential,Beaufort House,1685.44, 10-May-2016
137,Revenue,CAHD,Swift Dump Code,Permanent Residential,Beaufort House,6978.4, 10-May-2016
138,Revenue,CAHD,Bed Purchasing - North,Permanent Residential,Beaufort House,876.68, 10-May-2016
139,Revenue,CAHD,Bed Purchasing - South,Permanent Residential,Beaufort House,1451.84, 10-May-2016
140,Revenue,CAHD,Bed Purchasing - North,Permanent Residential,Beaufort House,1846.64, 10-May-2016
141,Revenue,CAHD,Bed Purchasing - Southmead Hospital,Permanent Residential,Beaufort House,1288.96, 10-May-2016
142,Revenue,CAHD,Bed Purchasing - North,Permanent Residential,Beaufort House,1483.64, 10-May-2016
143,Revenue,CAHD,Bed Purchasing - North,Permanent Residential,Beaufort House,741.82, 10-May-2016
144,Revenue,CAHD,Bed Purchasing - North,Respite Emergency - Residential,Beaufort House,2432.64, 10-May-2016
145,Revenue,CAHD,Bed Purchasing - Southmead Hospital,Permanent Residential,Beaufort House,1857.2, 10-May-2016
146,Revenue,CAHD,Implementation of Education Commission,Consultants Fees,Beaven Education Consultants Ltd,4000, 16-May-2016
147,Revenue,CAHD,Bed Purchasing - South,Permanent Residential,Bedrock Lodge,3234.6, 10-May-2016
148,Revenue,CAHD,Bed Purchasing - South,Permanent Residential,Bedrock Lodge,3006.32, 10-May-2016
149,Revenue,CAHD,Section 117 Placements MH Younger,Permanent Residential,Bedrock Lodge,1910.68, 10-May-2016
150,Revenue,CAHD,Bed Purchasing - South,Permanent Residential,Beech House,1277.2, 10-May-2016
151,Revenue,CAHD,Bed Purchasing - North,Permanent Nursing,Beech House,2172, 10-May-2016
152,Revenue,CAHD,Bed Purchasing - North,Permanent Nursing,Beech House,1086, 10-May-2016
153,Revenue,CAHD,Bed Purchasing - North,Permanent Residential,Beech House,1453.2, 10-May-2016
154,Revenue,CAHD,Bed Purchasing - North,Permanent Nursing,Beech House,1094.8, 10-May-2016
155,Revenue,CAHD,Bed Purchasing - North,Permanent Residential,Beech House,1432.32, 10-May-2016
156,Revenue,CAHD,Statemented Support Payments to OLAs,Other L.A.'s - General,Beechen Cliff School,716.64, 31-May-2016
157,Revenue,CAHD,Independent Special Placements - Pre 16,Other Private Contractors,Belgrave School,6066, 13-May-2016
158,Revenue,CAHD,Independent Special Placements - Pre 16,Other Private Contractors,Belgrave School,4750, 13-May-2016
159,Revenue,CAHD,Independent Special Placements - Pre 16,Other Private Contractors,Belgrave School,4835.33, 13-May-2016
160,Revenue,CAHD,Independent Special Placements - Pre 16,Other Private Contractors,Belgrave School,5846.66, 23-May-2016
161,Revenue,CAHD,Independent Special Placements - Post 16,Other Private Contractors,Belgrave School,8692, 13-May-2016
162,Revenue,CAHD,Independent Special Placements - Post 16,Other Private Contractors,Belgrave School,6633, 13-May-2016
163,Revenue,CAHD,Home Care - Elderly - North,Day Care / Social Activities,Bibby Factors Bristol Limited,138.6, 18-May-2016
164,Revenue,CAHD,Home Care - Elderly - North,Other Small Contracts,Bibby Factors Bristol Limited,7182, 18-May-2016
165,Revenue,CAHD,Home Care - Elderly - North,Day Care / Social Activities,Bibby Factors Bristol Limited,67.2, 06-May-2016
166,Revenue,CAHD,Home Care - Elderly - North,Other Small Contracts,Bibby Factors Bristol Limited,6778.8, 06-May-2016
167,Revenue,CAHD,Home Care - Elderly - North,Day Care / Social Activities,Bibby Factors Bristol Limited,138.6, 18-May-2016
168,Revenue,CAHD,Home Care - Elderly - North,Other Small Contracts,Bibby Factors Bristol Limited,8118.6, 18-May-2016
169,Revenue,CAHD,Home Care - Elderly - North,Day Care / Social Activities,Bibby Factors Bristol Limited,136.32, 20-May-2016
170,Revenue,CAHD,Home Care - Elderly - North,Other Small Contracts,Bibby Factors Bristol Limited,8605.2, 20-May-2016
171,Revenue,CAHD,CSC - Care Leavers Support Costs,"Provisions (Food, etc)",Big Yellow Self Storage Company Limited,523.84, 20-May-2016
172,Revenue,CAHD,Bed Purchasing - North,Permanent Nursing,Blossom Field,2402.12, 10-May-2016
173,Revenue,CAHD,Bed Purchasing - Elderly S117- North,Permanent Nursing,Blossom Field,2040, 10-May-2016
174,Revenue,CAHD,Bed purchasing - Elderly MH - North,Permanent Nursing,Blossom Field,20615.15, 10-May-2016
175,Revenue,CAHD,Bed purchasing - Elderly MH - North,Permanent Nursing,Blossom Field,3239.68, 10-May-2016
176,Revenue,CAHD,Bed purchasing - Elderly MH - North,Permanent Nursing,Blossom Field,1619.84, 10-May-2016
177,Revenue,CAHD,Bed purchasing - Elderly S117 - South,Permanent Nursing,Blossom Field,4459.84, 10-May-2016
178,Revenue,CAHD,Bed purchasing - Elderly S117 - South,Permanent Nursing,Blossom Field,4411.2, 10-May-2016
179,Revenue,CAHD,Bed Purchasing - North,Permanent Nursing,Blossom Field,2835.56, 10-May-2016
180,Revenue,CAHD,Bed Purchasing - North,Permanent Nursing,Blossom Field,1417.78, 10-May-2016
181,Revenue,CAHD,Bed Purchasing - North,Permanent Nursing,Blossom Field,2764, 10-May-2016
182,Revenue,CAHD,Bed Purchasing - Southmead Hospital,Permanent Nursing,Blossom Field,2439.24, 10-May-2016
183,Revenue,CAHD,Bed Purchasing - North,Permanent Nursing,Blossom Fields,1867.32, 09-May-2016
184,Revenue,CAHD,Bed Purchasing - Southmead Hospital,Permanent Nursing,Blossom Fields,2120.46, 09-May-2016
185,Revenue,CAHD,Bed Purchasing - North,Permanent Nursing,Blossom Fields,2634.46, 09-May-2016
186,Revenue,CAHD,Home Care - Elderly - South,Other Small Contracts,Bluebird Care (South Gloucestershire),772.2, 11-May-2016
187,Revenue,CAHD,Home Care - Elderly - North,Other Small Contracts,Bluebird Care (South Gloucestershire),2079, 11-May-2016
188,Revenue,CAHD,Home Care - Elderly - South,Other Small Contracts,Bluebird Care (South Gloucestershire),798.18, 11-May-2016
189,Revenue,CAHD,Home Care - Elderly - North,Other Small Contracts,Bluebird Care (South Gloucestershire),2370.28, 11-May-2016
190,Revenue,CAHD,Home Care - Elderly - South,Other Small Contracts,Bluebird Care (South Gloucestershire),783.12, 11-May-2016
191,Revenue,CAHD,Home Care - Elderly - North,Other Small Contracts,Bluebird Care (South Gloucestershire),2465.66, 11-May-2016
192,Revenue,CAHD,Home Care - Elderly - South,Other Small Contracts,Bluebird Care (South Gloucestershire),808.22, 12-May-2016
193,Revenue,CAHD,Home Care - Elderly - North,Other Small Contracts,Bluebird Care (South Gloucestershire),2440.56, 12-May-2016
194,Revenue,CAHD,Training - Adult Services,Training Expenses,Bob Dawson,975, 18-May-2016
195,Revenue,CAHD,NHS Health Checks & Tobacco Control,Drugs & Medical Supplies,Boots UK Ltd,1285.73, 25-May-2016
196,Revenue,CAHD,NHS Health Checks & Tobacco Control,Drugs & Medical Supplies,Boots UK Ltd,738.1, 25-May-2016
197,Revenue,CAHD,Sexual Health,Other Small Contracts,Boots UK Ltd,800.52, 10-May-2016
198,Revenue,CAHD,Sexual Health,Other Small Contracts,Boots UK Ltd,1071.1, 10-May-2016
199,Revenue,CAHD,Sexual Health,Other Small Contracts,Boots UK Ltd,503.91, 10-May-2016
200,Revenue,CAHD,Bed purchasing - S28A Under 65 - South,Permanent Residential,Bradbury House,4355.6, 10-May-2016
201,Revenue,CAHD,Bed Purchasing - South,Permanent Residential,Bradbury House,7945.92, 10-May-2016
202,Revenue,CAHD,Bed purchasing - S28A Under 65 - South,Permanent Residential,Bradbury House,6534.72, 10-May-2016
203,Revenue,CAHD,18-25 Year Olds,Permanent Residential,Bradbury House,8981.52, 10-May-2016
204,Revenue,CAHD,Bed purchasing - Elderly S117 - South,Permanent Residential,Bradbury House,8462.56, 10-May-2016
205,Revenue,CAHD,Jointly Funded H&SC Packages,Permanent Residential,Bradbury House,3144.08, 10-May-2016
206,Revenue,CAHD,Bed Purchasing - North,Permanent Residential,Bradley House,1556.64, 10-May-2016
207,Revenue,CAHD,Bed Purchasing - South,Permanent Nursing,Brandon Trust,22402.86, 10-May-2016
208,Revenue,CAHD,Bed Purchasing - South,Permanent Nursing,Brandon Trust,5215.96, 10-May-2016
209,Revenue,CAHD,Bed Purchasing - South,Permanent Nursing,Brandon Trust,2607.98, 10-May-2016
210,Revenue,CAHD,Bed Purchasing - South,Permanent Residential,Brandon Trust,10525.96, 10-May-2016
211,Revenue,CAHD,Bed Purchasing - South,Permanent Residential,Brandon Trust,4140.64, 10-May-2016
212,Revenue,CAHD,Bed Purchasing - Southmead Hospital,Permanent Nursing,Brandon Trust,4663.04, 10-May-2016
213,Revenue,CAHD,Bed Purchasing - South,Permanent Nursing,Brandon Trust,5166.12, 10-May-2016
214,Revenue,CAHD,Bed purchasing - S28A Under 65 - South,Permanent Nursing,Brandon Trust,5574.32, 10-May-2016
215,Revenue,CAHD,Bed purchasing - S28A Under 65 - South,Permanent Residential,Brandon Trust,4431.16, 10-May-2016
216,Revenue,CAHD,Bed Purchasing - LD S28A- Over 65- South,Permanent Nursing,Brandon Trust,5251.12, 10-May-2016
217,Revenue,CAHD,Bed Purchasing - LD S28A- Over 65- South,Permanent Nursing,Brandon Trust,4964.92, 10-May-2016
218,Revenue,CAHD,Bed Purchasing - South,Permanent Residential,Brandon Trust,3359.28, 10-May-2016
219,Revenue,CAHD,Bed purchasing - S28A Under 65 - South,Permanent Residential,Brandon Trust,5335.92, 10-May-2016
220,Revenue,CAHD,Bed purchasing - S28A Under 65 - South,Permanent Residential,Brandon Trust,5392.96, 10-May-2016
221,Revenue,CAHD,Bed purchasing - S28A Under 65 - South,Permanent Nursing,Brandon Trust,5496.12, 10-May-2016
222,Revenue,CAHD,Bed purchasing -S28A  Under 65 - North,Permanent Nursing,Brandon Trust,4999.34, 10-May-2016
223,Revenue,CAHD,Bed purchasing - S28A Under 65 - South,Permanent Residential,Brandon Trust,5392.96, 10-May-2016
224,Revenue,CAHD,Bed Purchasing - LD S28A- Over 65- South,Permanent Residential,Brandon Trust,4849.92, 10-May-2016
225,Revenue,CAHD,Bed Purchasing - North,Permanent Residential,Bridge House Care Home,1554.8, 10-May-2016
226,Revenue,CAHD,Bed Purchasing - North,Permanent Residential,Bridge House Care Home,1351.92, 10-May-2016
227,Revenue,CAHD,Bed Purchasing - North,Permanent Residential,Bridge House Care Home,1089.8, 10-May-2016
228,Revenue,CAHD,Bed Purchasing - North,Permanent Residential,Bridge House Care Home,1549.96, 10-May-2016
229,Revenue,CAHD,Bed Purchasing - North,Permanent Residential,Bridge House Care Home,1550.8, 10-May-2016
230,Revenue,CAHD,Bed Purchasing - North,Permanent Residential,Bridgwater Court,10192.44, 10-May-2016
231,Revenue,CAHD,Bed Purchasing - South,Permanent Residential,Brightbow,2131.88, 10-May-2016
232,Revenue,CAHD,MH Purchasing - Younger,Permanent Residential,Brightbow,1519.76, 10-May-2016
233,Revenue,CAHD,Statemented Support Academies,Schools Funding,Bristol & South Gloucestershire UTC,583.3, 31-May-2016
234,Revenue,CAHD,Statemented Support Academies,Schools Funding,Bristol & South Gloucestershire UTC,649.97, 31-May-2016
235,Revenue,CAHD,CSC - Section 17 SOUTH,Preventative Assistance,Bristol Children`s contact Services Ltd,586.8, 27-May-2016
236,Revenue,CAHD,0-25  Service,Grants to Voluntary Bodies,Bristol City Council,16291, 09-May-2016
237,Revenue,CAHD,Placements OLA Special Schools and RB,Other L.A.'s - General,Bristol City Council - Schools,2148, 12-May-2016
238,Revenue,CAHD,Placements OLA Special Schools and RB,Other L.A.'s - General,Bristol City Council - Schools,2750.5, 12-May-2016
239,Revenue,CAHD,Placements OLA Special Schools and RB,Other L.A.'s - General,Bristol City Council - Schools,1333.33, 12-May-2016
240,Revenue,CAHD,Statemented Support Payments to OLAs,Other L.A.'s - General,Bristol City Council - Schools,1374.97, 31-May-2016
241,Revenue,CAHD,Placements OLA Special Schools and RB,Other L.A.'s - General,Bristol City Council - Schools,2750.5, 12-May-2016
242,Revenue,CAHD,Placements OLA Special Schools and RB,Other L.A.'s - General,Bristol City Council - Schools,1398, 12-May-2016
243,Revenue,CAHD,Placements OLA Special Schools and RB,Other L.A.'s - General,Bristol City Council - Schools,1333.33, 12-May-2016
244,Revenue,CAHD,Placements OLA Special Schools and RB,Other L.A.'s - General,Bristol City Council - Schools,977.33, 12-May-2016
245,Revenue,CAHD,Placements OLA Special Schools and RB,Other L.A.'s - General,Bristol City Council - Schools,3583.83, 12-May-2016
246,Revenue,CAHD,Placements OLA Special Schools and RB,Other L.A.'s - General,Bristol City Council - Schools,2750.5, 12-May-2016
247,Revenue,CAHD,Placements OLA Special Schools and RB,Other L.A.'s - General,Bristol City Council - Schools,833.33, 12-May-2016
248,Revenue,CAHD,Placements OLA Special Schools and RB,Other L.A.'s - General,Bristol City Council - Schools,1333.33, 12-May-2016
249,Revenue,CAHD,Placements OLA Special Schools and RB,Other L.A.'s - General,Bristol City Council - Schools,2750.5, 12-May-2016
250,Revenue,CAHD,Placements OLA Special Schools and RB,Other L.A.'s - General,Bristol City Council - Schools,738.67, 12-May-2016
251,Revenue,CAHD,Placements OLA Special Schools and RB,Other L.A.'s - General,Bristol City Council - Schools,977.33, 12-May-2016
252,Revenue,CAHD,Placements OLA Special Schools and RB,Other L.A.'s - General,Bristol City Council - Schools,866.5, 12-May-2016
253,Revenue,CAHD,Placements OLA Special Schools and RB,Other L.A.'s - General,Bristol City Council - Schools,1477.33, 12-May-2016
254,Revenue,CAHD,Placements OLA Special Schools and RB,Other L.A.'s - General,Bristol City Council - Schools,2750.5, 12-May-2016
255,Revenue,CAHD,Statemented Support Payments to OLAs,Other L.A.'s - General,Bristol City Council - Schools,641.64, 31-May-2016
256,Revenue,CAHD,Placements OLA Special Schools and RB,Other L.A.'s - General,Bristol City Council - Schools,833.33, 12-May-2016
257,Revenue,CAHD,Placements OLA Special Schools and RB,Other L.A.'s - General,Bristol City Council - Schools,4335.04, 12-May-2016
258,Revenue,CAHD,Placements OLA Special Schools and RB,Other L.A.'s - General,Bristol City Council - Schools,833.33, 12-May-2016
259,Revenue,CAHD,Placements OLA Special Schools and RB,Other L.A.'s - General,Bristol City Council - Schools,2750.5, 12-May-2016
260,Revenue,CAHD,Placements OLA Special Schools and RB,Other L.A.'s - General,Bristol City Council - Schools,1398, 12-May-2016
261,Revenue,CAHD,Placements OLA Special Schools and RB,Other L.A.'s - General,Bristol City Council - Schools,2750.5, 12-May-2016
262,Revenue,CAHD,Placements OLA Special Schools and RB,Other L.A.'s - General,Bristol City Council - Schools,2200.4, 12-May-2016
263,Revenue,CAHD,Placements OLA Special Schools and RB,Other L.A.'s - General,Bristol City Council - Schools,2227.33, 12-May-2016
264,Revenue,CAHD,Placements OLA Special Schools and RB,Other L.A.'s - General,Bristol City Council - Schools,2750.5, 12-May-2016
265,Revenue,CAHD,Placements OLA Special Schools and RB,Other L.A.'s - General,Bristol City Council - Schools,944.92, 12-May-2016
266,Revenue,CAHD,Placements OLA Special Schools and RB,Other L.A.'s - General,Bristol City Council - Schools,1333.33, 12-May-2016
267,Revenue,CAHD,Placements OLA Special Schools and RB,Other L.A.'s - General,Bristol City Council - Schools,3060.67, 12-May-2016
268,Revenue,CAHD,Placements OLA Special Schools and RB,Other L.A.'s - General,Bristol City Council - Schools,944.92, 12-May-2016
269,Revenue,CAHD,Statemented Support Payments to OLAs,Other L.A.'s - General,Bristol Free School,933.3, 31-May-2016
270,Revenue,CAHD,18-25 Year Olds,Preventative Assistance,Bristol Houses UK Limited,1848, 20-May-2016
271,Revenue,CAHD,Housing Needs,Training Expenses,Bristol MIND,895, 27-May-2016
272,Revenue,CAHD,CSC - Vinney Green Secure Unit,Service Contracts (Premises),Bristolfridge,810, 20-May-2016
273,Revenue,CAHD,Home Care - Elderly - North,SU Employment Support,Britannia House,702.96, 10-May-2016
274,Revenue,CAHD,Home Care - Elderly - North,Day Care / Social Activities,Britannia House,937.28, 10-May-2016
275,Revenue,CAHD,Home Care - Elderly - North,Day Care / Social Activities,Britannia House,702.96, 10-May-2016
276,Revenue,CAHD,Home Care - Elderly - North,Day Care / Social Activities,Britannia House,702.96, 10-May-2016
277,Revenue,CAHD,Home Care - Elderly - North,Day Care / Social Activities,Britannia House,937.28, 10-May-2016
278,Revenue,CAHD,Home Care - Elderly - South,Day Care / Social Activities,Britannia House,1171.6, 10-May-2016
279,Revenue,CAHD,Home Care - Elderly - South,Day Care / Social Activities,Britannia House,702.96, 10-May-2016
280,Revenue,CAHD,Home Care - Elderly - South,Day Care / Social Activities,Britannia House,702.96, 10-May-2016
281,Revenue,CAHD,Home Care - Elderly - South,Day Care / Social Activities,Britannia House,702.96, 10-May-2016
282,Revenue,CAHD,CSC - Residential Placements,Permanent Residential,Broadwood Educational Services Limited,14085.59, 20-May-2016
283,Revenue,CAHD,CSC - Care Leavers Independent Living,Independent Living,Bromford Housing Association,552.66, 27-May-2016
284,Revenue,CAHD,Home Care - Elderly - North,Private & Voluntary Home Care,Brunelcare,23822.65, 09-May-2016
285,Revenue,CAHD,Home Care - Elderly - North,Private & Voluntary Home Care,Brunelcare,23822.65, 16-May-2016
286,Revenue,CAHD,Home Care - Elderly - North,Private & Voluntary Home Care,Brunelcare,23822.65, 23-May-2016
287,Revenue,CAHD,Home Care - Elderly - North,Private & Voluntary Home Care,Brunelcare,23822.65, 26-May-2016
288,Revenue,CAHD,Bed Purchasing - Southmead Hospital,Permanent Nursing,Brunelcare,2199.33, 23-May-2016
289,Revenue,CAHD,Bed Purchasing - South,Permanent Nursing,Brunelcare,2470.34, 23-May-2016
290,Revenue,CAHD,Bed Purchasing - Elderly S117- North,Permanent Nursing,Brunelcare,3062.86, 23-May-2016
291,Revenue,CAHD,Bed Purchasing - South,Permanent Nursing,Brunelcare,2266.94, 23-May-2016
292,Revenue,CAHD,Bed Purchasing - Southmead Hospital,Permanent Nursing,Brunelcare,2448.91, 23-May-2016
293,Revenue,CAHD,Bed Purchasing - Southmead Hospital,Permanent Nursing,Brunelcare,1387.99, 23-May-2016
294,Revenue,CAHD,Bed Purchasing - South,Permanent Nursing,Brunelcare,2509, 23-May-2016
295,Revenue,CAHD,Bed Purchasing - South,Permanent Nursing,Brunelcare,2291.71, 23-May-2016
296,Revenue,CAHD,Bed purchasing - Elderly S117 - South,Permanent Nursing,Brunelcare,3062.86, 23-May-2016
297,Revenue,CAHD,Bed Purchasing - North,Permanent Nursing,Brunelcare,2439.09, 23-May-2016
298,Revenue,CAHD,Bed Purchasing - Southmead Hospital,Permanent Nursing,Brunelcare,2342.13, 23-May-2016
299,Revenue,CAHD,Bed Purchasing - North,Permanent Nursing,Brunelcare,2458.63, 23-May-2016
300,Revenue,CAHD,Bed Purchasing - North,Permanent Nursing,Brunelcare,2509, 23-May-2016
301,Revenue,CAHD,Bed Purchasing - Southmead Hospital,Permanent Nursing,Brunelcare,2509, 23-May-2016
302,Revenue,CAHD,Bed Purchasing - Southmead Hospital,Permanent Nursing,Brunelcare,2419.66, 23-May-2016
303,Revenue,CAHD,Bed Purchasing - Elderly S117- North,Permanent Nursing,Brunelcare,3062.86, 23-May-2016
304,Revenue,CAHD,Bed Purchasing - South,Respite Planned - Nursing,Brunelcare,809.14, 23-May-2016
305,Revenue,CAHD,Bed Purchasing - South,Respite Planned - Nursing,Brunelcare,921.71, 23-May-2016
306,Revenue,CAHD,South Glos Users in South Glos Homes,Permanent Nursing,Brunelcare,14991.72, 23-May-2016
307,Revenue,CAHD,Bed Purchasing - South,Permanent Nursing,Brunelcare,508.87, 23-May-2016
308,Revenue,CAHD,Bed Purchasing - South,Respite Planned - Nursing,Brunelcare,512.86, 23-May-2016
309,Revenue,CAHD,Bed Purchasing - South,Respite Planned - Nursing,Brunelcare,718, 23-May-2016
310,Revenue,CAHD,Bed Purchasing - South,Respite Planned - Nursing,Brunelcare,809.14, 23-May-2016
311,Revenue,CAHD,Pathway 2 - (Interim Beds),Permanent Nursing,Brunelcare,15207.38, 03-May-2016
312,Revenue,CAHD,Pathway 2 - (Interim Beds),Permanent Nursing,Brunelcare,15407, 18-May-2016
313,Revenue,CAHD,Home Care - Elderly - South,Other Small Contracts,Brunelcare,2267.37, 10-May-2016
314,Revenue,CAHD,Home Care - Elderly - North,Other Small Contracts,Brunelcare,2159.99, 10-May-2016
315,Revenue,CAHD,Home Care - Elderly - South,Other Small Contracts,Brunelcare,2275.63, 10-May-2016
316,Revenue,CAHD,Home Care - Elderly - North,Other Small Contracts,Brunelcare,1825.46, 10-May-2016
317,Revenue,CAHD,Home Care - Elderly - South,Other Small Contracts,Brunelcare,2191.37, 10-May-2016
318,Revenue,CAHD,Home Care - Elderly - North,Other Small Contracts,Brunelcare,2090.76, 10-May-2016
319,Revenue,CAHD,Home Care - Elderly - South,Other Small Contracts,Brunelcare,2044.72, 10-May-2016
320,Revenue,CAHD,Home Care - Elderly - North,Other Small Contracts,Brunelcare,2036.34, 10-May-2016
321,Revenue,CAHD,Home Care - Elderly - South,Other Small Contracts,Brunelcare,2061.48, 24-May-2016
322,Revenue,CAHD,Home Care - Elderly - North,Other Small Contracts,Brunelcare,1671.81, 24-May-2016
323,Revenue,CAHD,Woodleaze,Agency Staff (Admin/Support Staff) Pay,BS Project Services Limited,427.54, 19-May-2016
324,Revenue,CAHD,Information Systems - Software,Computer Equipment - Purchase,BT Global Services Solutions,2931.21, 27-May-2016
325,Revenue,CAHD,Bed Purchasing - North,Permanent Nursing,Bupa Care Services  Bridge House,1740, 10-May-2016
326,Revenue,CAHD,Jointly Funded H&SC Packages,Permanent Nursing,Bupa Care Services  Bridge House,4344.04, 10-May-2016
327,Revenue,CAHD,South Glos Users in all other LA Homes,Permanent Nursing,Bupa Care Services  Bridge House,616.56, 10-May-2016
328,Revenue,CAHD,Statemented Support Payments to OLAs,Other L.A.'s - General,Cabot Learning Federation,1099.97, 31-May-2016
329,Revenue,CAHD,Statemented Support Payments to OLAs,Other L.A.'s - General,Cabot Learning Federation,524.97, 31-May-2016
330,Revenue,CAHD,Statemented Support Academies,Schools Funding,Cabot Learning Federation,641.64, 31-May-2016
331,Revenue,CAHD,Statemented Support Academies,Schools Funding,Cabot Learning Federation,691.64, 31-May-2016
332,Revenue,CAHD,Statemented Support Academies,Schools Funding,Cabot Learning Federation,624.97, 31-May-2016
333,Revenue,CAHD,Statemented Support Academies,Schools Funding,Cabot Learning Federation,583.3, 31-May-2016
334,Revenue,CAHD,Statemented Support Academies,Schools Funding,Cabot Learning Federation,833.3, 31-May-2016
335,Revenue,CAHD,Statemented Support Academies,Schools Funding,Cabot Learning Federation,583.3, 31-May-2016
336,Revenue,CAHD,Statemented Support Academies,Schools Funding,Cabot Learning Federation,541.64, 31-May-2016
337,Revenue,CAHD,Statemented Support Academies,Schools Funding,Cabot Learning Federation,599.97, 31-May-2016
338,Revenue,CAHD,Academy Resource Base Funding,Other Public Bodies,Cabot Learning Federation,509.59, 16-May-2016
339,Revenue,CAHD,Academy Resource Base Funding,Other Public Bodies,Cabot Learning Federation,1613.7, 16-May-2016
340,Revenue,CAHD,Academy Resource Base Funding,Other Public Bodies,Cabot Learning Federation,1231.51, 16-May-2016
341,Revenue,CAHD,Academy Resource Base Funding,Other Public Bodies,Cabot Learning Federation,509.59, 16-May-2016
342,Revenue,CAHD,Academy Resource Base Funding,Other Public Bodies,Cabot Learning Federation,1613.7, 16-May-2016
343,Revenue,CAHD,Academy Resource Base Funding,Other Public Bodies,Cabot Learning Federation,509.59, 16-May-2016
344,Revenue,CAHD,Academy Resource Base Funding,Other Public Bodies,Cabot Learning Federation,509.59, 16-May-2016
345,Revenue,CAHD,Academy Resource Base Funding,Other Public Bodies,Cabot Learning Federation,509.59, 16-May-2016
346,Revenue,CAHD,Academy Resource Base Funding,Other Public Bodies,Cabot Learning Federation,509.59, 16-May-2016
347,Revenue,CAHD,Academy Resource Base Funding,Other Public Bodies,Cabot Learning Federation,509.59, 16-May-2016
348,Revenue,CAHD,Academy Resource Base Funding,Other Public Bodies,Cabot Learning Federation,509.59, 16-May-2016
349,Revenue,CAHD,Academy Resource Base Funding,Other Public Bodies,Cabot Learning Federation,509.59, 16-May-2016
350,Revenue,CAHD,Academy Resource Base Funding,Other Public Bodies,Cabot Learning Federation,509.59, 16-May-2016
351,Revenue,CAHD,Academy Resource Base Funding,Other Public Bodies,Cabot Learning Federation,1613.7, 16-May-2016
352,Revenue,CAHD,Academy Resource Base Funding,Other Public Bodies,Cabot Learning Federation,509.59, 16-May-2016
353,Revenue,CAHD,Academy Resource Base Funding,Other Public Bodies,Cabot Learning Federation,509.59, 16-May-2016
354,Revenue,CAHD,Academy Resource Base Funding,Other Public Bodies,Cabot Learning Federation,1613.7, 16-May-2016
355,Revenue,CAHD,Academy Resource Base Funding,Other Public Bodies,Cabot Learning Federation,509.59, 16-May-2016
356,Revenue,CAHD,Academy Resource Base Funding,Other Public Bodies,Cabot Learning Federation,509.59, 16-May-2016
357,Revenue,CAHD,Academy Resource Base Funding,Other Public Bodies,Cabot Learning Federation,509.59, 16-May-2016
358,Revenue,CAHD,Academy Resource Base Funding,Other Public Bodies,Cabot Learning Federation,509.59, 16-May-2016
359,Revenue,CAHD,Academy Resource Base Funding,Other Public Bodies,Cabot Learning Federation,509.59, 16-May-2016
360,Revenue,CAHD,Academy Resource Base Funding,Other Public Bodies,Cabot Learning Federation,1613.7, 16-May-2016
361,Revenue,CAHD,Academy Resource Base Funding,Other Public Bodies,Cabot Learning Federation,1613.7, 16-May-2016
362,Revenue,CAHD,Statemented Support Academies,Schools Funding,Cabot Learning Federation,724.97, 31-May-2016
363,Revenue,CAHD,Statemented Support Academies,Schools Funding,Cabot Learning Federation,874.97, 31-May-2016
364,Revenue,CAHD,Statemented Support Academies,Schools Funding,Cabot Learning Federation,691.64, 31-May-2016
365,Revenue,CAHD,Statemented Support Academies,Schools Funding,Cabot Learning Federation,583.3, 31-May-2016
366,Revenue,CAHD,Statemented Support Academies,Schools Funding,Cabot Learning Federation,1316.64, 31-May-2016
367,Revenue,CAHD,Statemented Support Academies,Schools Funding,Cabot Learning Federation,624.97, 31-May-2016
368,Revenue,CAHD,Statemented Support Academies,Schools Funding,Cabot Learning Federation,899.97, 31-May-2016
369,Revenue,CAHD,Statemented Support Academies,Schools Funding,Cabot Learning Federation,599.97, 31-May-2016
370,Revenue,CAHD,Statemented Support Academies,Schools Funding,Cabot Learning Federation,683.3, 31-May-2016
371,Revenue,CAHD,Statemented Support Academies,Schools Funding,Cabot Learning Federation,1224.97, 31-May-2016
372,Revenue,CAHD,Statemented Support Academies,Schools Funding,Cabot Learning Federation,958.3, 31-May-2016
373,Revenue,CAHD,Statemented Support Academies,Schools Funding,Cabot Learning Federation,583.3, 31-May-2016
374,Revenue,CAHD,Statemented Support Academies,Schools Funding,Cabot Learning Federation,749.97, 31-May-2016
375,Revenue,CAHD,Statemented Support Academies,Other Public Bodies,Cabot Learning Federation,65000, 16-May-2016
376,Revenue,CAHD,Statemented Support Academies,Schools Funding,Cabot Learning Federation,941.64, 31-May-2016
377,Revenue,CAHD,Statemented Support Academies,Schools Funding,Cabot Learning Federation,549.97, 31-May-2016
378,Revenue,CAHD,Statemented Support Payments to OLAs,Other L.A.'s - General,Cabot Learning Federation,583.3, 31-May-2016
379,Revenue,CAHD,Statemented Support Academies,Schools Funding,Cabot Learning Federation,1308.3, 31-May-2016
380,Revenue,CAHD,Schools Block Growth Contingency,Other Public Bodies,Cabot Learning Federation,20833.33, 24-May-2016
381,Revenue,CAHD,Home Care - Elderly - North,Day Care / Social Activities,Camphill Communities Thornbury Limited,906.2, 06-May-2016
382,Revenue,CAHD,Home Care - Elderly - North,Supported Living,Camphill Communities Thornbury Limited,721.02, 06-May-2016
383,Revenue,CAHD,Home Care - Elderly - North,Day Care / Social Activities,Camphill Communities Thornbury Limited,985, 13-May-2016
384,Revenue,CAHD,Home Care - Elderly - North,Other Small Contracts,Camphill Communities Thornbury Limited,141.84, 13-May-2016
385,Revenue,CAHD,Home Care - Elderly - North,Supported Living,Camphill Communities Thornbury Limited,1233.22, 13-May-2016
386,Revenue,CAHD,Home Care - Elderly - North,Day Care / Social Activities,Camphill Communities Thornbury Limited,856, 20-May-2016
387,Revenue,CAHD,Home Care - Elderly - North,Other Small Contracts,Camphill Communities Thornbury Limited,140, 20-May-2016
388,Revenue,CAHD,Home Care - Elderly - North,Supported Living,Camphill Communities Thornbury Limited,1268, 20-May-2016
389,Revenue,CAHD,Home Care - Elderly - North,Day Care / Social Activities,Camphill Communities Thornbury Limited,944, 25-May-2016
390,Revenue,CAHD,Home Care - Elderly - North,Other Small Contracts,Camphill Communities Thornbury Limited,144, 25-May-2016
391,Revenue,CAHD,Home Care - Elderly - North,Supported Living,Camphill Communities Thornbury Limited,1308, 25-May-2016
392,Revenue,CAHD,Bed Purchasing - Elderly S117- North,Permanent Residential,Canjayor,2391.32, 10-May-2016
393,Revenue,CAHD,Information Systems - Software,Fees - General,Capita Business Services Ltd,35250, 26-May-2016
394,Revenue,CAHD,Home Care - Elderly - South,Other Small Contracts,Care 1st Homecare,4505, 11-May-2016
395,Revenue,CAHD,Home Care - Elderly - South,Supported Living,Care 1st Homecare,21.25, 11-May-2016
396,Revenue,CAHD,Home Care - Elderly - North,One-off Planned Direct Payment,Care 1st Homecare,46.75, 11-May-2016
397,Revenue,CAHD,Home Care - Elderly - North,Other Small Contracts,Care 1st Homecare,3221.5, 11-May-2016
398,Revenue,CAHD,Home Care - Elderly - South,Other Small Contracts,Care 1st Homecare,4012, 11-May-2016
399,Revenue,CAHD,Home Care - Elderly - South,Supported Living,Care 1st Homecare,21.25, 11-May-2016
400,Revenue,CAHD,Home Care - Elderly - North,Other Small Contracts,Care 1st Homecare,3068.5, 11-May-2016
401,Revenue,CAHD,Home Care - Elderly - South,Other Small Contracts,Care 1st Homecare,4067.25, 11-May-2016
402,Revenue,CAHD,Home Care - Elderly - South,Supported Living,Care 1st Homecare,25.5, 11-May-2016
403,Revenue,CAHD,Home Care - Elderly - North,Other Small Contracts,Care 1st Homecare,3234.25, 11-May-2016
404,Revenue,CAHD,Home Care - Elderly - South,Other Small Contracts,Care 1st Homecare,4424.25, 11-May-2016
405,Revenue,CAHD,Home Care - Elderly - South,Supported Living,Care 1st Homecare,8.5, 11-May-2016
406,Revenue,CAHD,Home Care - Elderly - North,Other Small Contracts,Care 1st Homecare,3736.4, 11-May-2016
407,Revenue,CAHD,Home Care - Elderly - South,Other Small Contracts,Care 1st Homecare,4271.25, 11-May-2016
408,Revenue,CAHD,Home Care - Elderly - South,Supported Living,Care 1st Homecare,25.5, 11-May-2016
409,Revenue,CAHD,Home Care - Elderly - North,Other Small Contracts,Care 1st Homecare,2907, 11-May-2016
410,Revenue,CAHD,Home Care - Elderly - South,Other Small Contracts,Care 1st Homecare,4347.75, 11-May-2016
411,Revenue,CAHD,Home Care - Elderly - South,Supported Living,Care 1st Homecare,21.25, 11-May-2016
412,Revenue,CAHD,Home Care - Elderly - North,Other Small Contracts,Care 1st Homecare,2694.5, 11-May-2016
413,Revenue,CAHD,Home Care - Elderly - South,Other Small Contracts,Care 1st Homecare,4003.99, 24-May-2016
414,Revenue,CAHD,Home Care - Elderly - South,Supported Living,Care 1st Homecare,21.55, 24-May-2016
415,Revenue,CAHD,Home Care - Elderly - North,Other Small Contracts,Care 1st Homecare,2633.41, 24-May-2016
416,Revenue,CAHD,Home Care - Elderly - South,Other Small Contracts,Care 1st Homecare,4167.77, 24-May-2016
417,Revenue,CAHD,Home Care - Elderly - North,Other Small Contracts,Care 1st Homecare,2629.1, 24-May-2016
418,Revenue,CAHD,Home Care - Elderly - South,Other Small Contracts,Care 1st Homecare,4003.99, 31-May-2016
419,Revenue,CAHD,Home Care - Elderly - North,Other Small Contracts,Care 1st Homecare,2642.03, 31-May-2016
420,Revenue,CAHD,Home Care - Elderly - South,Day Care / Social Activities,Care Futures,524.08, 17-May-2016
421,Revenue,CAHD,Home Care - Elderly - South,Other Small Contracts,Care Horizons Limited,355.68, 09-May-2016
422,Revenue,CAHD,Home Care - Elderly - North,Day Care / Social Activities,Care Horizons Limited,164.16, 09-May-2016
423,Revenue,CAHD,Home Care - Elderly - North,Other Small Contracts,Care Horizons Limited,387.6, 09-May-2016
424,Revenue,CAHD,Home Care - Elderly - South,Other Small Contracts,Care Horizons Limited,346.56, 11-May-2016
425,Revenue,CAHD,Home Care - Elderly - North,Day Care / Social Activities,Care Horizons Limited,164.16, 11-May-2016
426,Revenue,CAHD,Home Care - Elderly - North,Other Small Contracts,Care Horizons Limited,405.84, 11-May-2016
427,Revenue,CAHD,Home Care - Elderly - South,Other Small Contracts,Care Horizons Limited,355.68, 17-May-2016
428,Revenue,CAHD,Home Care - Elderly - North,Day Care / Social Activities,Care Horizons Limited,168.72, 17-May-2016
429,Revenue,CAHD,Home Care - Elderly - North,Other Small Contracts,Care Horizons Limited,424.08, 17-May-2016
430,Revenue,CAHD,Home Care - Elderly - South,Other Small Contracts,Care Horizons Limited,351.12, 18-May-2016
431,Revenue,CAHD,Home Care - Elderly - North,Day Care / Social Activities,Care Horizons Limited,164.16, 18-May-2016
432,Revenue,CAHD,Home Care - Elderly - North,Other Small Contracts,Care Horizons Limited,424.08, 18-May-2016
433,Revenue,CAHD,Supported Living - North,Private & Voluntary Home Care,Care Horizons Limited,2203.97, 11-May-2016
434,Revenue,CAHD,Supported Living - North,Private & Voluntary Home Care,Care Horizons Limited,2203.97, 11-May-2016
435,Revenue,CAHD,Purchase of Non-Res Care - North,Day Care / Social Activities,Care Horizons Limited,1476.98, 26-May-2016
436,Revenue,CAHD,Home Care Monitoring (CM2000),Other Supplies & Services,Care Monitoring 2000 Limited,9522.24, 12-May-2016
437,Revenue,CAHD,Home Care - Elderly - South,Other Small Contracts,Carers R Us (Bristol) Limited,662.56, 06-May-2016
438,Revenue,CAHD,Home Care - Elderly - South,Other Small Contracts,Carers R Us (Bristol) Limited,688.8, 06-May-2016
439,Revenue,CAHD,Home Care - Elderly - South,Other Small Contracts,Carers R Us (Bristol) Limited,684.7, 06-May-2016
440,Revenue,CAHD,Home Care - Elderly - South,Other Small Contracts,Carers R Us (Bristol) Limited,688.8, 17-May-2016
441,Revenue,CAHD,Home Care - Elderly - South,Other Small Contracts,Carers R Us (Bristol) Limited,672.4, 17-May-2016
442,Revenue,CAHD,Statemented Support Academies,Schools Funding,Castle School Education Trust,1008.3, 31-May-2016
443,Revenue,CAHD,Statemented Support Academies,Schools Funding,Castle School Education Trust,891.64, 31-May-2016
444,Revenue,CAHD,Statemented Support Academies,Schools Funding,Castle School Education Trust,783.3, 31-May-2016
445,Revenue,CAHD,Statemented Support Academies,Schools Funding,Castle School Education Trust,583.3, 31-May-2016
446,Revenue,CAHD,Statemented Support Academies,Schools Funding,Castle School Education Trust,583.3, 31-May-2016
447,Revenue,CAHD,Statemented Support Academies,Schools Funding,Castle School Education Trust,524.97, 31-May-2016
448,Revenue,CAHD,Statemented Support Academies,Schools Funding,Castle School Education Trust,1324.97, 31-May-2016
449,Revenue,CAHD,Statemented Support Academies,Schools Funding,Castle School Education Trust,591.64, 31-May-2016
450,Revenue,CAHD,Statemented Support Academies,Schools Funding,Castle School Education Trust,833.3, 31-May-2016
451,Revenue,CAHD,Statemented Support Academies,Schools Funding,Castle School Education Trust,649.97, 31-May-2016
452,Revenue,CAHD,Statemented Support Academies,Schools Funding,Castle School Education Trust,1474.97, 31-May-2016
453,Revenue,CAHD,Statemented Support Academies,Schools Funding,Castle School Education Trust,708.3, 31-May-2016
454,Revenue,CAHD,Statemented Support Academies,Schools Funding,Castle School Education Trust,966.64, 31-May-2016
455,Revenue,CAHD,Statemented Support Academies,Schools Funding,Castle School Education Trust,766.64, 31-May-2016
456,Revenue,CAHD,Statemented Support Academies,Schools Funding,Castle School Education Trust,583.3, 31-May-2016
457,Revenue,CAHD,Statemented Support Academies,Schools Funding,Castle School Education Trust,508.3, 31-May-2016
458,Revenue,CAHD,Statemented Support Academies,Schools Funding,Castle School Education Trust,874.97, 31-May-2016
459,Revenue,CAHD,Statemented Support Academies,Schools Funding,Castle School Education Trust,733.3, 31-May-2016
460,Revenue,CAHD,Statemented Support Academies,Schools Funding,Castle School Education Trust,874.97, 31-May-2016
461,Revenue,CAHD,Statemented Support Academies,Schools Funding,Castle School Education Trust,883.3, 31-May-2016
462,Revenue,CAHD,Statemented Support Academies,Schools Funding,Castle School Education Trust,891.64, 31-May-2016
463,Revenue,CAHD,Statemented Support Academies,Schools Funding,Castle School Education Trust,599.97, 31-May-2016
464,Revenue,CAHD,Statemented Support Academies,Schools Funding,Castle School Education Trust,1166.64, 31-May-2016
465,Revenue,CAHD,Statemented Support Academies,Schools Funding,Castle School Education Trust,658.3, 31-May-2016
466,Revenue,CAHD,Statemented Support Academies,Schools Funding,Castle School Education Trust,608.3, 31-May-2016
467,Revenue,CAHD,Schools Block Growth Contingency,Other Public Bodies,Castle School Education Trust,20833.33, 24-May-2016
468,Revenue,CAHD,Statemented Support Academies,Schools Funding,Castle School Education Trust,691.64, 31-May-2016
469,Revenue,CAHD,Statemented Support Academies,Schools Funding,Castle School Education Trust,558.3, 31-May-2016
470,Revenue,CAHD,Statemented Support Academies,Schools Funding,Castle School Education Trust,1133.3, 31-May-2016
471,Revenue,CAHD,Statemented Support Academies,Schools Funding,Castle School Education Trust,1283.3, 31-May-2016
472,Revenue,CAHD,Training - Adult Services,Training Expenses,Centre for Action Learning Facilitation,8255.22, 27-May-2016
473,Revenue,CAHD,Bed Purchasing - North,Permanent Residential,Charlton House,916.12, 10-May-2016
474,Revenue,CAHD,Bed Purchasing - North,Permanent Residential,Charlton House,924.16, 10-May-2016
475,Revenue,CAHD,Home Care - Elderly - South,Other Small Contracts,Cherish Able Care Limited,5089.32, 05-May-2016
476,Revenue,CAHD,Home Care - Elderly - North,Other Small Contracts,Cherish Able Care Limited,59.08, 05-May-2016
477,Revenue,CAHD,Home Care - Elderly - South,Other Small Contracts,Cherish Able Care Limited,4768.6, 12-May-2016
478,Revenue,CAHD,Home Care - Elderly - North,Other Small Contracts,Cherish Able Care Limited,63.3, 12-May-2016
479,Revenue,CAHD,Home Care - Elderly - South,Other Small Contracts,Cherish Able Care Limited,4528.24, 19-May-2016
480,Revenue,CAHD,Home Care - Elderly - North,Other Small Contracts,Cherish Able Care Limited,162.64, 19-May-2016
481,Revenue,CAHD,Home Care - Elderly - South,Other Small Contracts,Cherish Able Care Limited,4849.24, 27-May-2016
482,Revenue,CAHD,Bed purchasing -S28A  Under 65 - North,Permanent Residential,Chescombe Lodge,8915.92, 10-May-2016
483,Revenue,CAHD,Training Budget - Children`s Social Serv,Training Expenses,Child Bereavement UK,506.15, 06-May-2016
484,Revenue,CAHD,Training - Adult Services,Training Expenses,Child Bereavement UK,506.15, 06-May-2016
485,Revenue,CAHD,Home Care - Elderly - South,Supported Living,Choisy Care Limited,858.6, 12-May-2016
486,Revenue,CAHD,Bed Purchasing - Southmead Hospital,Permanent Nursing,Cholwell House Nursing Home Ltd,2005.92, 10-May-2016
487,Revenue,CAHD,Training - Adult Services,Training Expenses,Chris Garnier,600, 03-May-2016
488,Revenue,CAHD,Health Inequalities,Other Small Contracts,Christine Wheeler Support Groups,500, 19-May-2016
489,Revenue,CAHD,Health Inequalities,Other Small Contracts,Christine Wheeler Support Groups,500, 19-May-2016
490,Revenue,CAHD,Health Inequalities,Other Small Contracts,Christine Wheeler Support Groups,500, 19-May-2016
491,Revenue,CAHD,CSC - Vinney Green Secure Unit,Service Contracts (Premises),Chubb Systems Limited,582.96, 18-May-2016
492,Revenue,CAHD,Bed Purchasing - Southmead Hospital,Permanent Nursing,Churchill Property Services,1827.74, 10-May-2016
493,Revenue,CAHD,Learning Difficulties,Premises Hire,Circadian Trust,756.8, 09-May-2016
494,Revenue,CAHD,Learning Difficulties,Other Supplies & Services,Circadian Trust,508, 09-May-2016
495,Revenue,CAHD,Learning Difficulties,Other Supplies & Services,Circadian Trust,571.5, 31-May-2016
496,Revenue,CAHD,CSC - Fostering General,Sporting Expenses,Circadian Trust,598, 27-May-2016
497,Revenue,CAHD,18-25 Year Olds,Permanent Residential,Citibase Watford,7190.44, 10-May-2016
498,Revenue,CAHD,18-25 Year Olds,Permanent Residential,Citibase Watford,5594.88, 10-May-2016
499,Revenue,CAHD,CSC - LAT Placements,Personal Needs of Clients,City of Bristol College,1728, 23-May-2016
500,Revenue,CAHD,CSC - LAT Placements,Personal Needs of Clients,City of Bristol College,864, 27-May-2016
501,Revenue,CAHD,CSC - Vinney Green Secure Unit,R & M by Departments,Clarke Instruments Limited,1060, 06-May-2016
502,Revenue,CAHD,Home Care - Elderly - South,Other Small Contracts,Cleeve Care Group,640.74, 04-May-2016
503,Revenue,CAHD,Home Care - Elderly - South,Other Small Contracts,Cleeve Care Group,644.28, 04-May-2016
504,Revenue,CAHD,Home Care - Elderly - South,Other Small Contracts,Cleeve Care Group,637.2, 11-May-2016
505,Revenue,CAHD,Home Care - Elderly - South,Other Small Contracts,Cleeve Care Group,664.15, 18-May-2016
506,Revenue,CAHD,Home Care - Elderly - South,Other Small Contracts,Cleeve Care Group,639.02, 25-May-2016
507,Revenue,CAHD,Bed Purchasing - South,Permanent Residential,Cleeve Lodge,563.46, 10-May-2016
508,Revenue,CAHD,Bed Purchasing - Southmead Hospital,Permanent Residential,Cleeve Lodge,1494.76, 10-May-2016
509,Revenue,CAHD,Bed Purchasing - South,Permanent Residential,Cleeve Lodge,1769.56, 10-May-2016
510,Revenue,CAHD,Bed Purchasing - South,Permanent Residential,Cleeve Lodge,1855.4, 10-May-2016
511,Revenue,CAHD,Bed Purchasing - South,Permanent Residential,Cleeve Lodge,1852.6, 10-May-2016
512,Revenue,CAHD,Independent Special Placements - Pre 16,Other Private Contractors,Clifton College,1250, 13-May-2016
513,Revenue,CAHD,Bed Purchasing - South,Permanent Residential,Collingwood Residential Home,1467.24, 10-May-2016
514,Revenue,CAHD,Bed Purchasing - South,Permanent Residential,Collingwood Residential Home,1484.12, 10-May-2016
515,Revenue,CAHD,Bed Purchasing - South,Permanent Residential,Collingwood Residential Home,1461.76, 10-May-2016
516,Revenue,CAHD,Bed Purchasing - South,Permanent Residential,Collingwood Residential Home,1340.68, 10-May-2016
517,Revenue,CAHD,Bed Purchasing - South,Permanent Nursing,Community Integrated Care,676.64, 10-May-2016
518,Revenue,CAHD,CSC - Vinney Green Secure Unit,Service Contracts (Premises),Complete Weed Control (North Wessex) Ltd,587, 25-May-2016
519,Revenue,CAHD,Bed and Breakfast,Bed & Breakfast,Connolly & Callaghan Limited,581, 27-May-2016
520,Revenue,CAHD,Bed and Breakfast,Bed & Breakfast,Connolly & Callaghan Limited,546, 26-May-2016
521,Revenue,CAHD,Bed and Breakfast,Bed & Breakfast,Connolly & Callaghan Limited,441, 04-May-2016
522,Revenue,CAHD,Bed and Breakfast,Bed & Breakfast,Connolly & Callaghan Limited,476, 26-May-2016
523,Revenue,CAHD,Bed and Breakfast,Bed & Breakfast,Connolly & Callaghan Limited,616, 26-May-2016
524,Revenue,CAHD,Bed and Breakfast,Bed & Breakfast,Connolly & Callaghan Limited,511, 27-May-2016
525,Revenue,CAHD,Bed and Breakfast,Bed & Breakfast,Connolly & Callaghan Limited,441, 27-May-2016
526,Revenue,CAHD,Bed and Breakfast,Bed & Breakfast,Connolly & Callaghan Limited,511, 27-May-2016
527,Revenue,CAHD,Bed and Breakfast,Bed & Breakfast,Connolly & Callaghan Limited,476, 27-May-2016
528,Revenue,CAHD,Bed and Breakfast,Bed & Breakfast,Connolly & Callaghan Limited,441, 27-May-2016
529,Revenue,CAHD,Bed and Breakfast,Bed & Breakfast,Connolly & Callaghan Limited,441, 27-May-2016
530,Revenue,CAHD,Bed and Breakfast,Bed & Breakfast,Connolly & Callaghan Limited,651, 27-May-2016
531,Revenue,CAHD,Bed and Breakfast,Bed & Breakfast,Connolly & Callaghan Limited,581, 27-May-2016
532,Revenue,CAHD,Bed and Breakfast,Bed & Breakfast,Connolly & Callaghan Limited,546, 27-May-2016
533,Revenue,CAHD,Bed and Breakfast,Bed & Breakfast,Connolly & Callaghan Limited,616, 27-May-2016
534,Revenue,CAHD,Bed and Breakfast,Bed & Breakfast,Connolly & Callaghan Limited,511, 16-May-2016
535,Revenue,CAHD,Bed and Breakfast,Bed & Breakfast,Connolly & Callaghan Limited,441, 16-May-2016
536,Revenue,CAHD,Bed and Breakfast,Bed & Breakfast,Connolly & Callaghan Limited,441, 25-May-2016
537,Revenue,CAHD,Bed and Breakfast,Bed & Breakfast,Connolly & Callaghan Limited,441, 16-May-2016
538,Revenue,CAHD,Bed and Breakfast,Bed & Breakfast,Connolly & Callaghan Limited,511, 25-May-2016
539,Revenue,CAHD,Bed and Breakfast,Bed & Breakfast,Connolly & Callaghan Limited,476, 19-May-2016
540,Revenue,CAHD,Bed and Breakfast,Bed & Breakfast,Connolly & Callaghan Limited,441, 16-May-2016
541,Revenue,CAHD,Bed and Breakfast,Bed & Breakfast,Connolly & Callaghan Limited,441, 16-May-2016
542,Revenue,CAHD,Bed and Breakfast,Bed & Breakfast,Connolly & Callaghan Limited,476, 16-May-2016
543,Revenue,CAHD,Bed and Breakfast,Bed & Breakfast,Connolly & Callaghan Limited,651, 16-May-2016
544,Revenue,CAHD,Bed and Breakfast,Bed & Breakfast,Connolly & Callaghan Limited,546, 16-May-2016
545,Revenue,CAHD,Bed and Breakfast,Bed & Breakfast,Connolly & Callaghan Limited,616, 17-May-2016
546,Revenue,CAHD,Bed and Breakfast,Bed & Breakfast,Connolly & Callaghan Limited,616, 16-May-2016
547,Revenue,CAHD,Bed and Breakfast,Bed & Breakfast,Connolly & Callaghan Limited,511, 24-May-2016
548,Revenue,CAHD,Bed and Breakfast,Bed & Breakfast,Connolly & Callaghan Limited,441, 24-May-2016
549,Revenue,CAHD,Bed and Breakfast,Bed & Breakfast,Connolly & Callaghan Limited,441, 24-May-2016
550,Revenue,CAHD,Bed and Breakfast,Bed & Breakfast,Connolly & Callaghan Limited,476, 24-May-2016
551,Revenue,CAHD,Bed and Breakfast,Bed & Breakfast,Connolly & Callaghan Limited,511, 24-May-2016
552,Revenue,CAHD,Bed and Breakfast,Bed & Breakfast,Connolly & Callaghan Limited,441, 24-May-2016
553,Revenue,CAHD,Bed and Breakfast,Bed & Breakfast,Connolly & Callaghan Limited,476, 24-May-2016
554,Revenue,CAHD,Bed and Breakfast,Bed & Breakfast,Connolly & Callaghan Limited,651, 24-May-2016
555,Revenue,CAHD,Bed and Breakfast,Bed & Breakfast,Connolly & Callaghan Limited,546, 24-May-2016
556,Revenue,CAHD,Bed and Breakfast,Bed & Breakfast,Connolly & Callaghan Limited,616, 24-May-2016
557,Revenue,CAHD,Bed and Breakfast,Bed & Breakfast,Connolly & Callaghan Limited,616, 24-May-2016
558,Revenue,CAHD,Bed and Breakfast,Bed & Breakfast,Connolly & Callaghan Limited,455, 25-May-2016
559,Revenue,CAHD,Bed and Breakfast,Bed & Breakfast,Connolly & Callaghan Limited,441, 31-May-2016
560,Revenue,CAHD,Bed and Breakfast,Bed & Breakfast,Connolly & Callaghan Limited,441, 31-May-2016
561,Revenue,CAHD,Bed and Breakfast,Bed & Breakfast,Connolly & Callaghan Limited,476, 31-May-2016
562,Revenue,CAHD,Bed and Breakfast,Bed & Breakfast,Connolly & Callaghan Limited,650.99, 31-May-2016
563,Revenue,CAHD,Bed and Breakfast,Bed & Breakfast,Connolly & Callaghan Limited,546, 31-May-2016
564,Revenue,CAHD,Bed Purchasing - S28A - Over 65- North,Permanent Residential,Cream Ii Ltd  Longrun House,8206.76, 10-May-2016
565,Revenue,CAHD,Bed Purchasing - South,Permanent Residential,Cream Ii Ltd  Longrun House,3083.64, 10-May-2016
566,Revenue,CAHD,Jointly Funded H&SC Packages,Permanent Residential,Cream Ii Ltd  Longrun House,2683.04, 10-May-2016
567,Revenue,CAHD,Bed purchasing -S28A  Under 65 - North,Permanent Residential,Creedy Court,9527.44, 10-May-2016
568,Revenue,CAHD,Bed Purchasing - S28A - Over 65- North,Permanent Residential,Creedy Court,7901.72, 10-May-2016
569,Revenue,CAHD,Bed Purchasing - North,Permanent Residential,Creedy Court,12895.24, 10-May-2016
570,Revenue,CAHD,CSC - Residential Placements,Permanent Residential,Crossways Care Limited,18449.43, 26-May-2016
571,Revenue,CAHD,Independent Special Placements - Pre 16,Other Private Contractors,Cruckton Hall School,39234, 23-May-2016
572,Revenue,CAHD,Training Budget - Children`s Social Serv,Training Expenses,Cruidin Training and Consultancy Ltd,3155.35, 04-May-2016
573,Revenue,CAHD,Training Budget - Children`s Social Serv,Training Expenses,Cruidin Training and Consultancy Ltd,3153, 25-May-2016
574,Revenue,CAHD,Brokerage and Information Service,Grants to Voluntary Bodies,Curo Care & Support,33845, 17-May-2016
575,Revenue,CAHD,Statemented Support Equipment,Educational Supplies & Equipment,Dad In A Shed,547.98, 27-May-2016
576,Revenue,CAHD,Bed Purchasing - South,Permanent Residential,Daneswood,11269.36, 10-May-2016
577,Revenue,CAHD,Bed Purchasing - North,Permanent Residential,Daneswood,9343.92, 10-May-2016
578,Revenue,CAHD,Bed Purchasing - Elderly S117- North,Permanent Nursing,Danshell Healthcare Group,10285.72, 10-May-2016
579,Revenue,CAHD,Jointly Funded H&SC Packages,Permanent Nursing,Danshell Healthcare Group,1526.28, 10-May-2016
580,Revenue,CAHD,Learning Difficulties PSL,Other Supplies & Services,Individual,2105.5, 20-May-2016
581,Revenue,CAHD,HQ Office & Communications (ICT),Membership Fees,Derbyshire County Council,1000, 26-May-2016
582,Revenue,CAHD,Home Care - Elderly - South,Supported Living,Design House,2711.04, 10-May-2016
583,Revenue,CAHD,Home Care - Elderly - South,Supported Living,Design House,2898.08, 10-May-2016
584,Revenue,CAHD,Home Care - Elderly - South,Supported Living,Design House,2964.08, 10-May-2016
585,Revenue,CAHD,Home Care - Elderly - South,Supported Living,Design House,2832.08, 10-May-2016
586,Revenue,CAHD,Home Care - Elderly - South,Supported Living,Design House,2496.52, 10-May-2016
587,Revenue,CAHD,Home Care - Elderly - South,Supported Living,Design House,2496.52, 10-May-2016
588,Revenue,CAHD,Home Care - Elderly - South,Supported Living,Design House,2381.04, 10-May-2016
589,Revenue,CAHD,Home Care - Elderly - South,Supported Living,Design House,3852.08, 10-May-2016
590,Revenue,CAHD,Home Care - Elderly - South,Supported Living,Design House,2744.04, 10-May-2016
591,Revenue,CAHD,Home Care - Elderly - South,Supported Living,Design House,2793.56, 10-May-2016
592,Revenue,CAHD,Home Care - Elderly - South,Supported Living,Design House,2135.92, 10-May-2016
593,Revenue,CAHD,Home Care - Elderly - South,Supported Living,Design House,2135.92, 10-May-2016
594,Revenue,CAHD,Bed Purchasing - South,Permanent Residential,Devon & Cornwall Autistic Community Trus,9119.5, 10-May-2016
595,Revenue,CAHD,Home Care - Elderly - South,Day Care / Social Activities,Dhek Bhal,139.16, 04-May-2016
596,Revenue,CAHD,Home Care - Elderly - South,Other Small Contracts,Dhek Bhal,273.35, 04-May-2016
597,Revenue,CAHD,Home Care - Elderly - North,Other Small Contracts,Dhek Bhal,119.28, 04-May-2016
598,Revenue,CAHD,Home Care - Elderly - South,Day Care / Social Activities,Dhek Bhal,119.28, 11-May-2016
599,Revenue,CAHD,Home Care - Elderly - South,Other Small Contracts,Dhek Bhal,278.32, 11-May-2016
600,Revenue,CAHD,Home Care - Elderly - North,Other Small Contracts,Dhek Bhal,119.28, 11-May-2016
601,Revenue,CAHD,Home Care - Elderly - South,Day Care / Social Activities,Dhek Bhal,253.47, 11-May-2016
602,Revenue,CAHD,Home Care - Elderly - South,Other Small Contracts,Dhek Bhal,198.8, 11-May-2016
603,Revenue,CAHD,Home Care - Elderly - North,Other Small Contracts,Dhek Bhal,119.28, 11-May-2016
604,Revenue,CAHD,Home Care - Elderly - South,Day Care / Social Activities,Dhek Bhal,198.8, 17-May-2016
605,Revenue,CAHD,Home Care - Elderly - South,Other Small Contracts,Dhek Bhal,238.56, 17-May-2016
606,Revenue,CAHD,Home Care - Elderly - North,Other Small Contracts,Dhek Bhal,119.28, 17-May-2016
607,Revenue,CAHD,Home Care - Elderly - South,Day Care / Social Activities,Dhek Bhal,208.74, 24-May-2016
608,Revenue,CAHD,Home Care - Elderly - South,Other Small Contracts,Dhek Bhal,198.8, 24-May-2016
609,Revenue,CAHD,Home Care - Elderly - North,Other Small Contracts,Dhek Bhal,119.28, 24-May-2016
610,Revenue,CAHD,Bed Purchasing - South,Permanent Residential,Dimensions  Suite 2,5005.24, 10-May-2016
611,Revenue,CAHD,Home Care - Elderly - South,Day Care / Social Activities,DoCare Ltd,20.12, 13-May-2016
612,Revenue,CAHD,Home Care - Elderly - South,Other Small Contracts,DoCare Ltd,679.05, 13-May-2016
613,Revenue,CAHD,Home Care - Elderly - North,Other Small Contracts,DoCare Ltd,2318.83, 13-May-2016
614,Revenue,CAHD,Home Care - Elderly - South,Day Care / Social Activities,DoCare Ltd,20.12, 12-May-2016
615,Revenue,CAHD,Home Care - Elderly - South,Other Small Contracts,DoCare Ltd,593.54, 12-May-2016
616,Revenue,CAHD,Home Care - Elderly - North,Other Small Contracts,DoCare Ltd,2228.29, 12-May-2016
617,Revenue,CAHD,Home Care - Elderly - South,Day Care / Social Activities,DoCare Ltd,70.42, 12-May-2016
618,Revenue,CAHD,Home Care - Elderly - South,Other Small Contracts,DoCare Ltd,638.81, 12-May-2016
619,Revenue,CAHD,Home Care - Elderly - North,Other Small Contracts,DoCare Ltd,2449.61, 12-May-2016
620,Revenue,CAHD,Home Care - Elderly - South,Day Care / Social Activities,DoCare Ltd,71.4, 12-May-2016
621,Revenue,CAHD,Home Care - Elderly - South,Other Small Contracts,DoCare Ltd,657.9, 12-May-2016
622,Revenue,CAHD,Home Care - Elderly - North,Other Small Contracts,DoCare Ltd,2550, 12-May-2016
623,Revenue,CAHD,Home Care - Elderly - South,Day Care / Social Activities,DoCare Ltd,71.4, 13-May-2016
624,Revenue,CAHD,Home Care - Elderly - South,Other Small Contracts,DoCare Ltd,668.1, 13-May-2016
625,Revenue,CAHD,Home Care - Elderly - North,Other Small Contracts,DoCare Ltd,2228.7, 13-May-2016
626,Revenue,CAHD,Home Care - Elderly - South,Day Care / Social Activities,DoCare Ltd,71.4, 13-May-2016
627,Revenue,CAHD,Home Care - Elderly - South,Other Small Contracts,DoCare Ltd,652.8, 13-May-2016
628,Revenue,CAHD,Home Care - Elderly - North,Other Small Contracts,DoCare Ltd,2223.6, 13-May-2016
629,Revenue,CAHD,Quality and Standards,Conference Expenses,DoubleTree by Hilton London-Westminster,4644.63, 09-May-2016
630,Revenue,CAHD,Statemented Support Academies,Schools Funding,Downend School,591.64, 31-May-2016
631,Revenue,CAHD,Statemented Support Academies,Schools Funding,Downend School,1008.3, 31-May-2016
632,Revenue,CAHD,Statemented Support Academies,Schools Funding,Downend School,1083.3, 31-May-2016
633,Revenue,CAHD,Statemented Support Academies,Schools Funding,Downend School,583.3, 31-May-2016
634,Revenue,CAHD,Statemented Support Academies,Schools Funding,Downend School,583.3, 31-May-2016
635,Revenue,CAHD,Social Lettings Agency,Other Supplies & Services,Individual,605.64, 24-May-2016
636,Revenue,CAHD,CSC-Adoption Support Fund,Post Adoption,Individual,1379.2, 27-May-2016
637,Revenue,CAHD,MH Purchasing - Younger,Permanent Residential,Dunraven House,1905.28, 10-May-2016
638,Revenue,CAHD,Bed and Breakfast,Bed & Breakfast,E J Bartlett,420, 03-May-2016
639,Revenue,CAHD,Bed and Breakfast,Bed & Breakfast,E J Bartlett,420, 03-May-2016
640,Revenue,CAHD,Bed and Breakfast,Bed & Breakfast,E J Bartlett,679, 03-May-2016
641,Revenue,CAHD,Bed and Breakfast,Bed & Breakfast,E J Bartlett,420, 17-May-2016
642,Revenue,CAHD,Bed and Breakfast,Bed & Breakfast,E J Bartlett,420, 09-May-2016
643,Revenue,CAHD,Bed and Breakfast,Bed & Breakfast,E J Bartlett,679, 09-May-2016
644,Revenue,CAHD,Bed and Breakfast,Bed & Breakfast,E J Bartlett,420, 20-May-2016
645,Revenue,CAHD,Bed and Breakfast,Bed & Breakfast,E J Bartlett,420, 17-May-2016
646,Revenue,CAHD,Bed and Breakfast,Bed & Breakfast,E J Bartlett,679, 17-May-2016
647,Revenue,CAHD,Bed and Breakfast,Bed & Breakfast,E J Bartlett,420, 24-May-2016
648,Revenue,CAHD,Bed and Breakfast,Bed & Breakfast,E J Bartlett,679, 24-May-2016
649,Revenue,CAHD,Bed and Breakfast,Bed & Breakfast,E J Bartlett,420, 31-May-2016
650,Revenue,CAHD,Bed and Breakfast,Bed & Breakfast,E J Bartlett,679, 31-May-2016
651,Revenue,CAHD,Bed Purchasing - North,Permanent Residential,East Court,2273.2, 10-May-2016
652,Revenue,CAHD,Home Care - Elderly - South,Day Care / Social Activities,Easton Community Centre,533.28, 10-May-2016
653,Revenue,CAHD,Home Care - Elderly - South,Day Care / Social Activities,Easton Community Centre,533.28, 10-May-2016
654,Revenue,CAHD,Home Care - Elderly - North,Day Care / Social Activities,Easton Community Centre,533.28, 10-May-2016
655,Revenue,CAHD,Home Care - Elderly - North,Day Care / Social Activities,Easton Community Centre,533.28, 10-May-2016
656,Revenue,CAHD,Home Care - Elderly - South,Day Care / Social Activities,Eclipse Office Park,502.08, 10-May-2016
657,Revenue,CAHD,Home Care - Elderly - North,Day Care / Social Activities,Eclipse Office Park,1004.16, 10-May-2016
658,Revenue,CAHD,Home Care - Elderly - South,Day Care / Social Activities,Eclipse Office Park,627.6, 10-May-2016
659,Revenue,CAHD,Home Care - Elderly - South,Day Care / Social Activities,Eclipse Office Park,502.08, 10-May-2016
660,Revenue,CAHD,Home Care - Elderly - South,Day Care / Social Activities,Eclipse Office Park,502.08, 10-May-2016
661,Revenue,CAHD,Home Care - Elderly - South,Day Care / Social Activities,Eclipse Office Park,878.64, 10-May-2016
662,Revenue,CAHD,Home Care - Elderly - South,Day Care / Social Activities,Eclipse Office Park,753.12, 10-May-2016
663,Revenue,CAHD,Home Care - Elderly - South,Day Care / Social Activities,Eclipse Office Park,878.64, 10-May-2016
664,Revenue,CAHD,Home Care - Elderly - South,Day Care / Social Activities,Eclipse Office Park,502.08, 10-May-2016
665,Revenue,CAHD,Home Care - Elderly - South,Day Care / Social Activities,Eclipse Office Park,502.08, 10-May-2016
666,Revenue,CAHD,Home Care - Elderly - South,Day Care / Social Activities,Eclipse Office Park,1255.2, 10-May-2016
667,Revenue,CAHD,Home Care - Elderly - South,Day Care / Social Activities,Eclipse Office Park,753.12, 10-May-2016
668,Revenue,CAHD,Home Care - Elderly - South,Day Care / Social Activities,Eclipse Office Park,878.64, 10-May-2016
669,Revenue,CAHD,Home Care - Elderly - South,Day Care / Social Activities,Eclipse Office Park,878.64, 10-May-2016
670,Revenue,CAHD,Bed Purchasing - Southmead Hospital,Permanent Residential,Edgecumbe Lodge,1800, 10-May-2016
671,Revenue,CAHD,Bed Purchasing - South,Permanent Residential,Edgecumbe Lodge,1216.72, 10-May-2016
672,Revenue,CAHD,Bed Purchasing - South,Permanent Residential,Edgecumbe Lodge,1073.52, 10-May-2016
673,Revenue,CAHD,Bed Purchasing - Southmead Hospital,Permanent Residential,Edgecumbe Lodge,1628.76, 10-May-2016
674,Revenue,CAHD,Bed Purchasing - North,Permanent Residential,Edgecumbe Lodge,1039.76, 10-May-2016
675,Revenue,CAHD,Bed Purchasing - South,Permanent Residential,Edgecumbe Lodge,1590.12, 10-May-2016
676,Revenue,CAHD,Bed Purchasing - South,Permanent Residential,Edgecumbe Lodge,1160.12, 10-May-2016
677,Revenue,CAHD,Bed Purchasing - North,Permanent Residential,Edgecumbe Lodge,1417.28, 10-May-2016
678,Revenue,CAHD,Bed Purchasing - South,Permanent Residential,Edgemont House Ltd,1163.88, 10-May-2016
679,Revenue,CAHD,Bed Purchasing - Southmead Hospital,Permanent Residential,Edgemont House Ltd,1329.68, 10-May-2016
680,Revenue,CAHD,Bed Purchasing - South,Permanent Residential,Edgemont House Ltd,1332.56, 10-May-2016
681,Revenue,CAHD,Bed Purchasing - South,Permanent Nursing,Edgemont View Nursing Home,1380.64, 10-May-2016
682,Revenue,CAHD,Bed Purchasing - South,Permanent Nursing,Edgemont View Nursing Home,1776.28, 10-May-2016
683,Revenue,CAHD,Bed Purchasing - South,Permanent Nursing,Edgemont View Nursing Home,1660.08, 10-May-2016
684,Revenue,CAHD,Bed Purchasing - South,Permanent Nursing,Edgemont View Nursing Home,34170.21, 10-May-2016
685,Revenue,CAHD,Bed Purchasing - South,Permanent Nursing,Edgemont View Nursing Home,1486.2, 10-May-2016
686,Revenue,CAHD,Home Care - Elderly - South,Day Care / Social Activities,Elite Home Care Ltd,98.56, 10-May-2016
687,Revenue,CAHD,Home Care - Elderly - South,Other Small Contracts,Elite Home Care Ltd,6787.2, 10-May-2016
688,Revenue,CAHD,Home Care - Elderly - South,Day Care / Social Activities,Elite Home Care Ltd,98.56, 17-May-2016
689,Revenue,CAHD,Home Care - Elderly - South,Other Small Contracts,Elite Home Care Ltd,7194.88, 17-May-2016
690,Revenue,CAHD,Home Care - Elderly - South,Day Care / Social Activities,Elite Home Care Ltd,98.56, 17-May-2016
691,Revenue,CAHD,Home Care - Elderly - South,Other Small Contracts,Elite Home Care Ltd,7427.84, 17-May-2016
692,Revenue,CAHD,Home Care - Elderly - South,Day Care / Social Activities,Elite Home Care Ltd,98.56, 24-May-2016
693,Revenue,CAHD,Home Care - Elderly - South,Other Small Contracts,Elite Home Care Ltd,7356.16, 24-May-2016
694,Revenue,CAHD,"Physical Activity, Nutrition & Obesity",Project Funding,England Athletics Limited,1800, 25-May-2016
695,Revenue,CAHD,CSC - Agency Fostering,Foster Parent Allowances,Enhanced Foster Care Ltd,4500, 10-May-2016
696,Revenue,CAHD,CSC - Agency Fostering,Foster Parent Allowances,Enhanced Foster Care Ltd,4650, 26-May-2016
697,Revenue,CAHD,Bed Purchasing - North,Permanent Residential,Epworth House,1060.8, 10-May-2016
698,Revenue,CAHD,Home Care - Elderly - South,Other Small Contracts,Everycare (Bristol) Ltd,3813.89, 04-May-2016
699,Revenue,CAHD,Home Care - Elderly - North,Other Small Contracts,Everycare (Bristol) Ltd,1380.3, 04-May-2016
700,Revenue,CAHD,Home Care - Elderly - South,Other Small Contracts,Everycare (Bristol) Ltd,3741.09, 10-May-2016
701,Revenue,CAHD,Home Care - Elderly - North,Other Small Contracts,Everycare (Bristol) Ltd,1896.6, 10-May-2016
702,Revenue,CAHD,Home Care - Elderly - South,Other Small Contracts,Everycare (Bristol) Ltd,3878.49, 24-May-2016
703,Revenue,CAHD,Home Care - Elderly - North,Other Small Contracts,Everycare (Bristol) Ltd,1800.68, 24-May-2016
704,Revenue,CAHD,Home Care - Elderly - South,Other Small Contracts,Everycare (Bristol) Ltd,3863.17, 24-May-2016
705,Revenue,CAHD,Home Care - Elderly - North,Other Small Contracts,Everycare (Bristol) Ltd,1722.2, 24-May-2016
706,Revenue,CAHD,Home Care - Elderly - South,Other Small Contracts,Everycare (Bristol) Ltd,3935.27, 26-May-2016
707,Revenue,CAHD,Home Care - Elderly - North,Other Small Contracts,Everycare (Bristol) Ltd,1682.96, 26-May-2016
708,Revenue,CAHD,Information Systems - Software,Telephones,Evolving Networks Ltd,945, 13-May-2016
709,Revenue,CAHD,Bed Purchasing - South,Permanent Nursing,Fairview Court,2469.36, 10-May-2016
710,Revenue,CAHD,Bed Purchasing - Southmead Hospital,Permanent Nursing,Fairview Court,1910.88, 10-May-2016
711,Revenue,CAHD,Bed Purchasing - Southmead Hospital,Permanent Nursing,Fairview Court,2171.72, 10-May-2016
712,Revenue,CAHD,Bed Purchasing - South,Permanent Nursing,Fairview Court,1110.52, 10-May-2016
713,Revenue,CAHD,Bed purchasing - Elderly S117 - South,Permanent Nursing,Fairview Court,2040, 10-May-2016
714,Revenue,CAHD,Bed Purchasing - South,Permanent Nursing,Fairview Court,1566.4, 10-May-2016
715,Revenue,CAHD,Bed Purchasing - South,Permanent Nursing,Fairview Court,2224.72, 10-May-2016
716,Revenue,CAHD,Bed Purchasing - South,Permanent Nursing,Fairview Court,1894.88, 10-May-2016
717,Revenue,CAHD,Bed Purchasing - South,Permanent Nursing,Fairview Court,1208.84, 10-May-2016
718,Revenue,CAHD,Bed Purchasing - North,Permanent Nursing,Fairview Court,2485.36, 10-May-2016
719,Revenue,CAHD,Bed Purchasing - North,Permanent Nursing,Fairview Court,1242.68, 10-May-2016
720,Revenue,CAHD,Bed Purchasing - South,Permanent Nursing,Fairview Court,1807.52, 10-May-2016
721,Revenue,CAHD,Bed Purchasing - South,Permanent Nursing,Fairview Court,2035.76, 10-May-2016
722,Revenue,CAHD,Bed Purchasing - South,Permanent Nursing,Fairview Court,1894.88, 10-May-2016
723,Revenue,CAHD,Bed purchasing - Elderly S117 - South,Permanent Residential,Fairview House,1963.92, 10-May-2016
724,Revenue,CAHD,Bed Purchasing - Southmead Hospital,Permanent Residential,Fairview House,1053.76, 10-May-2016
725,Revenue,CAHD,Bed Purchasing - South,Permanent Residential,Fairview House,879.6, 10-May-2016
726,Revenue,CAHD,Bed Purchasing - South,Permanent Residential,Fairview House,1255.49, 10-May-2016
727,Revenue,CAHD,Bed Purchasing - South,Permanent Residential,Fairview House,1285.2, 10-May-2016
728,Revenue,CAHD,Bed Purchasing - South,Permanent Residential,Fairview House,983.68, 10-May-2016
729,Revenue,CAHD,Bed Purchasing - South,Permanent Residential,Fairview House,1238.52, 10-May-2016
730,Revenue,CAHD,Bed Purchasing - South,Permanent Residential,Fairview House,1146.52, 10-May-2016
731,Revenue,CAHD,Bed Purchasing - South,Permanent Residential,Fairview House,1365, 10-May-2016
732,Revenue,CAHD,Bed Purchasing - South,Permanent Residential,Fairview House,1054.6, 10-May-2016
733,Revenue,CAHD,Bed Purchasing - South,Permanent Residential,Fairview House,1475.08, 10-May-2016
734,Revenue,CAHD,Bed Purchasing - Southmead Hospital,Permanent Residential,Fairview House,1421.72, 10-May-2016
735,Revenue,CAHD,Bed Purchasing - Southmead Hospital,Permanent Residential,Faith House,571.68, 10-May-2016
736,Revenue,CAHD,Bed Purchasing - Southmead Hospital,Respite Planned - Residential,Faith House,677.67, 10-May-2016
737,Revenue,CAHD,Bed Purchasing - Southmead Hospital,Permanent Residential,Faith House,1254.2, 10-May-2016
738,Revenue,CAHD,Bed Purchasing - North,Permanent Residential,Fernbank,7900.6, 10-May-2016
739,Revenue,CAHD,Bed Purchasing - North,Permanent Nursing,Field House Care Home,2554.96, 10-May-2016
740,Revenue,CAHD,Bed Purchasing - Southmead Hospital,Permanent Nursing,Field House Care Home,17149.44, 10-May-2016
741,Revenue,CAHD,Statemented Support Payments to OLAs,Other L.A.'s - General,Filton Avenue Primary School,691.64, 31-May-2016
742,Revenue,CAHD,Home Care - Elderly - South,Other Small Contracts,Firstpoint Homecare Ltd,1762.17, 11-May-2016
743,Revenue,CAHD,Home Care - Elderly - North,Day Care / Social Activities,Firstpoint Homecare Ltd,116.7, 11-May-2016
744,Revenue,CAHD,Home Care - Elderly - North,Other Small Contracts,Firstpoint Homecare Ltd,272.3, 11-May-2016
745,Revenue,CAHD,CSC - Agency Fostering,Foster Parent Allowances,Foster Care Associates Limited,2332.75, 26-May-2016
746,Revenue,CAHD,CSC - Agency Fostering,Foster Parent Allowances,Foster Care Associates Limited,4131.68, 26-May-2016
747,Revenue,CAHD,CSC - Agency Fostering,Foster Parent Allowances,Foster Care Associates Limited,5303.44, 26-May-2016
748,Revenue,CAHD,Bed Purchasing - South,Permanent Residential,Four Seasons Health Care,1147.24, 10-May-2016
749,Revenue,CAHD,Home Care - Elderly - South,Day Care / Social Activities,Fourways Care Limited,385.6, 09-May-2016
750,Revenue,CAHD,Home Care - Elderly - South,Other Small Contracts,Fourways Care Limited,4010.24, 09-May-2016
751,Revenue,CAHD,Home Care - Elderly - North,Other Small Contracts,Fourways Care Limited,2066.16, 09-May-2016
752,Revenue,CAHD,Younger MH non-res purchasing,Day Care / Social Activities,Fourways Care Limited,77.12, 09-May-2016
753,Revenue,CAHD,Younger MH non-res purchasing,Other Small Contracts,Fourways Care Limited,86.76, 09-May-2016
754,Revenue,CAHD,Home Care - Elderly - South,Day Care / Social Activities,Fourways Care Limited,395.24, 16-May-2016
755,Revenue,CAHD,Home Care - Elderly - South,Other Small Contracts,Fourways Care Limited,3860.82, 16-May-2016
756,Revenue,CAHD,Home Care - Elderly - North,Other Small Contracts,Fourways Care Limited,2747.24, 16-May-2016
757,Revenue,CAHD,Younger MH non-res purchasing,Day Care / Social Activities,Fourways Care Limited,77.12, 16-May-2016
758,Revenue,CAHD,Younger MH non-res purchasing,Other Small Contracts,Fourways Care Limited,86.76, 16-May-2016
759,Revenue,CAHD,Home Care - Elderly - South,Day Care / Social Activities,Fourways Care Limited,395.24, 17-May-2016
760,Revenue,CAHD,Home Care - Elderly - South,Other Small Contracts,Fourways Care Limited,3769.24, 17-May-2016
761,Revenue,CAHD,Home Care - Elderly - North,Other Small Contracts,Fourways Care Limited,3720.88, 17-May-2016
762,Revenue,CAHD,Younger MH non-res purchasing,Day Care / Social Activities,Fourways Care Limited,77.12, 17-May-2016
763,Revenue,CAHD,Younger MH non-res purchasing,Other Small Contracts,Fourways Care Limited,110.86, 17-May-2016
764,Revenue,CAHD,Home Care - Elderly - South,Day Care / Social Activities,Fourways Care Limited,433.8, 26-May-2016
765,Revenue,CAHD,Home Care - Elderly - South,Other Small Contracts,Fourways Care Limited,3764.42, 26-May-2016
766,Revenue,CAHD,Home Care - Elderly - North,Other Small Contracts,Fourways Care Limited,3921.8, 26-May-2016
767,Revenue,CAHD,Younger MH non-res purchasing,Day Care / Social Activities,Fourways Care Limited,77.12, 26-May-2016
768,Revenue,CAHD,Younger MH non-res purchasing,Other Small Contracts,Fourways Care Limited,159.06, 26-May-2016
769,Revenue,CAHD,Freeways,Permanent Residential,Freeways Trust Limited,3705.32, 26-May-2016
770,Revenue,CAHD,Freeways,Permanent Residential,Freeways Trust Limited,2331.13, 26-May-2016
771,Revenue,CAHD,Freeways,Permanent Residential,Freeways Trust Limited,2409.93, 26-May-2016
772,Revenue,CAHD,Freeways,Permanent Residential,Freeways Trust Limited,2993.82, 26-May-2016
773,Revenue,CAHD,Freeways,Permanent Residential,Freeways Trust Limited,2331.13, 26-May-2016
774,Revenue,CAHD,Freeways,Permanent Residential,Freeways Trust Limited,3454.92, 26-May-2016
775,Revenue,CAHD,Freeways,Permanent Residential,Freeways Trust Limited,2731.73, 26-May-2016
776,Revenue,CAHD,Freeways,Permanent Residential,Freeways Trust Limited,3614.51, 26-May-2016
777,Revenue,CAHD,Freeways,Permanent Residential,Freeways Trust Limited,2731.73, 26-May-2016
778,Revenue,CAHD,Freeways,Permanent Residential,Freeways Trust Limited,2753.81, 26-May-2016
779,Revenue,CAHD,Freeways,Permanent Residential,Freeways Trust Limited,3508.85, 26-May-2016
780,Revenue,CAHD,Freeways,Permanent Residential,Freeways Trust Limited,3158.33, 26-May-2016
781,Revenue,CAHD,Freeways,Permanent Residential,Freeways Trust Limited,3768.81, 26-May-2016
782,Revenue,CAHD,Freeways,Permanent Residential,Freeways Trust Limited,7455.24, 26-May-2016
783,Revenue,CAHD,Freeways,Permanent Residential,Freeways Trust Limited,3662.86, 12-May-2016
784,Revenue,CAHD,Freeways,Permanent Residential,Freeways Trust Limited,2302.33, 12-May-2016
785,Revenue,CAHD,Freeways,Permanent Residential,Freeways Trust Limited,2380.66, 12-May-2016
786,Revenue,CAHD,Freeways,Permanent Residential,Freeways Trust Limited,2958.04, 12-May-2016
787,Revenue,CAHD,Freeways,Permanent Residential,Freeways Trust Limited,2302.33, 12-May-2016
788,Revenue,CAHD,Freeways,Permanent Residential,Freeways Trust Limited,3408.38, 12-May-2016
789,Revenue,CAHD,Freeways,Permanent Residential,Freeways Trust Limited,2702.93, 12-May-2016
790,Revenue,CAHD,Freeways,Permanent Residential,Freeways Trust Limited,3572.34, 12-May-2016
791,Revenue,CAHD,Freeways,Permanent Residential,Freeways Trust Limited,2702.93, 12-May-2016
792,Revenue,CAHD,Freeways,Permanent Residential,Freeways Trust Limited,2720.55, 12-May-2016
793,Revenue,CAHD,Freeways,Permanent Residential,Freeways Trust Limited,3467.64, 12-May-2016
794,Revenue,CAHD,Freeways,Permanent Residential,Freeways Trust Limited,3121.65, 12-May-2016
795,Revenue,CAHD,Freeways,Permanent Residential,Freeways Trust Limited,3642.68, 12-May-2016
796,Revenue,CAHD,Freeways,Permanent Residential,Freeways Trust Limited,7376.61, 12-May-2016
797,Revenue,CAHD,Bed Purchasing - North,Permanent Residential,Freeways Trust Ltd,2935.68, 10-May-2016
798,Revenue,CAHD,Bed purchasing - S28A Under 65 - South,Permanent Residential,Freeways Trust Ltd,2997.08, 10-May-2016
799,Revenue,CAHD,Bed Purchasing - North,Permanent Residential,Freeways Trust Ltd,3212.08, 10-May-2016
800,Revenue,CAHD,Bed Purchasing - North,Permanent Residential,Freeways Trust Ltd,2348.56, 10-May-2016
801,Revenue,CAHD,Bed Purchasing - North,Permanent Residential,Freeways Trust Ltd,2803.84, 10-May-2016
802,Revenue,CAHD,Bed Purchasing - South,Permanent Residential,Freeways Trust Ltd,3347.36, 10-May-2016
803,Revenue,CAHD,Bed Purchasing - North,Permanent Residential,Freeways Trust Ltd,2307.2, 10-May-2016
804,Revenue,CAHD,Bed Purchasing - South,Permanent Residential,Freeways Trust Ltd,2459.08, 10-May-2016
805,Revenue,CAHD,Bed Purchasing - North,Permanent Residential,Freeways Trust Ltd,2725.04, 10-May-2016
806,Revenue,CAHD,Bed Purchasing - North,Permanent Residential,Freeways Trust Ltd,3218.36, 10-May-2016
807,Revenue,CAHD,18-25 Year Olds,Permanent Residential,Freeways Trust Ltd,3456, 10-May-2016
808,Revenue,CAHD,Bed Purchasing - North,Permanent Residential,Freeways Trust Ltd,3924.12, 10-May-2016
809,Revenue,CAHD,Pathway 3 - (Complex Beds),Permanent Nursing,Frenchay House,3131, 18-May-2016
810,Revenue,CAHD,Pathway 3 - (Complex Beds),Permanent Nursing,Frenchay House,3162, 23-May-2016
811,Revenue,CAHD,Bed Purchasing - South,Permanent Nursing,Frenchay Park Nursing Home,1524.92, 10-May-2016
812,Revenue,CAHD,Bed Purchasing - South,Permanent Nursing,Fshc  1St Floor,1067.64, 10-May-2016
813,Revenue,CAHD,Bed Purchasing - Southmead Hospital,Permanent Residential,Fshc  1St Floor,897.96, 10-May-2016
814,Revenue,CAHD,Bed Purchasing - South,Permanent Nursing,Fshc  1St Floor,1021.32, 10-May-2016
815,Revenue,CAHD,Bed Purchasing - Southmead Hospital,Permanent Nursing,Fshc  1St Floor,1324.44, 10-May-2016
816,Revenue,CAHD,Bed Purchasing - Southmead Hospital,Permanent Nursing,Fshc  1St Floor,1371.08, 10-May-2016
817,Revenue,CAHD,Bed Purchasing - Southmead Hospital,Permanent Nursing,Fshc  1St Floor,1407.08, 10-May-2016
818,Revenue,CAHD,Bed Purchasing - Southmead Hospital,Permanent Nursing,Fshc  1St Floor,1407.08, 10-May-2016
819,Revenue,CAHD,Bed Purchasing - Southmead Hospital,Permanent Nursing,Fshc  1St Floor,1082.08, 10-May-2016
820,Revenue,CAHD,Bed Purchasing - South,Permanent Nursing,Fshc  1St Floor,1759.84, 10-May-2016
821,Revenue,CAHD,Bed Purchasing - Southmead Hospital,Permanent Nursing,Fshc  1St Floor,1759.84, 10-May-2016
822,Revenue,CAHD,Bed Purchasing - Southmead Hospital,Permanent Nursing,Fshc  1St Floor,1407.08, 10-May-2016
823,Revenue,CAHD,Bed Purchasing - Southmead Hospital,Permanent Nursing,Fshc  1St Floor,1396.36, 10-May-2016
824,Revenue,CAHD,Bed Purchasing - Southmead Hospital,Permanent Nursing,Fshc  1St Floor,698.18, 10-May-2016
825,Revenue,CAHD,Bed Purchasing - South,Permanent Nursing,Fshc  1St Floor,1361.88, 10-May-2016
826,Revenue,CAHD,Bed Purchasing - Southmead Hospital,Permanent Nursing,Fshc  1St Floor,1407.08, 10-May-2016
827,Revenue,CAHD,Bed Purchasing - South,Permanent Nursing,Fshc  1St Floor,1186.8, 10-May-2016
828,Revenue,CAHD,Bed Purchasing - North,Permanent Nursing,Fshc  1St Floor,1929.88, 10-May-2016
829,Revenue,CAHD,Bed Purchasing - Southmead Hospital,Permanent Nursing,Fshc  1St Floor,1222.52, 10-May-2016
830,Revenue,CAHD,Bed Purchasing - South,Permanent Nursing,Fshc  1St Floor,1407.08, 10-May-2016
831,Revenue,CAHD,Bed Purchasing - South,Permanent Nursing,Fshc  1St Floor,1371.92, 10-May-2016
832,Revenue,CAHD,Bed Purchasing - North,Permanent Nursing,Fshc  1St Floor,1624.96, 10-May-2016
833,Revenue,CAHD,Bed Purchasing - Southmead Hospital,Permanent Nursing,Fshc  1St Floor,1407.08, 10-May-2016
834,Revenue,CAHD,Bed Purchasing - North,Permanent Nursing,Fshc  1St Floor,1110.16, 10-May-2016
835,Revenue,CAHD,Bed Purchasing - North,Permanent Residential,Fshc  1St Floor,1277.2, 10-May-2016
836,Revenue,CAHD,Bed Purchasing - Southmead Hospital,Permanent Nursing,Fshc  1St Floor,1037.16, 10-May-2016
837,Revenue,CAHD,Bed Purchasing - Southmead Hospital,Permanent Nursing,Fshc  1St Floor,1642.24, 10-May-2016
838,Revenue,CAHD,Bed Purchasing - Southmead Hospital,Permanent Nursing,Fshc  1St Floor,947.52, 10-May-2016
839,Revenue,CAHD,Bed Purchasing - Southmead Hospital,Permanent Residential,Fshc  1St Floor,1173.92, 10-May-2016
840,Revenue,CAHD,Bed Purchasing - Southmead Hospital,Permanent Nursing,Fshc  1St Floor,1120.64, 10-May-2016
841,Revenue,CAHD,Bed Purchasing - Southmead Hospital,Permanent Nursing,Fshc  1St Floor,1144.6, 10-May-2016
842,Revenue,CAHD,Bed Purchasing - Southmead Hospital,Permanent Nursing,Fshc  1St Floor,1269.84, 10-May-2016
843,Revenue,CAHD,Bed Purchasing - Southmead Hospital,Permanent Nursing,Fshc  1St Floor,1407.08, 10-May-2016
844,Revenue,CAHD,Bed Purchasing - North,Permanent Nursing,Fshc  1St Floor,1342.64, 10-May-2016
845,Revenue,CAHD,Bed Purchasing - North,Permanent Nursing,Fshc  1St Floor,2248.07, 10-May-2016
846,Revenue,CAHD,Bed Purchasing - North,Permanent Nursing,Fshc  1St Floor,1407.08, 10-May-2016
847,Revenue,CAHD,Bed Purchasing - North,Permanent Nursing,Fshc  1St Floor,703.54, 10-May-2016
848,Revenue,CAHD,Bed Purchasing - North,Permanent Residential,Fshc  1St Floor,1261.8, 10-May-2016
849,Revenue,CAHD,Bed Purchasing - South,Permanent Residential,Fshc  1St Floor,1162, 10-May-2016
850,Revenue,CAHD,Bed Purchasing - South,Permanent Residential,Fshc  1St Floor,581, 10-May-2016
851,Revenue,CAHD,Bed Purchasing - Southmead Hospital,Permanent Nursing,Fshc  1St Floor,2108.28, 10-May-2016
852,Revenue,CAHD,Bed Purchasing - Southmead Hospital,Permanent Nursing,Fshc  1St Floor,1407.08, 10-May-2016
853,Revenue,CAHD,Bed Purchasing - Southmead Hospital,Permanent Nursing,Fshc  1St Floor,1407.08, 10-May-2016
854,Revenue,CAHD,Bed Purchasing - North,Permanent Nursing,Fshc  1St Floor,558.32, 10-May-2016
855,Revenue,CAHD,Bed Purchasing - Southmead Hospital,Permanent Residential,Fshc  1St Floor,630.08, 10-May-2016
856,Revenue,CAHD,Bed Purchasing - Southmead Hospital,Permanent Residential,Fshc  1St Floor,1263.96, 10-May-2016
857,Revenue,CAHD,Bed Purchasing - Southmead Hospital,Permanent Residential,Fshc  1St Floor,631.98, 10-May-2016
858,Revenue,CAHD,Bed Purchasing - Southmead Hospital,Permanent Nursing,Fshc  1St Floor,1397.84, 10-May-2016
859,Revenue,CAHD,Bed Purchasing - North,Permanent Nursing,Fshc  1St Floor,1288, 10-May-2016
860,Revenue,CAHD,Bed Purchasing - North,Permanent Nursing,Fshc  1St Floor,920.76, 10-May-2016
861,Revenue,CAHD,Bed Purchasing - North,Permanent Nursing,Fshc  1St Floor,1407.08, 10-May-2016
862,Revenue,CAHD,Bed Purchasing - North,Permanent Nursing,Fshc  1St Floor,1592.28, 10-May-2016
863,Revenue,CAHD,Bed Purchasing - North,Permanent Residential,Fshc  1St Floor,1439.96, 10-May-2016
864,Revenue,CAHD,Bed Purchasing - North,Permanent Residential,Fshc  1St Floor,719.98, 10-May-2016
865,Revenue,CAHD,Bed Purchasing - North,Permanent Nursing,Fshc  1St Floor,1019.48, 10-May-2016
866,Revenue,CAHD,Bed Purchasing - North,Permanent Nursing,Fshc  1St Floor,1929.88, 10-May-2016
867,Revenue,CAHD,Bed Purchasing - North,Permanent Residential,Fshc  1St Floor,1281.48, 10-May-2016
868,Revenue,CAHD,Bed Purchasing - Southmead Hospital,Permanent Nursing,Fshc  1St Floor,1120.76, 10-May-2016
869,Revenue,CAHD,Bed Purchasing - North,Permanent Nursing,Fshc  1St Floor,1439.08, 10-May-2016
870,Revenue,CAHD,Bed Purchasing - North,Permanent Nursing,Fshc  1St Floor,719.54, 10-May-2016
871,Revenue,CAHD,Bed Purchasing - North,Permanent Residential,Fshc  1St Floor,1440.32, 10-May-2016
872,Revenue,CAHD,Bed Purchasing - North,Permanent Nursing,Fshc  1St Floor,1613.48, 10-May-2016
873,Revenue,CAHD,Bed Purchasing - North,Permanent Nursing,Fshc  1St Floor,1407.08, 10-May-2016
874,Revenue,CAHD,Bed Purchasing - South,Permanent Nursing,Fshc  1St Floor,1427.08, 10-May-2016
875,Revenue,CAHD,Bed Purchasing - Southmead Hospital,Permanent Nursing,Fshc  1St Floor,1210.36, 10-May-2016
876,Revenue,CAHD,Bed Purchasing - North,Permanent Nursing,Fshc  1St Floor,1756.83, 10-May-2016
877,Revenue,CAHD,Bed Purchasing - North,Permanent Nursing,Fshc  1St Floor,1455.76, 10-May-2016
878,Revenue,CAHD,Bed Purchasing - North,Permanent Nursing,Fshc  1St Floor,727.88, 10-May-2016
879,Revenue,CAHD,Bed Purchasing - South,Permanent Residential,Fshc  1St Floor,907.79, 10-May-2016
880,Revenue,CAHD,Bed Purchasing - South,Permanent Residential,Fshc  1St Floor,539.32, 10-May-2016
881,Revenue,CAHD,South Glos Users in South Glos Homes,Permanent Nursing,Fshc  1St Floor,1008, 10-May-2016
882,Revenue,CAHD,Bed Purchasing - North,Respite Planned - Nursing,Fshc  1St Floor,4995.71, 10-May-2016
883,Revenue,CAHD,Bed Purchasing - North,Respite Planned - Nursing,Fshc  1St Floor,623.22, 10-May-2016
884,Revenue,CAHD,Bed Purchasing - North,Permanent Nursing,Fshc  1St Floor,1066.8, 10-May-2016
885,Revenue,CAHD,Bed Purchasing - Southmead Hospital,Permanent Residential,Fshc  1St Floor,1185.64, 10-May-2016
886,Revenue,CAHD,Bed Purchasing - Southmead Hospital,Permanent Nursing,Fshc  1St Floor,1361.84, 10-May-2016
887,Revenue,CAHD,Bed Purchasing - North,Permanent Nursing,Fshc  1St Floor,1031.92, 10-May-2016
888,Revenue,CAHD,Bed Purchasing - North,Respite Emergency - Residential,Fshc  1St Floor,1255.13, 10-May-2016
889,Revenue,CAHD,Bed Purchasing - North,Permanent Nursing,Fshc  1St Floor,1446.32, 10-May-2016
890,Revenue,CAHD,Bed Purchasing - North,Permanent Nursing,Fshc  1St Floor,1529.2, 10-May-2016
891,Revenue,CAHD,Bed Purchasing - Southmead Hospital,Permanent Nursing,Fshc  1St Floor,594.56, 10-May-2016
892,Revenue,CAHD,Bed Purchasing - Southmead Hospital,Permanent Nursing,Fshc  1St Floor,1407.08, 10-May-2016
893,Revenue,CAHD,Bed Purchasing - Southmead Hospital,Permanent Nursing,Fshc  1St Floor,886.48, 10-May-2016
894,Revenue,CAHD,Bed Purchasing - Southmead Hospital,Permanent Nursing,Fshc  1St Floor,1407.08, 10-May-2016
895,Revenue,CAHD,Bed Purchasing - Southmead Hospital,Respite Planned - Nursing,Fshc  1St Floor,1904, 10-May-2016
896,Revenue,CAHD,Bed Purchasing - North,Permanent Nursing,Fshc  1St Floor,1383.08, 10-May-2016
897,Revenue,CAHD,Bed Purchasing - North,Permanent Nursing,Fshc  1St Floor,691.54, 10-May-2016
898,Revenue,CAHD,Bed Purchasing - Southmead Hospital,Permanent Nursing,Fshc  1St Floor,1347.2, 10-May-2016
899,Revenue,CAHD,Bed Purchasing - South,Respite Planned - Nursing,Fshc  1St Floor,1476, 10-May-2016
900,Revenue,CAHD,Bed Purchasing - Southmead Hospital,Permanent Nursing,Fshc  1St Floor,1284.32, 10-May-2016
901,Revenue,CAHD,Bed Purchasing - North,Permanent Nursing,Fshc  1St Floor,1036.32, 10-May-2016
902,Revenue,CAHD,Bed Purchasing - Southmead Hospital,Permanent Nursing,Fshc  1St Floor,1880.6, 10-May-2016
903,Revenue,CAHD,Bed Purchasing - North,Permanent Residential,Fshc  1St Floor,3082.56, 10-May-2016
904,Revenue,CAHD,Bed Purchasing - North,Permanent Nursing,Fshc  1St Floor,1413.4, 10-May-2016
905,Revenue,CAHD,Bed Purchasing - South,Respite Planned - Residential,Fshc  1St Floor,1972, 10-May-2016
906,Revenue,CAHD,Bed Purchasing - South,Permanent Nursing,Fshc  1St Floor,1211.24, 10-May-2016
907,Revenue,CAHD,Bed Purchasing - South,Permanent Nursing,Fshc  1St Floor,1311.52, 10-May-2016
908,Revenue,CAHD,Bed Purchasing - Southmead Hospital,Permanent Nursing,Fshc  1St Floor,1352.84, 10-May-2016
909,Revenue,CAHD,Bed Purchasing - South,Permanent Nursing,Fshc  1St Floor,1929.88, 10-May-2016
910,Revenue,CAHD,Bed Purchasing - Southmead Hospital,Permanent Residential,Fshc  1St Floor,1504, 10-May-2016
911,Revenue,CAHD,Bed Purchasing - North,Permanent Residential,Fshc  1St Floor,1198.12, 10-May-2016
912,Revenue,CAHD,Bed Purchasing - North,Permanent Nursing,Fshc  1St Floor,1157, 10-May-2016
913,Revenue,CAHD,Bed Purchasing - South,Permanent Residential,Fshc  1St Floor,738, 10-May-2016
914,Revenue,CAHD,Bed Purchasing - South,Permanent Residential,Fshc  1St Floor,1067, 10-May-2016
915,Revenue,CAHD,Bed Purchasing - South,Permanent Nursing,Fshc  1St Floor,1399.08, 10-May-2016
916,Revenue,CAHD,Bed Purchasing - Southmead Hospital,Permanent Nursing,Fshc  1St Floor,1407.08, 10-May-2016
917,Revenue,CAHD,Bed Purchasing - South,Permanent Nursing,Fshc  1St Floor,1135.32, 10-May-2016
918,Revenue,CAHD,Bed Purchasing - Southmead Hospital,Permanent Nursing,Fshc  1St Floor,1396.04, 10-May-2016
919,Revenue,CAHD,Bed Purchasing - Southmead Hospital,Permanent Nursing,Fshc  1St Floor,1270.48, 10-May-2016
920,Revenue,CAHD,Bed Purchasing - Southmead Hospital,Permanent Nursing,Fshc  1St Floor,1707.12, 10-May-2016
921,Revenue,CAHD,Bed Purchasing - Southmead Hospital,Permanent Nursing,Fshc  1St Floor,853.56, 10-May-2016
922,Revenue,CAHD,Bed Purchasing - South,Permanent Nursing,Fshc  1St Floor,1253.32, 10-May-2016
923,Revenue,CAHD,Bed Purchasing - Southmead Hospital,Permanent Nursing,Fshc  1St Floor,1322.44, 10-May-2016
924,Revenue,CAHD,Bed Purchasing - South,Respite Planned - Residential,Fshc  1St Floor,857.14, 10-May-2016
925,Revenue,CAHD,Bed Purchasing - South,Permanent Residential,Fshc  1St Floor,1277.2, 10-May-2016
926,Revenue,CAHD,Bed Purchasing - Southmead Hospital,Permanent Nursing,Fshc  1St Floor,1407.08, 10-May-2016
927,Revenue,CAHD,Bed Purchasing - South,Permanent Nursing,Fshc  1St Floor,1476, 10-May-2016
928,Revenue,CAHD,Bed Purchasing - Southmead Hospital,Permanent Nursing,Fshc  1St Floor,1407.08, 10-May-2016
929,Revenue,CAHD,Bed Purchasing - Southmead Hospital,Permanent Nursing,Fshc  1St Floor,1342.52, 10-May-2016
930,Revenue,CAHD,Bed Purchasing - Southmead Hospital,Permanent Residential,Fshc  1St Floor,1508, 10-May-2016
931,Revenue,CAHD,Bed Purchasing - Southmead Hospital,Permanent Nursing,Fshc  1St Floor,1407.08, 10-May-2016
932,Revenue,CAHD,Bed Purchasing - South,Permanent Residential,Fshc  1St Floor,696.56, 10-May-2016
933,Revenue,CAHD,Bed Purchasing - Southmead Hospital,Permanent Residential,Fshc  1St Floor,1142.12, 10-May-2016
934,Revenue,CAHD,Bed Purchasing - South,Permanent Nursing,Fshc  1St Floor,1420.32, 10-May-2016
935,Revenue,CAHD,Bed Purchasing - South,Permanent Residential,Fshc  1St Floor,1405.68, 10-May-2016
936,Revenue,CAHD,Bed Purchasing - South,Permanent Nursing,Fshc  1St Floor,5970, 10-May-2016
937,Revenue,CAHD,Bed Purchasing - South,Permanent Nursing,Fshc  1St Floor,1878.2, 10-May-2016
938,Revenue,CAHD,Bed Purchasing - South,Permanent Nursing,Fshc  1St Floor,11158.42, 10-May-2016
939,Revenue,CAHD,Bed Purchasing - South,Permanent Nursing,Fshc  1St Floor,1155.6, 10-May-2016
940,Revenue,CAHD,Bed Purchasing - South,Permanent Nursing,Fshc  1St Floor,577.8, 10-May-2016
941,Revenue,CAHD,Bed Purchasing - South,Permanent Residential,Fshc  1St Floor,1403.52, 10-May-2016
942,Revenue,CAHD,Bed Purchasing - South,Permanent Nursing,Fshc  1St Floor,1407.08, 10-May-2016
943,Revenue,CAHD,Bed Purchasing - South,Permanent Nursing,Fshc  1St Floor,1271.04, 10-May-2016
944,Revenue,CAHD,Bed Purchasing - Southmead Hospital,Permanent Nursing,Fshc  1St Floor,2309.36, 10-May-2016
945,Revenue,CAHD,Bed Purchasing - South,Permanent Nursing,Fshc  1St Floor,1435.08, 10-May-2016
946,Revenue,CAHD,Bed Purchasing - Southmead Hospital,Respite Planned - Nursing,Fshc  1St Floor,1904, 10-May-2016
947,Revenue,CAHD,Bed purchasing - Elderly S117 - South,Permanent Nursing,Fshc  1St Floor,1929.88, 10-May-2016
948,Revenue,CAHD,Bed Purchasing - South,Permanent Nursing,Fshc  1St Floor,1148.6, 10-May-2016
949,Revenue,CAHD,Bed Purchasing - South,Permanent Nursing,Fshc  1St Floor,574.3, 10-May-2016
950,Revenue,CAHD,Bed Purchasing - Southmead Hospital,Permanent Nursing,Fshc  1St Floor,1255.2, 10-May-2016
951,Revenue,CAHD,Bed Purchasing - Southmead Hospital,Permanent Nursing,Fshc  1St Floor,969.2, 10-May-2016
952,Revenue,CAHD,Bed Purchasing - Southmead Hospital,Permanent Nursing,Fshc  1St Floor,1319.2, 10-May-2016
953,Revenue,CAHD,Bed Purchasing - Southmead Hospital,Permanent Nursing,Fshc  1St Floor,1407.08, 10-May-2016
954,Revenue,CAHD,Bed Purchasing - South,Permanent Nursing,Fshc  1St Floor,1271, 10-May-2016
955,Revenue,CAHD,Bed Purchasing - Southmead Hospital,Permanent Residential,Fshc  1St Floor,568.8, 10-May-2016
956,Revenue,CAHD,Bed Purchasing - North,Permanent Nursing,Fshc  1St Floor,1374.4, 10-May-2016
957,Revenue,CAHD,Bed Purchasing - Southmead Hospital,Respite Emergency - Residential,Fshc  1St Floor,1938.04, 10-May-2016
958,Revenue,CAHD,Bed Purchasing - Southmead Hospital,Respite Emergency - Residential,Fshc  1St Floor,2266.63, 10-May-2016
959,Revenue,CAHD,Bed Purchasing - North,Permanent Nursing,Fshc  1St Floor,1380.08, 10-May-2016
960,Revenue,CAHD,Bed Purchasing - North,Permanent Nursing,Fshc  1St Floor,690.04, 10-May-2016
961,Revenue,CAHD,Bed Purchasing - Southmead Hospital,Permanent Nursing,Fshc  1St Floor,1438.72, 10-May-2016
962,Revenue,CAHD,Bed Purchasing - North,Permanent Nursing,Fshc  1St Floor,858.32, 10-May-2016
963,Revenue,CAHD,Bed Purchasing - North,Permanent Nursing,Fshc  1St Floor,1517.2, 10-May-2016
964,Revenue,CAHD,Bed Purchasing - Southmead Hospital,Permanent Nursing,Fshc  1St Floor,1499.28, 10-May-2016
965,Revenue,CAHD,Bed Purchasing - Southmead Hospital,Permanent Nursing,Fshc  1St Floor,1361.2, 10-May-2016
966,Revenue,CAHD,Bed Purchasing - Southmead Hospital,Permanent Nursing,Fshc  1St Floor,1517.2, 10-May-2016
967,Revenue,CAHD,Bed Purchasing - North,Permanent Nursing,Fshc  1St Floor,1388.92, 10-May-2016
968,Revenue,CAHD,Bed Purchasing - North,Permanent Nursing,Fshc  1St Floor,1317.4, 10-May-2016
969,Revenue,CAHD,Bed Purchasing - Southmead Hospital,Permanent Nursing,Fshc  1St Floor,1585.48, 10-May-2016
970,Revenue,CAHD,Bed Purchasing - Southmead Hospital,Permanent Residential,Fshc  1St Floor,1266.6, 10-May-2016
971,Revenue,CAHD,Bed Purchasing - Southmead Hospital,Permanent Nursing,Fshc  1St Floor,1397.44, 10-May-2016
972,Revenue,CAHD,Swift Dump Code,Permanent Residential,Fshc  1St Floor,685.08, 10-May-2016
973,Revenue,CAHD,Bed Purchasing - Southmead Hospital,Permanent Nursing,Fshc  1St Floor,1252.88, 10-May-2016
974,Revenue,CAHD,Bed Purchasing - North,Permanent Nursing,Fshc  1St Floor,2613.76, 10-May-2016
975,Revenue,CAHD,Bed Purchasing - Elderly S117- North,Permanent Nursing,Fshc  1St Floor,2040, 10-May-2016
976,Revenue,CAHD,Bed Purchasing - Southmead Hospital,Permanent Nursing,Fshc  1St Floor,2635.36, 10-May-2016
977,Revenue,CAHD,Bed Purchasing - Southmead Hospital,Permanent Nursing,Fshc  1St Floor,1913.84, 10-May-2016
978,Revenue,CAHD,Bed Purchasing - North,Permanent Nursing,Fshc  1St Floor,1517.2, 10-May-2016
979,Revenue,CAHD,Bed Purchasing - Southmead Hospital,Respite Planned - Nursing,Fshc  1St Floor,2867.04, 10-May-2016
980,Revenue,CAHD,Bed Purchasing - Southmead Hospital,Respite Planned - Nursing,Fshc  1St Floor,1824.48, 10-May-2016
981,Revenue,CAHD,Bed Purchasing - Southmead Hospital,Respite Planned - Nursing,Fshc  1St Floor,771.43, 10-May-2016
982,Revenue,CAHD,Bed Purchasing - Southmead Hospital,Permanent Nursing,Fshc  1St Floor,1115.88, 10-May-2016
983,Revenue,CAHD,Bed Purchasing - South,Permanent Residential,Fshc  1St Floor,1677.2, 10-May-2016
984,Revenue,CAHD,Bed Purchasing - North,Permanent Residential,Fshc  1St Floor,1056.12, 10-May-2016
985,Revenue,CAHD,Bed Purchasing - South,Permanent Residential,Fshc  1St Floor,1386.44, 10-May-2016
986,Revenue,CAHD,Bed Purchasing - Southmead Hospital,Permanent Residential,Fshc  1St Floor,817.44, 10-May-2016
987,Revenue,CAHD,CSC - Vinney Green Secure Unit,Premises Maintenance by Contractor,Future TV Limited,558, 11-May-2016
988,Revenue,CAHD,CSC - OT Equipment - Children,Daily Living Equipment,G & S Smirthwaite Limited,491, 06-May-2016
989,Revenue,CAHD,CSC - OT Equipment - Children,Daily Living Equipment,G & S Smirthwaite Limited,427, 27-May-2016
990,Revenue,CAHD,CSC - Residential Placements,Permanent Residential,G4S Care & Justice Services (UK) Limited,2580.46, 05-May-2016
991,Revenue,CAHD,Section 117 Placements MH Younger,Permanent Residential,Gladstone House,2829.96, 10-May-2016
992,Revenue,CAHD,Bed Purchasing - South,Permanent Residential,Gladstone House,5354.36, 10-May-2016
993,Revenue,CAHD,Bed Purchasing - South,Permanent Residential,Glasallt Fawr,4734.32, 10-May-2016
994,Revenue,CAHD,Bed Purchasing - North,Permanent Nursing,Glebe House Nursing Home,2169.04, 10-May-2016
995,Revenue,CAHD,Bed Purchasing - North,Permanent Residential,Glebe House Nursing Home,2433.68, 10-May-2016
996,Revenue,CAHD,Bed Purchasing - North,Permanent Residential,Glebe House Nursing Home,738.69, 10-May-2016
997,Revenue,CAHD,Bed Purchasing - North,Permanent Nursing,Glebe House Nursing Home,2284, 10-May-2016
998,Revenue,CAHD,Bed Purchasing - North,Permanent Nursing,Glebe House Nursing Home,2209.2, 10-May-2016
999,Revenue,CAHD,Sexual Health,Other Supplies & Services,Gloucestershire Care Services NHST,691.34, 20-May-2016
1000,Revenue,CAHD,Bed Purchasing - South,Permanent Residential,Goldcare House,2271.16, 10-May-2016
1001,Revenue,CAHD,18-25 Year Olds,Permanent Residential,Gordena Care Home,4750.96, 10-May-2016
1002,Revenue,CAHD,Bed Purchasing - South,Permanent Residential,Gordena Care Home,2170.96, 10-May-2016
1003,Revenue,CAHD,Bed Purchasing - South,Permanent Residential,Gordena Care Home,3026.16, 10-May-2016
1004,Revenue,CAHD,Bed Purchasing - South,Permanent Residential,Gordena Care Home,1965.88, 10-May-2016
1005,Revenue,CAHD,Bed Purchasing - South,Permanent Residential,Gordena Care Home,3159.16, 10-May-2016
1006,Revenue,CAHD,Bed Purchasing - South,Permanent Residential,Gordena Care Limited,4327, 10-May-2016
1007,Revenue,CAHD,Bed Purchasing - South,Permanent Residential,Gordena Care Limited,5696.28, 10-May-2016
1008,Revenue,CAHD,Bed purchasing - S28A Under 65 - South,Permanent Residential,Gordena Care Limited,4221.96, 10-May-2016
1009,Revenue,CAHD,Bed Purchasing - North,Permanent Residential,Gordena Care Limited,4307.68, 10-May-2016
1010,Revenue,CAHD,CAHA - Complaints and FOI,Complaints External Expenses,GovNet Communications,445, 20-May-2016
1011,Revenue,CAHD,Bed Purchasing - South,Permanent Nursing,Gracefields Nursing Home,1732.24, 10-May-2016
1012,Revenue,CAHD,Bed Purchasing - Southmead Hospital,Permanent Nursing,Gracefields Nursing Home,1674.96, 10-May-2016
1013,Revenue,CAHD,Bed purchasing - Elderly S117 - South,Permanent Nursing,Gracefields Nursing Home,2414.28, 10-May-2016
1014,Revenue,CAHD,Bed Purchasing - Southmead Hospital,Permanent Nursing,Gracefields Nursing Home,1605.6, 10-May-2016
1015,Revenue,CAHD,Bed Purchasing - South,Permanent Nursing,Gracefields Nursing Home,1620.96, 10-May-2016
1016,Revenue,CAHD,Bed Purchasing - Southmead Hospital,Permanent Nursing,Gracefields Nursing Home,1558, 10-May-2016
1017,Revenue,CAHD,Bed Purchasing - Southmead Hospital,Permanent Residential,Granada House Residential Home,1053.96, 10-May-2016
1018,Revenue,CAHD,CSC - Residential Placements,Permanent Residential,Greenfields Adolecent Development Limited,21035.71, 26-May-2016
1019,Revenue,CAHD,CSC - Residential Placements,Permanent Residential,Greenfields Adolecent Development Limited,20357.14, 27-May-2016
1020,Revenue,CAHD,Bed Purchasing - North,Permanent Residential,Greensleeves,1358.08, 10-May-2016
1021,Revenue,CAHD,Bed Purchasing - South,Permanent Residential,Grove Care,1905.76, 10-May-2016
1022,Revenue,CAHD,Bed Purchasing - Southmead Hospital,Permanent Residential,Gwendoline House,1077, 10-May-2016
1023,Revenue,CAHD,Bed Purchasing - Southmead Hospital,Permanent Residential,Gwendoline House,877.84, 10-May-2016
1024,Revenue,CAHD,Bed Purchasing - South,Permanent Residential,Gwendoline House,857.04, 10-May-2016
1025,Revenue,CAHD,Bed Purchasing - Southmead Hospital,Permanent Residential,Gwendoline House,1298.24, 10-May-2016
1026,Revenue,CAHD,Bed Purchasing - South,Permanent Residential,Gwendoline House,1587.28, 10-May-2016
1027,Revenue,CAHD,Bed Purchasing - South,Permanent Residential,Gwendoline House,968.4, 10-May-2016
1028,Revenue,CAHD,Bed Purchasing - Southmead Hospital,Permanent Residential,Gwendoline House,1356, 10-May-2016
1029,Revenue,CAHD,Social Lettings Agency,Fees - General,Individual,16.46, 27-May-2016
1030,Revenue,CAHD,Social Lettings Agency,Other Supplies & Services,Individual,559.6, 27-May-2016
1031,Revenue,CAHD,CSC - Through & Leaving Care Team,Agency Staff (Admin/Support Staff) Pay,Hampton`s Resourcing,1215, 03-May-2016
1032,Revenue,CAHD,CSC - Through & Leaving Care Team,Agency Staff (Admin/Support Staff) Pay,Hampton`s Resourcing,1998, 10-May-2016
1033,Revenue,CAHD,CSC - Through & Leaving Care Team,Agency Staff (Admin/Support Staff) Pay,Hampton`s Resourcing,1998, 31-May-2016
1034,Revenue,CAHD,CSC - Through & Leaving Care Team,Agency Staff (Admin/Support Staff) Pay,Hampton`s Resourcing,1998, 24-May-2016
1035,Revenue,CAHD,Home Care - Elderly - North,Other Supplies & Services,Hanover Housing Association,1122.54, 09-May-2016
1036,Revenue,CAHD,Home Care - Elderly - North,Other Supplies & Services,Hanover Housing Association,2077.92, 06-May-2016
1037,Revenue,CAHD,Bed Purchasing - South,Permanent Residential,Harefield Hall,1235.16, 10-May-2016
1038,Revenue,CAHD,Bed Purchasing - South,Permanent Residential,Harefield Hall,1162.36, 10-May-2016
1039,Revenue,CAHD,Bed Purchasing - South,Permanent Residential,Harefield Hall,966.56, 10-May-2016
1040,Revenue,CAHD,Bed Purchasing - South,Permanent Residential,Harefield Hall,1055.48, 10-May-2016
1041,Revenue,CAHD,Bed Purchasing - South,Permanent Residential,Harefield Hall,1372.92, 10-May-2016
1042,Revenue,CAHD,Bed Purchasing - South,Permanent Residential,Harefield Hall,1275.32, 10-May-2016
1043,Revenue,CAHD,Alexandra Way,Equipment Maintenance,Harvey Servicing & Engineering Limited,922.5, 16-May-2016
1044,Revenue,CAHD,Bed Purchasing - Southmead Hospital,Permanent Nursing,Hazelwood Gardens Nursing Home,5029.09, 10-May-2016
1045,Revenue,CAHD,Bed Purchasing - Southmead Hospital,Permanent Nursing,Hazelwood Gardens Nursing Home,819.08, 10-May-2016
1046,Revenue,CAHD,Bed Purchasing - Southmead Hospital,Permanent Residential,Hazelwood Gardens Nursing Home,984.64, 10-May-2016
1047,Revenue,CAHD,Bed Purchasing - Southmead Hospital,Permanent Residential,Hazelwood Gardens Nursing Home,839.48, 10-May-2016
1048,Revenue,CAHD,Bed Purchasing - Southmead Hospital,Permanent Nursing,Hc-One Ltd,1660.08, 10-May-2016
1049,Revenue,CAHD,Bed Purchasing - Southmead Hospital,Permanent Nursing,Hc-One Ltd,1470.56, 10-May-2016
1050,Revenue,CAHD,Bed Purchasing - North,Permanent Nursing,Hc-One Ltd,1530.64, 10-May-2016
1051,Revenue,CAHD,Bed Purchasing - Southmead Hospital,Permanent Nursing,Hc-One Ltd,606.6, 10-May-2016
1052,Revenue,CAHD,Bed Purchasing - Southmead Hospital,Permanent Nursing,Hc-One Ltd,2587.22, 10-May-2016
1053,Revenue,CAHD,Bed Purchasing - Southmead Hospital,Permanent Nursing,Hc-One Ltd,528.02, 10-May-2016
1054,Revenue,CAHD,Bed Purchasing - North,Permanent Residential,Hc-One Ltd,6017.48, 10-May-2016
1055,Revenue,CAHD,Bed Purchasing - North,Permanent Residential,Hc-One Ltd,1450.8, 10-May-2016
1056,Revenue,CAHD,Bed Purchasing - North,Permanent Residential,Hc-One Ltd,725.4, 10-May-2016
1057,Revenue,CAHD,Bed Purchasing - North,Permanent Residential,Hc-One Ltd,2112, 10-May-2016
1058,Revenue,CAHD,Bed Purchasing - North,Respite Planned - Residential,Hc-One Ltd,520.92, 10-May-2016
1059,Revenue,CAHD,Bed Purchasing - Southmead Hospital,Permanent Nursing,Hc-One Ltd,1551.04, 10-May-2016
1060,Revenue,CAHD,Bed Purchasing - Southmead Hospital,Permanent Nursing,Hc-One Ltd,1499.8, 10-May-2016
1061,Revenue,CAHD,Bed Purchasing - Southmead Hospital,Permanent Nursing,Hc-One Ltd,2005.12, 10-May-2016
1062,Revenue,CAHD,Bed Purchasing - Southmead Hospital,Permanent Residential,Head Office,1707.12, 10-May-2016
1063,Revenue,CAHD,Home Care - Elderly - South,Day Care / Social Activities,Headway Bristol,652.24, 03-May-2016
1064,Revenue,CAHD,Home Care - Elderly - North,Day Care / Social Activities,Headway Bristol,736.4, 03-May-2016
1065,Revenue,CAHD,Home Care - Elderly - South,Day Care / Social Activities,Headway Bristol,820.56, 13-May-2016
1066,Revenue,CAHD,Home Care - Elderly - North,Day Care / Social Activities,Headway Bristol,589.12, 13-May-2016
1067,Revenue,CAHD,Home Care - Elderly - South,Day Care / Social Activities,Headway Bristol,959.4, 17-May-2016
1068,Revenue,CAHD,Home Care - Elderly - North,Day Care / Social Activities,Headway Bristol,810.16, 17-May-2016
1069,Revenue,CAHD,Home Care - Elderly - South,Day Care / Social Activities,Headway Bristol,874.12, 25-May-2016
1070,Revenue,CAHD,Home Care - Elderly - North,Day Care / Social Activities,Headway Bristol,660.92, 25-May-2016
1071,Revenue,CAHD,Home Care - Elderly - South,Other Small Contracts,Helping Hands Homecare,1112.76, 06-May-2016
1072,Revenue,CAHD,Home Care - Elderly - North,Day Care / Social Activities,Helping Hands Homecare,190.08, 06-May-2016
1073,Revenue,CAHD,Home Care - Elderly - North,Other Small Contracts,Helping Hands Homecare,1987.92, 06-May-2016
1074,Revenue,CAHD,Day Care - North,Day Care / Social Activities,Helping Hands Homecare,15.84, 06-May-2016
1075,Revenue,CAHD,Home Care - Elderly - South,Other Small Contracts,Helping Hands Homecare,1500.84, 12-May-2016
1076,Revenue,CAHD,Home Care - Elderly - North,Day Care / Social Activities,Helping Hands Homecare,186.12, 12-May-2016
1077,Revenue,CAHD,Home Care - Elderly - North,Other Small Contracts,Helping Hands Homecare,2126.52, 12-May-2016
1078,Revenue,CAHD,Day Care - North,Day Care / Social Activities,Helping Hands Homecare,63.36, 12-May-2016
1079,Revenue,CAHD,Home Care - Elderly - South,Other Small Contracts,Helping Hands Homecare,1564.32, 20-May-2016
1080,Revenue,CAHD,Home Care - Elderly - North,Day Care / Social Activities,Helping Hands Homecare,217.08, 20-May-2016
1081,Revenue,CAHD,Home Care - Elderly - North,Other Small Contracts,Helping Hands Homecare,2120.87, 20-May-2016
1082,Revenue,CAHD,Day Care - North,Day Care / Social Activities,Helping Hands Homecare,28.14, 20-May-2016
1083,Revenue,CAHD,Placements OLA Special Schools and RB,Other L.A.'s - General,Henbury Court Primary Academy,833.33, 12-May-2016
1084,Revenue,CAHD,CSC - Legal Fees,Legal Fees,Henriques Griffiths Solicitors,605.56, 09-May-2016
1085,Revenue,CAHD,S117 Placements PCT,Permanent Residential,Hesley Hall,18656.52, 10-May-2016
1086,Revenue,CAHD,Bed Purchasing - Southmead Hospital,Permanent Residential,Highfield House,2121, 10-May-2016
1087,Revenue,CAHD,Bed Purchasing - Southmead Hospital,Permanent Residential,Highgate Studios,1193.72, 10-May-2016
1088,Revenue,CAHD,NTS Grant - Trainee Social Wor,Training Expenses,Holiday Inn,4510, 24-May-2016
1089,Revenue,CAHD,Bed Purchasing - North,Permanent Residential,Holmleigh Care Homes Ltd,4046.62, 10-May-2016
1090,Revenue,CAHD,Bed Purchasing - South,Permanent Residential,Holmleigh Care Homes Ltd,4318, 10-May-2016
1091,Revenue,CAHD,Jointly Funded H&SC Packages,Permanent Residential,Holmleigh Care Homes Ltd,836.48, 10-May-2016
1092,Revenue,CAHD,Bed Purchasing - South,Permanent Residential,Holmleigh Care Homes Ltd,2159, 10-May-2016
1093,Revenue,CAHD,Bed Purchasing - North,Permanent Residential,Home Farm Trust Ltd  5-6 Brook Office Pa,2726.52, 10-May-2016
1094,Revenue,CAHD,Bed Purchasing - South,Permanent Residential,Home Farm Trust Ltd  5-6 Brook Office Pa,5242.64, 10-May-2016
1095,Revenue,CAHD,Bed Purchasing - North,Permanent Residential,Home Farm Trust Ltd  5-6 Brook Office Pa,3436.96, 10-May-2016
1096,Revenue,CAHD,Bed Purchasing - South,Permanent Residential,Home Farm Trust Ltd  5-6 Brook Office Pa,5687.6, 10-May-2016
1097,Revenue,CAHD,18-25 Year Olds,Permanent Residential,Home From Home Care Ltd,9215.16, 10-May-2016
1098,Revenue,CAHD,Home Care - Elderly - South,Other Small Contracts,Homecare 4U,382.58, 04-May-2016
1099,Revenue,CAHD,Home Care - Elderly - North,Other Small Contracts,Homecare 4U,732.6, 04-May-2016
1100,Revenue,CAHD,Home Care - Elderly - South,Other Small Contracts,Homecare 4U,394.79, 17-May-2016
1101,Revenue,CAHD,Home Care - Elderly - North,Other Small Contracts,Homecare 4U,512.82, 17-May-2016
1102,Revenue,CAHD,Home Care - Elderly - South,Other Small Contracts,Homecare 4U,354.09, 17-May-2016
1103,Revenue,CAHD,Home Care - Elderly - North,Other Small Contracts,Homecare 4U,651.2, 17-May-2016
1104,Revenue,CAHD,Bed Purchasing - North,Permanent Residential,Homes Caring For Autism Ltd  Churchill H,8071, 10-May-2016
1105,Revenue,CAHD,Jointly Funded H&SC Packages,Permanent Residential,Homes Caring For Autism Ltd  Churchill H,2090.04, 10-May-2016
1106,Revenue,CAHD,Bed Purchasing - North,Permanent Residential,Homes Caring For Autism Ltd  Churchill H,4035.5, 10-May-2016
1107,Revenue,CAHD,Jointly Funded H&SC Packages,Permanent Residential,Homes Caring For Autism Ltd  Churchill H,1045.02, 10-May-2016
1108,Revenue,CAHD,18-25 Year Olds,Permanent Residential,Homes Caring For Autism Ltd  Churchill H,5691.32, 10-May-2016
1109,Revenue,CAHD,Jointly Funded H&SC Packages,Permanent Residential,Homes Caring For Autism Ltd  Churchill H,11503.52, 10-May-2016
1110,Revenue,CAHD,18-25 Year Olds,Permanent Residential,Homes Caring For Autism Ltd  Churchill H,2645.36, 10-May-2016
1111,Revenue,CAHD,Bed Purchasing - Southmead Hospital,Permanent Nursing,Horfield Care Limited,1439.91, 12-May-2016
1112,Revenue,CAHD,Bed Purchasing - Southmead Hospital,Permanent Nursing,Horfield Care Limited,1806.99, 12-May-2016
1113,Revenue,CAHD,Bed Purchasing - Southmead Hospital,Permanent Nursing,Horfield Care Limited,1332.29, 12-May-2016
1114,Revenue,CAHD,Bed Purchasing - South,Permanent Nursing,Horfield Care Limited,1330.04, 12-May-2016
1115,Revenue,CAHD,Bed Purchasing - Southmead Hospital,Respite Planned - Nursing,Horfield Care Limited,1412.77, 12-May-2016
1116,Revenue,CAHD,Bed Purchasing - Southmead Hospital,Respite Planned - Nursing,Horfield Care Limited,823.43, 12-May-2016
1117,Revenue,CAHD,Home Care - Elderly - North,Other Supplies & Services,Housing & Care 21,1930.6, 10-May-2016
1118,Revenue,CAHD,Home Care - Elderly - North,Other Supplies & Services,Housing & Care 21,792.12, 10-May-2016
1119,Revenue,CAHD,Home Care - Elderly - North,Other Supplies & Services,Housing & Care 21,1491.64, 10-May-2016
1120,Revenue,CAHD,Home Care - Elderly - North,Private & Voluntary Home Care,Housing 21,40371.16, 10-May-2016
1121,Revenue,CAHD,CSC - LAT Placements,Personal Needs of Clients,Impact Mentoring,675, 23-May-2016
1122,Revenue,CAHD,CSC - Section 17,Other Transport Costs,Impact Mentoring,1350, 13-May-2016
1123,Revenue,CAHD,CSC - LAT Placements,Personal Needs of Clients,Impact Mentoring,1105, 23-May-2016
1124,Revenue,CAHD,Breakthrough and Inclusion Work,Other Supplies & Services,Impact Mentoring,1449, 24-May-2016
1125,Revenue,CAHD,Breakthrough and Inclusion Work,Other Supplies & Services,Impact Mentoring,2772, 27-May-2016
1126,Revenue,CAHD,Breakthrough and Inclusion Work,Other Supplies & Services,Impact Mentoring,1386, 11-May-2016
1127,Revenue,CAHD,Independent Special Placements - Post 16,Other Private Contractors,Include Limited,5166.67, 13-May-2016
1128,Revenue,CAHD,Post 16 High Needs Placements,Other Private Contractors,Include Limited,5166.67, 13-May-2016
1129,Revenue,CAHD,Independent Special Placements - Pre 16,Other Private Contractors,Include Limited,4833.33, 13-May-2016
1130,Revenue,CAHD,Independent Special Placements - Pre 16,Other Private Contractors,Include Limited,4833.33, 13-May-2016
1131,Revenue,CAHD,Kingswood Centre - Maple Suite,Furniture & Fittings Loose,IRM Mobility & Healthcare Limited,952, 13-May-2016
1132,Revenue,CAHD,Alexandra Way,Office Supplies & Equipment,ITEC,607.42, 27-May-2016
1133,Revenue,CAHD,Social Lettings Agency,Fees - General,Individual,12.22, 11-May-2016
1134,Revenue,CAHD,Social Lettings Agency,Other Supplies & Services,Individual,690.32, 11-May-2016
1135,Revenue,CAHD,CSC - Professional Fees Foster Carers,Respite Care,Individual,506.57, 20-May-2016
1136,Revenue,CAHD,Quality and Standards,Consultants Fees,Individual,1800, 09-May-2016
1137,Revenue,CAHD,Training - Adult Services,Training Expenses,Individual,629, 12-May-2016
1138,Revenue,CAHD,Quality and Standards,Consultants Fees,Individual,2600, 04-May-2016
1139,Revenue,CAHD,Bed Purchasing - South,Permanent Residential,Individual,3705.12, 10-May-2016
1140,Revenue,CAHD,Virtual School for Looked After Children,Consultants Fees,Individual,1600, 23-May-2016
1141,Revenue,CAHD,Virtual School for Looked After Children,Consultants Fees,Individual,1200, 23-May-2016
1142,Revenue,CAHD,Home Care - Elderly - South,Supported Living,Julia Simone- Supp. Ind.,1194.4, 10-May-2016
1143,Revenue,CAHD,Younger MH non-res purchasing,Supported Living,Julia Simone- Supp. Ind.,1194.4, 10-May-2016
1144,Revenue,CAHD,Younger MH non-res purchasing,Supported Living,Julia Simone- Supp. Ind.,1194.4, 10-May-2016
1145,Revenue,CAHD,Home Care - Elderly - North,Supported Living,Julia Simone- Supp. Ind.,1228.8, 10-May-2016
1146,Revenue,CAHD,Younger MH non-res purchasing,Supported Living,Julia Simone- Supp. Ind.,1194.24, 10-May-2016
1147,Revenue,CAHD,Younger MH non-res purchasing,Supported Living,Julia Simone- Supp. Ind.,1194.36, 10-May-2016
1148,Revenue,CAHD,Younger MH non-res purchasing,Supported Living,Julia Simone- Supp. Ind.,1733.46, 10-May-2016
1149,Revenue,CAHD,Bed Purchasing - South,Permanent Residential,Julia Simone- Supp. Ind.,4063.2, 10-May-2016
1150,Revenue,CAHD,Bed purchasing -S28A  Under 65 - North,Permanent Residential,Julia Simone- Supp. Ind.,3585.76, 10-May-2016
1151,Revenue,CAHD,Tenancy Start Up Scheme,Other Supplies & Services,K A Properties t/a Martin and Co,1695, 05-May-2016
1152,Revenue,CAHD,Preventative Services Management,Consultants Fees,Individual,6387.3, 24-May-2016
1153,Revenue,CAHD,Statemented Support Payments to OLAs,Other L.A.'s - General,Katharine Lady Berkeley School,533.3, 31-May-2016
1154,Revenue,CAHD,Community Support - South,Preventative Assistance,KCC Cleaning Services Limited,890, 20-May-2016
1155,Revenue,CAHD,Home Care - Elderly - South,Other Small Contracts,Kensington Community Care,3162.52, 09-May-2016
1156,Revenue,CAHD,Home Care - Elderly - North,Other Small Contracts,Kensington Community Care,5137.04, 09-May-2016
1157,Revenue,CAHD,Home Care - Elderly - South,Other Small Contracts,Kensington Community Care,3359.04, 11-May-2016
1158,Revenue,CAHD,Home Care - Elderly - North,Other Small Contracts,Kensington Community Care,5263.83, 11-May-2016
1159,Revenue,CAHD,Home Care - Elderly - South,Other Small Contracts,Kensington Community Care,3317.95, 24-May-2016
1160,Revenue,CAHD,Home Care - Elderly - North,Other Small Contracts,Kensington Community Care,5190.21, 24-May-2016
1161,Revenue,CAHD,Home Care - Elderly - South,Other Small Contracts,Kensington Community Care,3383.48, 25-May-2016
1162,Revenue,CAHD,Home Care - Elderly - North,Other Small Contracts,Kensington Community Care,4809.84, 25-May-2016
1163,Revenue,CAHD,Community Support - South,Preventative Assistance,Kenver House,1328.1, 26-May-2016
1164,Revenue,CAHD,Bed Purchasing - Southmead Hospital,Permanent Residential,Kenver House Residential Home,1685.76, 10-May-2016
1165,Revenue,CAHD,Bed Purchasing - Southmead Hospital,Permanent Residential,Kenver House Residential Home,1697.28, 10-May-2016
1166,Revenue,CAHD,Bed Purchasing - South,Permanent Residential,Kenver House Residential Home,1407.28, 10-May-2016
1167,Revenue,CAHD,Bed Purchasing - Southmead Hospital,Permanent Residential,Kenver House Residential Home,1780.92, 10-May-2016
1168,Revenue,CAHD,Bed Purchasing - South,Permanent Residential,Kenver House Residential Home,1697.28, 10-May-2016
1169,Revenue,CAHD,Bed Purchasing - North,Respite Planned - Residential,Kenver House Residential Home,12915.01, 10-May-2016
1170,Revenue,CAHD,Bed Purchasing - North,Permanent Residential,Kenver House Residential Home,1566.76, 10-May-2016
1171,Revenue,CAHD,Bed Purchasing - North,Permanent Residential,Kenver House Residential Home,783.38, 10-May-2016
1172,Revenue,CAHD,Bed Purchasing - Southmead Hospital,Permanent Residential,Kenver House Residential Home,1784.68, 10-May-2016
1173,Revenue,CAHD,Bed Purchasing - Southmead Hospital,Permanent Residential,Kenver House Residential Home,892.34, 10-May-2016
1174,Revenue,CAHD,Bed purchasing - Elderly S117 - South,Permanent Residential,Kenver House Residential Home,2286.28, 10-May-2016
1175,Revenue,CAHD,Bed Purchasing - Southmead Hospital,Permanent Residential,Kenver House Residential Home,1697.2, 10-May-2016
1176,Revenue,CAHD,Bed Purchasing - South,Permanent Residential,Kenver House Residential Home,1729.28, 10-May-2016
1177,Revenue,CAHD,Bed Purchasing - South,Permanent Residential,Kenver House Residential Home,864.64, 10-May-2016
1178,Revenue,CAHD,CSC - Care Leavers Independent Living,Adults - Family Support,Key2 Futures Limited,2871.3, 27-May-2016
1179,Revenue,CAHD,CSC - Care Leavers Independent Living,Adults - Family Support,Key2 Futures Limited,916.5, 27-May-2016
1180,Revenue,CAHD,CSC - Care Leavers Independent Living,Independent Living,Key2 Futures Limited,2871.3, 27-May-2016
1181,Revenue,CAHD,CSC - Care Leavers Independent Living,Adults - Family Support,Key2 Futures Limited,2871.3, 27-May-2016
1182,Revenue,CAHD,CSC - Care Leavers Independent Living,Adults - Family Support,Key2 Futures Limited,2476.8, 27-May-2016
1183,Revenue,CAHD,Bed Purchasing - North,Permanent Nursing,Kingfisher Lodge Care Centre,2562.56, 10-May-2016
1184,Revenue,CAHD,CSC- Regional Adoption Agency Project,Consultants Fees,Individual,3600, 17-May-2016
1185,Revenue,CAHD,CSC - Allowances,ADPN Allowances,Individual,680.56, 27-May-2016
1186,Revenue,CAHD,CSC - Allowances,ADPN Allowances,Individual,750.96, 27-May-2016
1187,Revenue,CAHD,Bed Purchasing - North,Permanent Residential,Kisimul Group,11674.88, 10-May-2016
1188,Revenue,CAHD,Placements OLA Special Schools and RB,Other L.A.'s - General,Knowle DGE,2198.33, 12-May-2016
1189,Revenue,CAHD,Placements OLA Special Schools and RB,Other L.A.'s - General,Knowle DGE,948.33, 12-May-2016
1190,Revenue,CAHD,Placements OLA Special Schools and RB,Other L.A.'s - General,Knowle DGE,948.33, 12-May-2016
1191,Revenue,CAHD,Home Care - Elderly - South,Other Small Contracts,Kumari Care Limited,1818.15, 04-May-2016
1192,Revenue,CAHD,Home Care - Elderly - North,Other Small Contracts,Kumari Care Limited,834.65, 04-May-2016
1193,Revenue,CAHD,Home Care - Elderly - South,Other Small Contracts,Kumari Care Limited,1853.99, 10-May-2016
1194,Revenue,CAHD,Home Care - Elderly - North,Other Small Contracts,Kumari Care Limited,847.31, 10-May-2016
1195,Revenue,CAHD,Home Care - Elderly - South,Other Small Contracts,Kumari Care Limited,1842.08, 18-May-2016
1196,Revenue,CAHD,Home Care - Elderly - North,Other Small Contracts,Kumari Care Limited,847.31, 18-May-2016
1197,Revenue,CAHD,Home Care - Elderly - South,Other Small Contracts,Kumari Care Limited,1917.51, 18-May-2016
1198,Revenue,CAHD,Home Care - Elderly - North,Other Small Contracts,Kumari Care Limited,846.1, 18-May-2016
1199,Revenue,CAHD,Learning Difficulties Development Fund,Other Supplies & Services,L D Awareness,1360, 17-May-2016
1200,Revenue,CAHD,Housing Needs,Interpreting & Translation,Language Line Solutions,444.05, 09-May-2016
1201,Revenue,CAHD,Bed purchasing - Elderly S117 - South,Permanent Nursing,Lavender Lodge Limited,8518.84, 10-May-2016
1202,Revenue,CAHD,Bed Purchasing - North,Permanent Residential,Leonard Cheshire  National Account Centr,2994.12, 10-May-2016
1203,Revenue,CAHD,Bed Purchasing - South,Permanent Residential,Leonard Cheshire  National Account Centr,3426.44, 10-May-2016
1204,Revenue,CAHD,Bed Purchasing - North,Permanent Nursing,Leonard Cheshire  National Account Centr,3612.48, 10-May-2016
1205,Revenue,CAHD,Bed Purchasing - North,Permanent Nursing,Leonard Cheshire  National Account Centr,2901.8, 10-May-2016
1206,Revenue,CAHD,18-25 Year Olds,Permanent Residential,Leonard Cheshire  National Account Centr,3281.32, 10-May-2016
1207,Revenue,CAHD,Bed Purchasing - North,Permanent Residential,Leonard Cheshire  National Account Centr,6111.2, 10-May-2016
1208,Revenue,CAHD,Bed Purchasing - North,Permanent Residential,Leonard Cheshire  National Account Centr,6109.6, 10-May-2016
1209,Revenue,CAHD,Bed Purchasing - South,Permanent Residential,Leonard Cheshire  National Account Centr,4595.2, 10-May-2016
1210,Revenue,CAHD,Bed Purchasing - North,Permanent Nursing,Leonard Cheshire  National Account Centr,2957.28, 10-May-2016
1211,Revenue,CAHD,Bed Purchasing - North,Permanent Nursing,Leonard Cheshire  National Account Centr,3890.96, 10-May-2016
1212,Revenue,CAHD,Bed Purchasing - North,Permanent Nursing,Leonard Cheshire  National Account Centr,1945.48, 10-May-2016
1213,Revenue,CAHD,Bed Purchasing - North,Permanent Residential,Leonard Cheshire  National Account Centr,3010.08, 10-May-2016
1214,Revenue,CAHD,Bed Purchasing - North,Permanent Nursing,Leonard Cheshire  National Account Centr,3206.68, 10-May-2016
1215,Revenue,CAHD,Bed Purchasing - North,Permanent Nursing,Leonard Cheshire  National Account Centr,5740.64, 10-May-2016
1216,Revenue,CAHD,Bed Purchasing - South,Permanent Nursing,Leonard Cheshire  National Account Centr,2986.36, 10-May-2016
1217,Revenue,CAHD,Bed Purchasing - Southmead Hospital,Permanent Nursing,Leonard Cheshire  National Account Centr,3126.84, 10-May-2016
1218,Revenue,CAHD,South Glos Users in all other LA Homes,Permanent Nursing,Leonard Cheshire  National Account Centr,616.56, 10-May-2016
1219,Revenue,CAHD,Bed Purchasing - South,Respite Emergency - Residential,Leonard Cheshire  National Account Centr,891.76, 10-May-2016
1220,Revenue,CAHD,Bed Purchasing - North,Permanent Nursing,Leonard Cheshire  National Account Centr,3350.72, 10-May-2016
1221,Revenue,CAHD,Bed Purchasing - North,Permanent Nursing,Leonard Cheshire  National Account Centr,4229.08, 10-May-2016
1222,Revenue,CAHD,Adult Safeguarding Board,Professional Fees,Lewis Nolan Limited,1250, 27-May-2016
1223,Revenue,CAHD,Supported Living - North,Private & Voluntary Home Care,Lifeways Community Care (Gloucester) Limited,11758.56, 03-May-2016
1224,Revenue,CAHD,Early Years High Needs Support,Other Private Contractors,Little Acorns,507.6, 31-May-2016
1225,Revenue,CAHD,Section 117 Placements MH Younger,Permanent Residential,Little Croft,2229.92, 10-May-2016
1226,Revenue,CAHD,Bed Purchasing - Southmead Hospital,Permanent Residential,Little Croft,1095.84, 10-May-2016
1227,Revenue,CAHD,Bed Purchasing - Southmead Hospital,Permanent Residential,Little Croft,1277.2, 10-May-2016
1228,Revenue,CAHD,Bed Purchasing - North,Permanent Residential,Little Croft,1246.84, 10-May-2016
1229,Revenue,CAHD,Bed Purchasing - Southmead Hospital,Permanent Residential,Little Croft,1314.88, 10-May-2016
1230,Revenue,CAHD,Bed Purchasing - Southmead Hospital,Permanent Residential,Little Croft,1285.2, 10-May-2016
1231,Revenue,CAHD,Bed Purchasing - South,Permanent Residential,Little Croft,1817.12, 10-May-2016
1232,Revenue,CAHD,Bed Purchasing - North,Permanent Residential,Little Croft,1233.88, 10-May-2016
1233,Revenue,CAHD,Bed Purchasing - Southmead Hospital,Permanent Residential,Little Croft,2229.92, 10-May-2016
1234,Revenue,CAHD,Bed Purchasing - South,Permanent Residential,Little Croft,1277.2, 10-May-2016
1235,Revenue,CAHD,Bed Purchasing - South,Permanent Residential,Little Croft,592.98, 10-May-2016
1236,Revenue,CAHD,Bed Purchasing - Southmead Hospital,Permanent Residential,Little Croft,1772.56, 10-May-2016
1237,Revenue,CAHD,Bed Purchasing - Southmead Hospital,Permanent Residential,Little Croft,1800, 10-May-2016
1238,Revenue,CAHD,Bed Purchasing - Southmead Hospital,Permanent Residential,Little Croft,1487.68, 10-May-2016
1239,Revenue,CAHD,Bed Purchasing - South,Permanent Residential,Little Croft,3194.77, 10-May-2016
1240,Revenue,CAHD,Bed Purchasing - South,Permanent Residential,Little Croft,802.86, 10-May-2016
1241,Revenue,CAHD,Bed Purchasing - South,Permanent Residential,Little Croft,726.6, 10-May-2016
1242,Revenue,CAHD,Bed Purchasing - Southmead Hospital,Permanent Residential,Little Croft,1453.2, 10-May-2016
1243,Revenue,CAHD,Bed Purchasing - Southmead Hospital,Permanent Residential,Little Croft,1249.56, 10-May-2016
1244,Revenue,CAHD,Bed Purchasing - North,Permanent Residential,Little Croft,1086.2, 10-May-2016
1245,Revenue,CAHD,Bed Purchasing - North,Permanent Residential,Little Croft,758.77, 10-May-2016
1246,Revenue,CAHD,Bed Purchasing - South,Permanent Residential,Little Croft,1453.2, 10-May-2016
1247,Revenue,CAHD,Bed Purchasing - South,Permanent Residential,Little Croft,1442.84, 10-May-2016
1248,Revenue,CAHD,Bed Purchasing - Southmead Hospital,Permanent Residential,Little Croft,1277.2, 10-May-2016
1249,Revenue,CAHD,Bed Purchasing - Southmead Hospital,Permanent Residential,Little Croft,1277.2, 10-May-2016
1250,Revenue,CAHD,Bed Purchasing - South,Permanent Residential,Little Croft,1451.68, 10-May-2016
1251,Revenue,CAHD,Bed Purchasing - North,Permanent Residential,Littlecroft Residential Homes  Longcroft,6572.4, 10-May-2016
1252,Revenue,CAHD,Home Care - Elderly - South,Day Care / Social Activities,Lloyds TSB Commercial Finance Limited,5294.66, 16-May-2016
1253,Revenue,CAHD,Home Care - Elderly - South,Other Small Contracts,Lloyds TSB Commercial Finance Limited,5457.51, 16-May-2016
1254,Revenue,CAHD,Home Care - Elderly - South,Supported Living,Lloyds TSB Commercial Finance Limited,8166.57, 16-May-2016
1255,Revenue,CAHD,Home Care - Elderly - North,Day Care / Social Activities,Lloyds TSB Commercial Finance Limited,198.24, 16-May-2016
1256,Revenue,CAHD,Home Care - Elderly - North,Supported Living,Lloyds TSB Commercial Finance Limited,1548.75, 16-May-2016
1257,Revenue,CAHD,Younger MH non-res purchasing,Other Small Contracts,Lloyds TSB Commercial Finance Limited,10798.69, 16-May-2016
1258,Revenue,CAHD,Younger MH non-res purchasing,Supported Living,Lloyds TSB Commercial Finance Limited,106.6, 16-May-2016
1259,Revenue,CAHD,18-25 Year Olds,Supported Living,Lloyds TSB Commercial Finance Limited,127.92, 16-May-2016
1260,Revenue,CAHD,Home Care - Elderly - South,Day Care / Social Activities,Lloyds TSB Commercial Finance Limited,5245.1, 16-May-2016
1261,Revenue,CAHD,Home Care - Elderly - South,Other Small Contracts,Lloyds TSB Commercial Finance Limited,5519.46, 16-May-2016
1262,Revenue,CAHD,Home Care - Elderly - South,Supported Living,Lloyds TSB Commercial Finance Limited,8502.23, 16-May-2016
1263,Revenue,CAHD,Home Care - Elderly - North,Day Care / Social Activities,Lloyds TSB Commercial Finance Limited,198.24, 16-May-2016
1264,Revenue,CAHD,Home Care - Elderly - North,Supported Living,Lloyds TSB Commercial Finance Limited,1846.11, 16-May-2016
1265,Revenue,CAHD,Younger MH non-res purchasing,Other Small Contracts,Lloyds TSB Commercial Finance Limited,10793.4, 16-May-2016
1266,Revenue,CAHD,Younger MH non-res purchasing,Supported Living,Lloyds TSB Commercial Finance Limited,106.6, 16-May-2016
1267,Revenue,CAHD,CSC-Adoption Support Fund,Post Adoption,Lloyds TSB Commercial Finance Limited,550, 13-May-2016
1268,Revenue,CAHD,Home Care - Elderly - North,Day Care / Social Activities,Lower Kilcott,1481.84, 10-May-2016
1269,Revenue,CAHD,Home Care - Elderly - North,Day Care / Social Activities,Lower Kilcott,710.16, 10-May-2016
1270,Revenue,CAHD,Home Care - Elderly - North,Day Care / Social Activities,Lower Kilcott,566.68, 10-May-2016
1271,Revenue,CAHD,CAHC - Complaints & Advocacy Service,Complaints External Expenses,Lucent talking Limited,1030.48, 12-May-2016
1272,Revenue,CAHD,Social Lettings Agency,Fees - General,Individual,13.6, 05-May-2016
1273,Revenue,CAHD,Social Lettings Agency,Other Supplies & Services,Individual,768.4, 05-May-2016
1274,Revenue,CAHD,Bed Purchasing - Southmead Hospital,Permanent Nursing,Majestic 3 Limited,1017.72, 10-May-2016
1275,Revenue,CAHD,Early Years High Needs Support,Other Private Contractors,Mama Bears Day Nursery,1974, 10-May-2016
1276,Revenue,CAHD,Bed Purchasing - South,Permanent Residential,Manor Cottage,1890.6, 10-May-2016
1277,Revenue,CAHD,Bed Purchasing - Southmead Hospital,Permanent Residential,Manor Cottage,1277.2, 10-May-2016
1278,Revenue,CAHD,Bed Purchasing - South,Permanent Residential,Manor Cottage,1828.76, 10-May-2016
1279,Revenue,CAHD,Bed Purchasing - Southmead Hospital,Permanent Residential,Manor Cottage,1051.84, 10-May-2016
1280,Revenue,CAHD,Bed Purchasing - South,Permanent Residential,Manor Cottage,1506.64, 10-May-2016
1281,Revenue,CAHD,Bed Purchasing - South,Permanent Residential,Manor Cottage,1526.28, 10-May-2016
1282,Revenue,CAHD,Bed Purchasing - North,Permanent Residential,Manton Hall Residential Home,1563.36, 10-May-2016
1283,Revenue,CAHD,Younger MH non-res purchasing,Supported Living,Maples Community Care Limited,1077.84, 06-May-2016
1284,Revenue,CAHD,Younger MH non-res purchasing,Supported Living,Maples Community Care Limited,1147.7, 23-May-2016
1285,Revenue,CAHD,Home Care - Elderly - South,Supported Living,Maples Community Care Limited,862.28, 11-May-2016
1286,Revenue,CAHD,Home Care - Elderly - South,Supported Living,Maples Community Care Limited,968.06, 11-May-2016
1287,Revenue,CAHD,Younger MH non-res purchasing,Supported Living,Maples Community Care Limited,698.6, 11-May-2016
1288,Revenue,CAHD,Younger MH non-res purchasing,Supported Living,Maples Community Care Limited,798.4, 27-May-2016
1289,Revenue,CAHD,Home Care - Elderly - South,Supported Living,Maples Community Care Limited,558.88, 27-May-2016
1290,Revenue,CAHD,Home care - Elderly MH - North,Supported Living,Maples Community Care Limited,798.4, 27-May-2016
1291,Revenue,CAHD,Younger MH non-res purchasing,Supported Living,Maples Community Care Limited,1419.04, 10-May-2016
1292,Revenue,CAHD,Younger MH non-res purchasing,Supported Living,Maples Community Care Limited,11200, 10-May-2016
1293,Revenue,CAHD,Younger MH non-res purchasing,Supported Living,Maples Community Care Limited,1419.04, 10-May-2016
1294,Revenue,CAHD,Home Care - Elderly - South,Supported Living,Maples Community Care Limited,1419.04, 10-May-2016
1295,Revenue,CAHD,Home Care - Elderly - South,Supported Living,Maples Community Care Limited,1419.04, 10-May-2016
1296,Revenue,CAHD,Home Care - Elderly - South,Supported Living,Maples Community Care Limited,3840, 10-May-2016
1297,Revenue,CAHD,Younger MH non-res purchasing,Supported Living,Maples Community Care Limited,1419.04, 10-May-2016
1298,Revenue,CAHD,Younger MH non-res purchasing,Supported Living,Maples Community Care Limited,1419.04, 10-May-2016
1299,Revenue,CAHD,Younger MH non-res purchasing,Supported Living,Maples Community Care Limited,1419.04, 10-May-2016
1300,Revenue,CAHD,Social Lettings Agency,Fees - General,Individual,12.22, 20-May-2016
1301,Revenue,CAHD,Social Lettings Agency,Other Supplies & Services,Individual,690.32, 20-May-2016
1302,Revenue,CAHD,Bed Purchasing - South,Permanent Residential,Marsden Healthcare Ltd,1298, 10-May-2016
1303,Revenue,CAHD,Bed Purchasing - South,Permanent Residential,Marsden Healthcare Ltd,3312.72, 10-May-2016
1304,Revenue,CAHD,Bed Purchasing - South,Permanent Residential,Marsden Healthcare Ltd,1548.28, 10-May-2016
1305,Revenue,CAHD,CSC - Agency Fostering,Foster Parent Allowances,Match Foster Care Ltd,6000, 06-May-2016
1306,Revenue,CAHD,Bed Purchasing - South,Permanent Nursing,Meadow Care Home,1688.1, 10-May-2016
1307,Revenue,CAHD,Bed Purchasing - Elderly S117- North,Permanent Nursing,Meadow Care Home,3851.68, 10-May-2016
1308,Revenue,CAHD,Bed purchasing - Elderly S117 - South,Permanent Nursing,Meadow Care Home,2452.88, 10-May-2016
1309,Revenue,CAHD,Bed Purchasing - Elderly S117- North,Permanent Nursing,Meadow Care Home,4865.28, 10-May-2016
1310,Revenue,CAHD,Home Care - Elderly - South,Day Care / Social Activities,Mears Care,86.68, 13-May-2016
1311,Revenue,CAHD,Home Care - Elderly - South,Other Small Contracts,Mears Care,4500.34, 13-May-2016
1312,Revenue,CAHD,Home Care - Elderly - North,Other Small Contracts,Mears Care,4451.82, 13-May-2016
1313,Revenue,CAHD,Home Care - Elderly - South,Day Care / Social Activities,Mears Care,59.1, 13-May-2016
1314,Revenue,CAHD,Home Care - Elderly - South,Other Small Contracts,Mears Care,4658.98, 13-May-2016
1315,Revenue,CAHD,Home Care - Elderly - North,Other Small Contracts,Mears Care,4491.42, 13-May-2016
1316,Revenue,CAHD,Home Care - Elderly - South,Day Care / Social Activities,Mears Care,74.86, 13-May-2016
1317,Revenue,CAHD,Home Care - Elderly - South,Other Small Contracts,Mears Care,4659.1, 13-May-2016
1318,Revenue,CAHD,Home Care - Elderly - North,Other Small Contracts,Mears Care,4357.42, 13-May-2016
1319,Revenue,CAHD,Home Care - Elderly - South,Day Care / Social Activities,Mears Care,185.18, 13-May-2016
1320,Revenue,CAHD,Home Care - Elderly - South,Other Small Contracts,Mears Care,4511.3, 13-May-2016
1321,Revenue,CAHD,Home Care - Elderly - North,Other Small Contracts,Mears Care,4172.46, 13-May-2016
1322,Revenue,CAHD,Home Care - Elderly - South,Day Care / Social Activities,Mears Care,161.54, 13-May-2016
1323,Revenue,CAHD,Home Care - Elderly - South,Other Small Contracts,Mears Care,4672.84, 13-May-2016
1324,Revenue,CAHD,Home Care - Elderly - North,Other Small Contracts,Mears Care,4531, 13-May-2016
1325,Revenue,CAHD,Home Care - Elderly - South,Day Care / Social Activities,Mears Care,184, 13-May-2016
1326,Revenue,CAHD,Home Care - Elderly - South,Other Small Contracts,Mears Care,4800, 13-May-2016
1327,Revenue,CAHD,Home Care - Elderly - North,Other Small Contracts,Mears Care,4944, 13-May-2016
1328,Revenue,CAHD,Home Care - Elderly - South,Day Care / Social Activities,Mears Care,160, 13-May-2016
1329,Revenue,CAHD,Home Care - Elderly - South,Other Small Contracts,Mears Care,4748, 13-May-2016
1330,Revenue,CAHD,Home Care - Elderly - North,Other Small Contracts,Mears Care,4872, 13-May-2016
1331,Revenue,CAHD,Home Care - Elderly - South,Private & Voluntary Home Care,Mears Care,49770.25, 27-May-2016
1332,Revenue,CAHD,Turnberries,Equipment Maintenance,Medaco,456.5, 12-May-2016
1333,Revenue,CAHD,Home Care - Elderly - South,Other Small Contracts,Medacs Home Care,14.36, 04-May-2016
1334,Revenue,CAHD,Home Care - Elderly - North,Other Small Contracts,Medacs Home Care,689.28, 04-May-2016
1335,Revenue,CAHD,Home Care - Elderly - South,Other Small Contracts,Medacs Home Care,14.36, 10-May-2016
1336,Revenue,CAHD,Home Care - Elderly - North,Other Small Contracts,Medacs Home Care,671.33, 10-May-2016
1337,Revenue,CAHD,Home Care - Elderly - South,Other Small Contracts,Medacs Home Care,14.36, 19-May-2016
1338,Revenue,CAHD,Home Care - Elderly - North,Other Small Contracts,Medacs Home Care,685.69, 19-May-2016
1339,Revenue,CAHD,Home Care - Elderly - South,Other Small Contracts,Medacs Home Care,14.36, 24-May-2016
1340,Revenue,CAHD,Home Care - Elderly - North,Other Small Contracts,Medacs Home Care,674.92, 24-May-2016
1341,Revenue,CAHD,Home Care - Elderly - South,Other Small Contracts,Medacs Home Care,14.36, 24-May-2016
1342,Revenue,CAHD,Home Care - Elderly - North,Other Small Contracts,Medacs Home Care,682.1, 24-May-2016
1343,Revenue,CAHD,CSC - OT Equipment - Children,Daily Living Equipment,Medequip Assistive Technology Limited,21079.59, 11-May-2016
1344,Revenue,CAHD,ICES / NRS Contract,Daily Living Equipment,Medequip Assistive Technology Limited,33209.13, 11-May-2016
1345,Revenue,CAHD,ICES / NRS Contract,Daily Living Equipment,Medequip Assistive Technology Limited,101121.08, 11-May-2016
1346,Revenue,CAHD,CSC - OT Equipment - Children,Daily Living Equipment,Medequip Assistive Technology Limited,484.68, 11-May-2016
1347,Revenue,CAHD,ICES / NRS Contract,Daily Living Equipment,Medequip Assistive Technology Limited,323.13, 11-May-2016
1348,Revenue,CAHD,ICES / NRS Contract,Daily Living Equipment,Medequip Assistive Technology Limited,484.69, 11-May-2016
1349,Revenue,CAHD,CSC - OT Equipment - Children,Daily Living Equipment,Medequip Assistive Technology Limited,5915.09, 27-May-2016
1350,Revenue,CAHD,ICES / NRS Contract,Daily Living Equipment,Medequip Assistive Technology Limited,44320.26, 27-May-2016
1351,Revenue,CAHD,ICES / NRS Contract,Daily Living Equipment,Medequip Assistive Technology Limited,72304.53, 27-May-2016
1352,Revenue,CAHD,Bed Purchasing - South,Permanent Residential,Mencap,2313.2, 10-May-2016
1353,Revenue,CAHD,CSC - Section 17,Preventative Assistance,Meridian Business Support Ltd,785.95, 06-May-2016
1354,Revenue,CAHD,CSC - Section 17,Preventative Assistance,Meridian Business Support Ltd,781.6, 12-May-2016
1355,Revenue,CAHD,CSC - Section 17,Preventative Assistance,Meridian Business Support Ltd,781.6, 19-May-2016
1356,Revenue,CAHD,CSC - Section 17,Preventative Assistance,Meridian Business Support Ltd,781.6, 27-May-2016
1357,Revenue,CAHD,CSC - Care Leavers Support Costs,Personal Needs of Clients,Merlin Housing Society,1238.31, 27-May-2016
1358,Revenue,CAHD,CSC - LAC Housing Support Grants,Grants to Voluntary Bodies,Merlin Housing Society,1742.15, 13-May-2016
1359,Revenue,CAHD,CSC - LAC Housing Support Grants,Grants to Voluntary Bodies,Merlin Housing Society,1742.15, 13-May-2016
1360,Revenue,CAHD,CSC - LAC Housing Support Grants,Grants to Voluntary Bodies,Merlin Housing Society,1814.9, 13-May-2016
1361,Revenue,CAHD,CSC - LAC Housing Support Grants,Grants to Voluntary Bodies,Merlin Housing Society,1814.9, 13-May-2016
1362,Revenue,CAHD,Mental Capacity Act - Advocacy,Other Supplies & Services,MHA & MCA Law Ltd,1200, 16-May-2016
1363,Revenue,CAHD,Under 65s -MH  Home Care Purch,Other Small Contracts,Mike Durrant - Cherry Orchards,1816.3, 10-May-2016
1364,Revenue,CAHD,Home Care - Elderly - South,Supported Living,Milestones - Unit 10,2131.96, 10-May-2016
1365,Revenue,CAHD,Home Care - Elderly - South,Supported Living,Milestones - Unit 10,3681.16, 10-May-2016
1366,Revenue,CAHD,Home Care - Elderly - North,Supported Living,Milestones - Unit 10,4362.68, 10-May-2016
1367,Revenue,CAHD,Home Care - Elderly - South,Supported Living,Milestones - Unit 10,1371.6, 10-May-2016
1368,Revenue,CAHD,Home Care - Elderly - South,Supported Living,Milestones - Unit 10,1175.66, 10-May-2016
1369,Revenue,CAHD,Home Care - Elderly - South,Supported Living,Milestones - Unit 10,3681.16, 10-May-2016
1370,Revenue,CAHD,Home Care - Elderly - North,Supported Living,Milestones - Unit 10,4131.76, 10-May-2016
1371,Revenue,CAHD,Home Care - Elderly - North,Supported Living,Milestones - Unit 10,2065.88, 10-May-2016
1372,Revenue,CAHD,Home Care - Elderly - South,Supported Living,Milestones - Unit 10,3693.16, 10-May-2016
1373,Revenue,CAHD,Home Care - Elderly - South,Supported Living,Milestones - Unit 10,2349.2, 10-May-2016
1374,Revenue,CAHD,Home Care - Elderly - South,Supported Living,Milestones - Unit 10,3766.04, 10-May-2016
1375,Revenue,CAHD,Home Care - Elderly - South,Supported Living,Milestones - Unit 10,3770.12, 10-May-2016
1376,Revenue,CAHD,Home Care - Elderly - South,Supported Living,Milestones - Unit 10,1885.06, 10-May-2016
1377,Revenue,CAHD,Home Care - Elderly - North,Supported Living,Milestones - Unit 10,4131.76, 10-May-2016
1378,Revenue,CAHD,Home Care - Elderly - North,Supported Living,Milestones - Unit 10,2065.88, 10-May-2016
1379,Revenue,CAHD,Home Care - Elderly - South,Supported Living,Milestones - Unit 10,3934.12, 10-May-2016
1380,Revenue,CAHD,Home Care - Elderly - South,Supported Living,Milestones - Unit 10,1967.06, 10-May-2016
1381,Revenue,CAHD,Supported Living (S28a) North,Supported Living,Milestones - Unit 10,3652.08, 10-May-2016
1382,Revenue,CAHD,Supported Living (S28a) North,Supported Living,Milestones - Unit 10,1826.04, 10-May-2016
1383,Revenue,CAHD,Supported Living (S28a) North,Supported Living,Milestones - Unit 10,3652.08, 10-May-2016
1384,Revenue,CAHD,Supported Living (S28a) North,Supported Living,Milestones - Unit 10,1826.04, 10-May-2016
1385,Revenue,CAHD,Home Care - Elderly - South,Supported Living,Milestones - Unit 10,1268.04, 10-May-2016
1386,Revenue,CAHD,Supported Living (S28a) South,Supported Living,Milestones - Unit 10,5580.68, 10-May-2016
1387,Revenue,CAHD,Home Care - Elderly - South,Supported Living,Milestones - Unit 10,2262.88, 10-May-2016
1388,Revenue,CAHD,Supported Living (S28a) South,Supported Living,Milestones - Unit 10,2262.88, 10-May-2016
1389,Revenue,CAHD,Home Care - Elderly - North,Supported Living,Milestones - Unit 10,4362.68, 10-May-2016
1390,Revenue,CAHD,Home Care - Elderly - South,Supported Living,Milestones - Unit 10,2131.96, 10-May-2016
1391,Revenue,CAHD,Supported Living (S28a) North,Supported Living,Milestones - Unit 10,3664.36, 10-May-2016
1392,Revenue,CAHD,Supported Living (S28a) North,Supported Living,Milestones - Unit 10,1832.18, 10-May-2016
1393,Revenue,CAHD,Supported Living (S28a) South,Supported Living,Milestones - Unit 10,2262.88, 10-May-2016
1394,Revenue,CAHD,Supported Living (S28a) South,Supported Living,Milestones - Unit 10,2262.88, 10-May-2016
1395,Revenue,CAHD,Home Care - Elderly - North,Supported Living,Milestones - Unit 10,3443.68, 10-May-2016
1396,Revenue,CAHD,Bed Purchasing - North,Permanent Residential,Milestones - Unit 10,3532.76, 10-May-2016
1397,Revenue,CAHD,Bed Purchasing - South,Permanent Residential,Milestones - Unit 10,4992.88, 10-May-2016
1398,Revenue,CAHD,Bed Purchasing - South,Permanent Residential,Milestones - Unit 10,5186.2, 10-May-2016
1399,Revenue,CAHD,Jointly Funded H&SC Packages,Permanent Residential,Milestones - Unit 10,1349.72, 10-May-2016
1400,Revenue,CAHD,Jointly Funded H&SC Packages,Permanent Residential,Milestones - Unit 10,835.76, 10-May-2016
1401,Revenue,CAHD,Bed Purchasing - South,Permanent Residential,Milestones - Unit 10,2432.2, 10-May-2016
1402,Revenue,CAHD,Bed Purchasing - South,Permanent Nursing,Milestones - Unit 10,2781.24, 10-May-2016
1403,Revenue,CAHD,Bed Purchasing - South,Permanent Nursing,Milestones - Unit 10,1301.04, 10-May-2016
1404,Revenue,CAHD,Bed Purchasing - South,Permanent Residential,Milestones - Unit 10,3679.64, 10-May-2016
1405,Revenue,CAHD,Bed purchasing - Elderly S117 - South,Permanent Nursing,Milestones - Unit 10,7816.24, 10-May-2016
1406,Revenue,CAHD,Bed Purchasing - North,Permanent Nursing,Milestones - Unit 10,1460, 10-May-2016
1407,Revenue,CAHD,Bed Purchasing - North,Permanent Residential,Milestones - Unit 10,8970.04, 10-May-2016
1408,Revenue,CAHD,Bed purchasing - Elderly PWLD - North,Permanent Residential,Milestones - Unit 10,6731.74, 10-May-2016
1409,Revenue,CAHD,Bed Purchasing - South,Permanent Residential,Milestones - Unit 10,4211.56, 10-May-2016
1410,Revenue,CAHD,Bed Purchasing - North,Permanent Nursing,Milestones - Unit 10,4338.88, 10-May-2016
1411,Revenue,CAHD,Bed purchasing -S28A  Under 65 - North,Permanent Residential,Milestones - Unit 10,5450.24, 10-May-2016
1412,Revenue,CAHD,Bed purchasing - S28A Under 65 - South,Permanent Residential,Milestones - Unit 10,5550.84, 10-May-2016
1413,Revenue,CAHD,Bed Purchasing - South,Permanent Residential,Milestones - Unit 10,1324.64, 10-May-2016
1414,Revenue,CAHD,Bed Purchasing - South,Permanent Residential,Milestones - Unit 10,5115.28, 10-May-2016
1415,Revenue,CAHD,Bed Purchasing - South,Permanent Residential,Milestones - Unit 10,5676.44, 10-May-2016
1416,Revenue,CAHD,Bed purchasing - S28A Under 65 - South,Permanent Nursing,Milestones - Unit 10,7458.52, 10-May-2016
1417,Revenue,CAHD,MH Purchasing - Younger,Permanent Residential,Milestones - Unit 10,869.2, 10-May-2016
1418,Revenue,CAHD,Bed Purchasing - South,Permanent Residential,Milestones - Unit 10,5185.2, 10-May-2016
1419,Revenue,CAHD,Bed Purchasing - South,Permanent Residential,Milestones - Unit 10,5235.36, 10-May-2016
1420,Revenue,CAHD,Bed Purchasing - North,Permanent Residential,Milestones - Unit 10,4359.12, 10-May-2016
1421,Revenue,CAHD,Bed Purchasing - North,Permanent Residential,Milestones - Unit 10,2179.56, 10-May-2016
1422,Revenue,CAHD,Bed purchasing -S28A  Under 65 - North,Permanent Nursing,Milestones - Unit 10,5394.36, 10-May-2016
1423,Revenue,CAHD,Bed Purchasing - North,Permanent Residential,Milestones - Unit 10,4754.08, 10-May-2016
1424,Revenue,CAHD,Bed purchasing -S28A  Under 65 - North,Permanent Residential,Milestones - Unit 10,7237.44, 10-May-2016
1425,Revenue,CAHD,Bed purchasing -S28A  Under 65 - North,Permanent Nursing,Milestones - Unit 10,5949.2, 10-May-2016
1426,Revenue,CAHD,Bed Purchasing - South,Permanent Residential,Milestones - Unit 10,3295.32, 10-May-2016
1427,Revenue,CAHD,Bed purchasing -S28A  Under 65 - North,Permanent Residential,Milestones - Unit 10,6926.36, 10-May-2016
1428,Revenue,CAHD,Bed purchasing - S28A Under 65 - South,Permanent Residential,Milestones - Unit 10,4642.4, 10-May-2016
1429,Revenue,CAHD,Bed Purchasing - S28A - Over 65- North,Permanent Residential,Milestones - Unit 10,6751.8, 10-May-2016
1430,Revenue,CAHD,Bed purchasing -S28A  Under 65 - North,Permanent Residential,Milestones - Unit 10,7197.64, 10-May-2016
1431,Revenue,CAHD,Bed purchasing -S28A  Under 65 - North,Permanent Residential,Milestones - Unit 10,7237.64, 10-May-2016
1432,Revenue,CAHD,Bed Purchasing - LD S28A- Over 65- South,Permanent Residential,Milestones - Unit 10,4183.96, 10-May-2016
1433,Revenue,CAHD,Bed purchasing - S28A Under 65 - South,Permanent Residential,Milestones - Unit 10,4514.88, 10-May-2016
1434,Revenue,CAHD,Bed purchasing - S28A Under 65 - South,Permanent Residential,Milestones - Unit 10,3759.36, 10-May-2016
1435,Revenue,CAHD,Bed Purchasing - LD S28A- Over 65- South,Permanent Residential,Milestones - Unit 10,5201.24, 10-May-2016
1436,Revenue,CAHD,Bed Purchasing - LD S28A- Over 65- South,Permanent Residential,Milestones - Unit 10,4853.32, 10-May-2016
1437,Revenue,CAHD,Bed Purchasing - LD S28A- Over 65- South,Permanent Residential,Milestones - Unit 10,5185.08, 10-May-2016
1438,Revenue,CAHD,Bed Purchasing - LD S28A- Over 65- South,Permanent Residential,Milestones - Unit 10,4445.28, 10-May-2016
1439,Revenue,CAHD,Bed Purchasing - LD S28A- Over 65- South,Permanent Residential,Milestones - Unit 10,5282.28, 10-May-2016
1440,Revenue,CAHD,Bed Purchasing - S28A - Over 65- North,Permanent Residential,Milestones - Unit 10,2930.8, 10-May-2016
1441,Revenue,CAHD,Section 117 Placements MH Younger,Permanent Residential,Milestones - Unit 10,1392, 10-May-2016
1442,Revenue,CAHD,Bed Purchasing - South,Permanent Residential,Milestones - Unit 10,869.2, 10-May-2016
1443,Revenue,CAHD,Bed purchasing - S28A Under 65 - South,Permanent Residential,Milestones - Unit 10,5045.96, 10-May-2016
1444,Revenue,CAHD,Bed Purchasing - North,Permanent Residential,Milestones - Unit 10,4398.36, 10-May-2016
1445,Revenue,CAHD,Bed Purchasing - North,Permanent Nursing,Milestones - Unit 10,7038.56, 10-May-2016
1446,Revenue,CAHD,Bed Purchasing - South,Permanent Residential,Milestones - Unit 10,4381.84, 10-May-2016
1447,Revenue,CAHD,Bed purchasing -S28A  Under 65 - North,Permanent Residential,Milestones - Unit 10,5820.32, 10-May-2016
1448,Revenue,CAHD,Bed Purchasing - S28A - Over 65- North,Permanent Residential,Milestones - Unit 10,3672.6, 10-May-2016
1449,Revenue,CAHD,MH Purchasing - Younger,Permanent Residential,Milestones - Unit 10,1070.2, 10-May-2016
1450,Revenue,CAHD,Bed Purchasing - S28A - Over 65- North,Permanent Residential,Milestones - Unit 10,3278.64, 10-May-2016
1451,Revenue,CAHD,Bed Purchasing - LD S28A- Over 65- South,Permanent Residential,Milestones - Unit 10,3962.56, 10-May-2016
1452,Revenue,CAHD,Bed purchasing - S28A Under 65 - South,Permanent Residential,Milestones - Unit 10,5315.96, 10-May-2016
1453,Revenue,CAHD,Bed purchasing - S28A Under 65 - South,Permanent Nursing,Milestones - Unit 10,5300.36, 10-May-2016
1454,Revenue,CAHD,Bed Purchasing - LD S28A- Over 65- South,Permanent Nursing,Milestones - Unit 10,5338.96, 10-May-2016
1455,Revenue,CAHD,Bed Purchasing - LD S28A- Over 65- South,Permanent Residential,Milestones - Unit 10,4855.28, 10-May-2016
1456,Revenue,CAHD,Bed Purchasing - LD S28A- Over 65- South,Permanent Residential,Milestones - Unit 10,4697.92, 10-May-2016
1457,Revenue,CAHD,Bed purchasing - S28A Under 65 - South,Permanent Residential,Milestones - Unit 10,6202.84, 10-May-2016
1458,Revenue,CAHD,Bed Purchasing - LD S28A- Over 65- South,Permanent Residential,Milestones - Unit 10,4766.88, 10-May-2016
1459,Revenue,CAHD,Bed Purchasing - S28A - Over 65- North,Permanent Nursing,Milestones - Unit 10,4852.12, 10-May-2016
1460,Revenue,CAHD,Bed Purchasing - South,Permanent Nursing,Milestones - Unit 10,3364.96, 10-May-2016
1461,Revenue,CAHD,Bed Purchasing - S28A - Over 65- North,Permanent Residential,Milestones - Unit 10,4686.32, 10-May-2016
1462,Revenue,CAHD,Bed Purchasing - S28A - Over 65- North,Permanent Residential,Milestones - Unit 10,4861.28, 10-May-2016
1463,Revenue,CAHD,Bed purchasing - S28A Under 65 - South,Permanent Residential,Milestones - Unit 10,4878.44, 10-May-2016
1464,Revenue,CAHD,Bed Purchasing - S28A - Over 65- North,Permanent Residential,Milestones - Unit 10,4598.88, 10-May-2016
1465,Revenue,CAHD,Bed purchasing -S28A  Under 65 - North,Permanent Residential,Milestones - Unit 10,7237.64, 10-May-2016
1466,Revenue,CAHD,Bed purchasing -S28A  Under 65 - North,Permanent Residential,Milestones - Unit 10,3390.56, 10-May-2016
1467,Revenue,CAHD,Bed Purchasing - North,Permanent Residential,Milestones - Unit 10,3194.72, 10-May-2016
1468,Revenue,CAHD,Bed Purchasing - S28A - Over 65- North,Permanent Residential,Milestones - Unit 10,3500.64, 10-May-2016
1469,Revenue,CAHD,Bed Purchasing - North,Respite Emergency - Residential,Milestones - Unit 10,7797.11, 10-May-2016
1470,Revenue,CAHD,Bed Purchasing - North,Permanent Nursing,Milestones - Unit 10,1337.2, 10-May-2016
1471,Revenue,CAHD,MH Purchasing - Younger,Permanent Nursing,Milestones - Unit 10,961.2, 10-May-2016
1472,Revenue,CAHD,MH Purchasing - Younger,Permanent Nursing,Milestones - Unit 10,961.2, 10-May-2016
1473,Revenue,CAHD,Bed Purchasing - South,Permanent Residential,Milestones - Unit 10,3319.32, 10-May-2016
1474,Revenue,CAHD,Bed purchasing - S28A Under 65 - South,Permanent Residential,Milestones - Unit 10,6069.84, 10-May-2016
1475,Revenue,CAHD,Bed purchasing - S28A Under 65 - South,Permanent Residential,Milestones - Unit 10,6142.88, 10-May-2016
1476,Revenue,CAHD,Bed Purchasing - Southmead Hospital,Permanent Nursing,Milestones - Unit 10,5920.4, 10-May-2016
1477,Revenue,CAHD,Bed Purchasing - LD S28A- Over 65- South,Permanent Residential,Milestones - Unit 10,4445.28, 10-May-2016
1478,Revenue,CAHD,Bed Purchasing - South,Permanent Residential,Milestones - Unit 10,6070.28, 10-May-2016
1479,Revenue,CAHD,Bed Purchasing - LD S28A- Over 65- South,Permanent Nursing,Milestones - Unit 10,5338.96, 10-May-2016
1480,Revenue,CAHD,Bed Purchasing - LD S28A- Over 65- South,Permanent Residential,Milestones - Unit 10,3613.04, 10-May-2016
1481,Revenue,CAHD,Bed Purchasing - South,Permanent Residential,Milestones - Unit 10,4435.16, 10-May-2016
1482,Revenue,CAHD,Bed Purchasing - South,Permanent Residential,Milestones - Unit 10,1255.28, 10-May-2016
1483,Revenue,CAHD,Bed purchasing -S28A  Under 65 - North,Permanent Nursing,Milestones - Unit 10,7807, 10-May-2016
1484,Revenue,CAHD,Bed Purchasing - North,Permanent Nursing,Milestones - Unit 10,1480.16, 10-May-2016
1485,Revenue,CAHD,18-25 Year Olds,Permanent Residential,Milestones - Unit 10,10059.56, 10-May-2016
1486,Revenue,CAHD,Section 117 Placements MH Younger,Permanent Residential,Milestones - Unit 10,1392, 10-May-2016
1487,Revenue,CAHD,Bed Purchasing - South,Permanent Nursing,Milestones - Unit 10,3430.56, 10-May-2016
1488,Revenue,CAHD,Bed Purchasing - South,Permanent Nursing,Milestones - Unit 10,2835.96, 10-May-2016
1489,Revenue,CAHD,Bed Purchasing - S28A - Over 65- North,Permanent Nursing,Milestones - Unit 10,3720.92, 10-May-2016
1490,Revenue,CAHD,Bed Purchasing - S28A - Over 65- North,Permanent Nursing,Milestones - Unit 10,1123.11, 10-May-2016
1491,Revenue,CAHD,Home Care - Elderly - South,Other Small Contracts,Milestones Homecare & Dementia Service,758.49, 11-May-2016
1492,Revenue,CAHD,Home Care - Elderly - North,Other Small Contracts,Milestones Homecare & Dementia Service,1937.49, 11-May-2016
1493,Revenue,CAHD,Home care - Elderly MH - North,Other Small Contracts,Milestones Homecare & Dementia Service,43.23, 11-May-2016
1494,Revenue,CAHD,Home Care - Elderly - South,Other Small Contracts,Milestones Homecare & Dementia Service,727.05, 11-May-2016
1495,Revenue,CAHD,Home Care - Elderly - North,Other Small Contracts,Milestones Homecare & Dementia Service,1839.24, 11-May-2016
1496,Revenue,CAHD,Home care - Elderly MH - North,Other Small Contracts,Milestones Homecare & Dementia Service,31.44, 11-May-2016
1497,Revenue,CAHD,Home Care - Elderly - South,Other Small Contracts,Milestones Homecare & Dementia Service,754.56, 11-May-2016
1498,Revenue,CAHD,Home Care - Elderly - North,Other Small Contracts,Milestones Homecare & Dementia Service,1976.79, 11-May-2016
1499,Revenue,CAHD,Home care - Elderly MH - North,Other Small Contracts,Milestones Homecare & Dementia Service,39.3, 11-May-2016
1500,Revenue,CAHD,Home Care - Elderly - South,Other Small Contracts,Milestones Homecare & Dementia Service,782.07, 13-May-2016
1501,Revenue,CAHD,Home Care - Elderly - North,Other Small Contracts,Milestones Homecare & Dementia Service,1949.28, 13-May-2016
1502,Revenue,CAHD,Home care - Elderly MH - North,Other Small Contracts,Milestones Homecare & Dementia Service,47.16, 13-May-2016
1503,Revenue,CAHD,Home Care - Elderly - South,Other Small Contracts,Milestones Homecare & Dementia Service,821.94, 20-May-2016
1504,Revenue,CAHD,Home Care - Elderly - North,Other Small Contracts,Milestones Homecare & Dementia Service,2014.95, 20-May-2016
1505,Revenue,CAHD,Home care - Elderly MH - North,Other Small Contracts,Milestones Homecare & Dementia Service,47.88, 20-May-2016
1506,Revenue,CAHD,Home Care - Elderly - South,Other Small Contracts,Milestones Homecare & Dementia Service,845.88, 25-May-2016
1507,Revenue,CAHD,Home Care - Elderly - North,Other Small Contracts,Milestones Homecare & Dementia Service,2038.89, 25-May-2016
1508,Revenue,CAHD,Home care - Elderly MH - North,Other Small Contracts,Milestones Homecare & Dementia Service,47.88, 25-May-2016
1509,Revenue,CAHD,Bed Purchasing - North,Permanent Residential,Millennium House,1449.48, 10-May-2016
1510,Revenue,CAHD,CSC - Special Guardianship Orders,Special Payments,Individual,506, 20-May-2016
1511,Revenue,CAHD,CSC - Legal Fees,Legal Fees,Individual,1760, 09-May-2016
1512,Revenue,CAHD,CSC - Special Guardianship Orders,Special Payments,Individual,574.6, 25-May-2016
1513,Revenue,CAHD,CSC - YOT Seconded Staff,Other Supplies & Services,MOJ Shared Services,2019.25, 19-May-2016
1514,Revenue,CAHD,Tenancy Start Up Scheme,Other Supplies & Services,Moon & Co,1695, 03-May-2016
1515,Revenue,CAHD,Bed Purchasing - Southmead Hospital,Permanent Residential,Mostyn Lodge Residential Home,1154.08, 10-May-2016
1516,Revenue,CAHD,Bed Purchasing - North,Permanent Residential,Mostyn Lodge Residential Home,1254.4, 10-May-2016
1517,Revenue,CAHD,CSC - OT Equipment - Children,Daily Living Equipment,Mounts & More Limited,610, 27-May-2016
1518,Revenue,CAHD,Home Care - Elderly - South,Supported Living,Moving On,661.2, 18-May-2016
1519,Revenue,CAHD,Home Care - Elderly - South,Supported Living,Moving On (UK) Limited,2448.12, 10-May-2016
1520,Revenue,CAHD,CSC - Section 17 - NORTH,Client Transport,Moving With Care Limited,693.92, 19-May-2016
1521,Revenue,CAHD,CSC - Care Leavers Support Costs,Other Transport Costs,Moving With Care Limited,4838.52, 04-May-2016
1522,Revenue,CAHD,CSC - Section 17 - NORTH,Client Transport,Moving With Care Limited,710.67, 05-May-2016
1523,Revenue,CAHD,Social Lettings Agency,Fees - General,Individual,10.53, 20-May-2016
1524,Revenue,CAHD,Social Lettings Agency,Other Supplies & Services,Individual,595.11, 20-May-2016
1525,Revenue,CAHD,Social Lettings Agency,Fees - General,Individual,7.24, 20-May-2016
1526,Revenue,CAHD,Social Lettings Agency,Other Supplies & Services,Individual,614.85, 20-May-2016
1527,Revenue,CAHD,Social Lettings Agency,Fees - General,Individual,12.22, 27-May-2016
1528,Revenue,CAHD,Social Lettings Agency,Other Supplies & Services,Individual,690.32, 27-May-2016
1529,Revenue,CAHD,Homeless - Private Sector Leasing,Other Supplies & Services,Mr D G & Mrs L K Jenkins,595, 23-May-2016
1530,Revenue,CAHD,Social Lettings Agency,Fees - General,Individual,16.85, 06-May-2016
1531,Revenue,CAHD,Social Lettings Agency,Other Supplies & Services,Individual,951.89, 06-May-2016
1532,Revenue,CAHD,Tenancy Start Up Scheme,Other Supplies & Services,Individual,700, 16-May-2016
1533,Revenue,CAHD,Social Lettings Agency,Fees - General,Individual,10.53, 06-May-2016
1534,Revenue,CAHD,Social Lettings Agency,Other Supplies & Services,Individual,595.11, 06-May-2016
1535,Revenue,CAHD,Social Lettings Agency,Fees - General,Individual,12.22, 10-May-2016
1536,Revenue,CAHD,Social Lettings Agency,Other Supplies & Services,Individual,690.32, 10-May-2016
1537,Revenue,CAHD,Social Lettings Agency,Fees - General,Individual,10.53, 20-May-2016
1538,Revenue,CAHD,Social Lettings Agency,Other Supplies & Services,Individual,595.11, 20-May-2016
1539,Revenue,CAHD,Social Lettings Agency,Fees - General,Individual,12.22, 20-May-2016
1540,Revenue,CAHD,Social Lettings Agency,Other Supplies & Services,Individual,690.32, 20-May-2016
1541,Revenue,CAHD,Management & Support costs,Legal Fees,Mr Peter Lockley,2000, 16-May-2016
1542,Revenue,CAHD,Social Lettings Agency,Fees - General,Individual,10.53, 16-May-2016
1543,Revenue,CAHD,Social Lettings Agency,Other Supplies & Services,Individual,537.51, 16-May-2016
1544,Revenue,CAHD,CSC - Legal Fees,Legal Fees,Individual,1200, 16-May-2016
1545,Revenue,CAHD,Social Lettings Agency,Fees - General,Individual,16.85, 20-May-2016
1546,Revenue,CAHD,Social Lettings Agency,Other Supplies & Services,Individual,951.9, 20-May-2016
1547,Revenue,CAHD,Social Lettings Agency,Fees - General,Individual,12.22, 20-May-2016
1548,Revenue,CAHD,Social Lettings Agency,Other Supplies & Services,Individual,680.32, 20-May-2016
1549,Revenue,CAHD,Social Lettings Agency,Fees - General,Individual,10.53, 27-May-2016
1550,Revenue,CAHD,Social Lettings Agency,Other Supplies & Services,Individual,595.11, 27-May-2016
1551,Revenue,CAHD,Home Care - Elderly - South,Day Care / Social Activities,Mrs B Kimber -  CM2000,2054.37, 19-May-2016
1552,Revenue,CAHD,Home Care - Elderly - South,Other Small Contracts,Mrs B Kimber -  CM2000,9886.9, 19-May-2016
1553,Revenue,CAHD,Home Care - Elderly - South,Supported Living,Mrs B Kimber -  CM2000,29.54, 19-May-2016
1554,Revenue,CAHD,Home Care - Elderly - North,Day Care / Social Activities,Mrs B Kimber -  CM2000,333.38, 19-May-2016
1555,Revenue,CAHD,Home Care - Elderly - North,Other Small Contracts,Mrs B Kimber -  CM2000,5220.14, 19-May-2016
1556,Revenue,CAHD,Home Care - Elderly - South,Day Care / Social Activities,Mrs B Kimber -  CM2000,2006.64, 19-May-2016
1557,Revenue,CAHD,Home Care - Elderly - South,Other Small Contracts,Mrs B Kimber -  CM2000,10152.76, 19-May-2016
1558,Revenue,CAHD,Home Care - Elderly - South,Supported Living,Mrs B Kimber -  CM2000,33.76, 19-May-2016
1559,Revenue,CAHD,Home Care - Elderly - North,Day Care / Social Activities,Mrs B Kimber -  CM2000,84.4, 19-May-2016
1560,Revenue,CAHD,Home Care - Elderly - North,Other Small Contracts,Mrs B Kimber -  CM2000,5376.28, 19-May-2016
1561,Revenue,CAHD,Home Care - Elderly - South,Day Care / Social Activities,Mrs B Kimber -  CM2000,1876.14, 19-May-2016
1562,Revenue,CAHD,Home Care - Elderly - South,Other Small Contracts,Mrs B Kimber -  CM2000,10344.61, 19-May-2016
1563,Revenue,CAHD,Home Care - Elderly - South,Supported Living,Mrs B Kimber -  CM2000,29.54, 19-May-2016
1564,Revenue,CAHD,Home Care - Elderly - North,Day Care / Social Activities,Mrs B Kimber -  CM2000,84.4, 19-May-2016
1565,Revenue,CAHD,Home Care - Elderly - North,Other Small Contracts,Mrs B Kimber -  CM2000,5279.22, 19-May-2016
1566,Revenue,CAHD,Home Care - Elderly - South,Day Care / Social Activities,Mrs B Kimber -  CM2000,2097.21, 19-May-2016
1567,Revenue,CAHD,Home Care - Elderly - South,Other Small Contracts,Mrs B Kimber -  CM2000,10685.16, 19-May-2016
1568,Revenue,CAHD,Home Care - Elderly - South,Supported Living,Mrs B Kimber -  CM2000,29.54, 19-May-2016
1569,Revenue,CAHD,Home Care - Elderly - North,Day Care / Social Activities,Mrs B Kimber -  CM2000,160.36, 19-May-2016
1570,Revenue,CAHD,Home Care - Elderly - North,Other Small Contracts,Mrs B Kimber -  CM2000,4903.64, 19-May-2016
1571,Revenue,CAHD,CSC - Professional Fees Foster Carers,Children - Family Support,Individual,1210, 06-May-2016
1572,Revenue,CAHD,CSC - Child Arrangement Orders (prev RO),Residence Order Allowances,Individual,764.8, 06-May-2016
1573,Revenue,CAHD,Social Lettings Agency,Fees - General,Individual,10.53, 13-May-2016
1574,Revenue,CAHD,Social Lettings Agency,Other Supplies & Services,Individual,595.11, 13-May-2016
1575,Revenue,CAHD,Social Lettings Agency,Fees - General,Individual,10, 24-May-2016
1576,Revenue,CAHD,Social Lettings Agency,Other Supplies & Services,Individual,565, 24-May-2016
1577,Revenue,CAHD,Social Lettings Agency,Fees - General,Individual,10.53, 13-May-2016
1578,Revenue,CAHD,Social Lettings Agency,Other Supplies & Services,Individual,595.11, 13-May-2016
1579,Revenue,CAHD,Social Lettings Agency,Fees - General,Individual,10.53, 12-May-2016
1580,Revenue,CAHD,Social Lettings Agency,Other Supplies & Services,Individual,595.11, 12-May-2016
1581,Revenue,CAHD,CSC - Age Related Allowances,Foster Parent Allowances,Individual,510.29, 27-May-2016
1582,Revenue,CAHD,CSC - Age Related Allowances,Adults - Family Support,Individual,510.29, 27-May-2016
1583,Revenue,CAHD,CSC - Professional Fees Foster Carers,Children - Family Support,Individual,869.14, 13-May-2016
1584,Revenue,CAHD,Social Lettings Agency,Fees - General,Individual,10.53, 06-May-2016
1585,Revenue,CAHD,Social Lettings Agency,Other Supplies & Services,Individual,595.11, 06-May-2016
1586,Revenue,CAHD,Social Lettings Agency,Fees - General,Individual,16.85, 11-May-2016
1587,Revenue,CAHD,Social Lettings Agency,Other Supplies & Services,Individual,1000, 11-May-2016
1588,Revenue,CAHD,CSC - Legal Fees,Legal Fees,Individual,500, 16-May-2016
1589,Revenue,CAHD,Alexandra Way,Cleaning & Domestic Services,Muzzell Healthcare,495.9, 05-May-2016
1590,Revenue,CAHD,Bed Purchasing - North,Permanent Residential,Nas Services  Church House,7656.08, 10-May-2016
1591,Revenue,CAHD,Jointly Funded H&SC Packages,Permanent Residential,Nas Services  Church House,3109.52, 10-May-2016
1592,Revenue,CAHD,Bed Purchasing - North,Permanent Residential,Nas Services  Church House,6070.64, 10-May-2016
1593,Revenue,CAHD,Section 117 Placements MH Younger,Permanent Residential,Nas Services  Church House,5165.29, 10-May-2016
1594,Revenue,CAHD,Home Care - Elderly - South,Day Care / Social Activities,NAS Services Limited,486.82, 06-May-2016
1595,Revenue,CAHD,Home Care - Elderly - South,Supported Living,NAS Services Limited,28.92, 06-May-2016
1596,Revenue,CAHD,Home Care - Elderly - North,Day Care / Social Activities,NAS Services Limited,771.2, 06-May-2016
1597,Revenue,CAHD,Home Care - Elderly - North,Supported Living,NAS Services Limited,347.04, 06-May-2016
1598,Revenue,CAHD,Younger MH non-res purchasing,Day Care / Social Activities,NAS Services Limited,231.36, 06-May-2016
1599,Revenue,CAHD,Home Care - Elderly - South,Day Care / Social Activities,NAS Services Limited,462.72, 19-May-2016
1600,Revenue,CAHD,Home Care - Elderly - South,Supported Living,NAS Services Limited,19.28, 19-May-2016
1601,Revenue,CAHD,Home Care - Elderly - North,Day Care / Social Activities,NAS Services Limited,988.1, 19-May-2016
1602,Revenue,CAHD,Home Care - Elderly - North,Supported Living,NAS Services Limited,356.68, 19-May-2016
1603,Revenue,CAHD,Younger MH non-res purchasing,Day Care / Social Activities,NAS Services Limited,231.36, 19-May-2016
1604,Revenue,CAHD,Independent Special Placements - Pre 16,Other Private Contractors,NAS Services Limited,15154.33, 20-May-2016
1605,Revenue,CAHD,Independent Special Placements - Pre 16,Other Private Contractors,NAS Services Limited,15114.67, 20-May-2016
1606,Revenue,CAHD,Independent Special Placements - Pre 16,Other Private Contractors,NAS Services Limited,15154.33, 20-May-2016
1607,Revenue,CAHD,Independent Special Placements - Pre 16,Other Private Contractors,NAS Services Limited,15114.67, 20-May-2016
1608,Revenue,CAHD,Independent Special Placements - Pre 16,Other Private Contractors,NAS Services Limited,15187.67, 23-May-2016
1609,Revenue,CAHD,Independent Special Placements - Pre 16,Other Private Contractors,NAS Services Limited,15154.33, 20-May-2016
1610,Revenue,CAHD,Independent Special Placements - Pre 16,Other Private Contractors,NAS Services Limited,15154.33, 20-May-2016
1611,Revenue,CAHD,Bed Purchasing - Southmead Hospital,Permanent Residential,Nashley House Retirement Home,1277.2, 10-May-2016
1612,Revenue,CAHD,Newton House,Security Systems,National Security Group,87.7, 16-May-2016
1613,Revenue,CAHD,Drug/Alcohol Residential Rehab,Security Systems,National Security Group,21.67, 16-May-2016
1614,Revenue,CAHD,Post 16 High Needs Placements,Other Private Contractors,National Star College FDY Limited,41205.99, 27-May-2016
1615,Revenue,CAHD,Post 16 High Needs Placements,Other Private Contractors,National Star College FDY Limited,19755.7, 10-May-2016
1616,Revenue,CAHD,CSC - Residential Placements,Permanent Residential,Neath Port Talbot County Borough Council,21750, 25-May-2016
1617,Revenue,CAHD,Home Care - Elderly - South,Day Care / Social Activities,Nestor T/A Allied Healthcare,69.3, 05-May-2016
1618,Revenue,CAHD,Home Care - Elderly - South,Other Small Contracts,Nestor T/A Allied Healthcare,1894.2, 05-May-2016
1619,Revenue,CAHD,Home Care - Elderly - North,Other Small Contracts,Nestor T/A Allied Healthcare,6783.7, 05-May-2016
1620,Revenue,CAHD,Day Care - North,Day Care / Social Activities,Nestor T/A Allied Healthcare,38.5, 05-May-2016
1621,Revenue,CAHD,Home Care - Elderly - South,Day Care / Social Activities,Nestor T/A Allied Healthcare,69.3, 10-May-2016
1622,Revenue,CAHD,Home Care - Elderly - South,Other Small Contracts,Nestor T/A Allied Healthcare,1844.15, 10-May-2016
1623,Revenue,CAHD,Home Care - Elderly - North,Other Small Contracts,Nestor T/A Allied Healthcare,6729.8, 10-May-2016
1624,Revenue,CAHD,Day Care - North,Day Care / Social Activities,Nestor T/A Allied Healthcare,38.5, 10-May-2016
1625,Revenue,CAHD,Home Care - Elderly - South,Day Care / Social Activities,Nestor T/A Allied Healthcare,70.2, 17-May-2016
1626,Revenue,CAHD,Home Care - Elderly - South,Other Small Contracts,Nestor T/A Allied Healthcare,1973.4, 17-May-2016
1627,Revenue,CAHD,Home Care - Elderly - North,Other Small Contracts,Nestor T/A Allied Healthcare,6708, 17-May-2016
1628,Revenue,CAHD,Day Care - North,Day Care / Social Activities,Nestor T/A Allied Healthcare,39, 17-May-2016
1629,Revenue,CAHD,Home Care - Elderly - South,Day Care / Social Activities,Nestor T/A Allied Healthcare,70.2, 24-May-2016
1630,Revenue,CAHD,Home Care - Elderly - South,Other Small Contracts,Nestor T/A Allied Healthcare,2028, 24-May-2016
1631,Revenue,CAHD,Home Care - Elderly - North,Other Small Contracts,Nestor T/A Allied Healthcare,6735.3, 24-May-2016
1632,Revenue,CAHD,Day Care - North,Day Care / Social Activities,Nestor T/A Allied Healthcare,39, 24-May-2016
1633,Revenue,CAHD,Home Care - Elderly - South,Other Small Contracts,Network Health & Social Care T/A Network Ventures,2060.28, 11-May-2016
1634,Revenue,CAHD,Home Care - Elderly - North,Other Small Contracts,Network Health & Social Care T/A Network Ventures,2390.08, 11-May-2016
1635,Revenue,CAHD,Home Care - Elderly - South,Other Small Contracts,Network Health & Social Care T/A Network Ventures,2289.2, 11-May-2016
1636,Revenue,CAHD,Home Care - Elderly - North,Other Small Contracts,Network Health & Social Care T/A Network Ventures,1846.88, 11-May-2016
1637,Revenue,CAHD,Home Care - Elderly - South,Other Small Contracts,Network Health & Social Care T/A Network Ventures,2490.96, 11-May-2016
1638,Revenue,CAHD,Home Care - Elderly - North,Other Small Contracts,Network Health & Social Care T/A Network Ventures,1897.32, 11-May-2016
1639,Revenue,CAHD,Home Care - Elderly - South,Other Small Contracts,Network Health & Social Care T/A Network Ventures,2444.4, 11-May-2016
1640,Revenue,CAHD,Home Care - Elderly - North,Other Small Contracts,Network Health & Social Care T/A Network Ventures,1916.72, 11-May-2016
1641,Revenue,CAHD,Younger MH non-res purchasing,Other Small Contracts,Network Health & Social Care T/A Network Ventures,31.04, 11-May-2016
1642,Revenue,CAHD,Home Care - Elderly - South,Other Small Contracts,Network Health & Social Care T/A Network Ventures,2537.36, 11-May-2016
1643,Revenue,CAHD,Home Care - Elderly - North,Other Small Contracts,Network Health & Social Care T/A Network Ventures,2107.9, 11-May-2016
1644,Revenue,CAHD,Younger MH non-res purchasing,Other Small Contracts,Network Health & Social Care T/A Network Ventures,31.52, 11-May-2016
1645,Revenue,CAHD,Home Care - Elderly - South,Other Small Contracts,Network Health & Social Care T/A Network Ventures,2367.94, 11-May-2016
1646,Revenue,CAHD,Home Care - Elderly - North,Other Small Contracts,Network Health & Social Care T/A Network Ventures,2151.24, 11-May-2016
1647,Revenue,CAHD,Younger MH non-res purchasing,Other Small Contracts,Network Health & Social Care T/A Network Ventures,15.76, 11-May-2016
1648,Revenue,CAHD,Home Care - Elderly - South,Other Small Contracts,Network Health & Social Care T/A Network Ventures,2403.4, 24-May-2016
1649,Revenue,CAHD,Home Care - Elderly - North,Other Small Contracts,Network Health & Social Care T/A Network Ventures,2218.22, 24-May-2016
1650,Revenue,CAHD,Younger MH non-res purchasing,Other Small Contracts,Network Health & Social Care T/A Network Ventures,15.76, 24-May-2016
1651,Revenue,CAHD,Home Care - Elderly - South,Other Small Contracts,Network Health & Social Care T/A Network Ventures,2285.2, 24-May-2016
1652,Revenue,CAHD,Home Care - Elderly - North,Other Small Contracts,Network Health & Social Care T/A Network Ventures,1867.56, 24-May-2016
1653,Revenue,CAHD,Younger MH non-res purchasing,Other Small Contracts,Network Health & Social Care T/A Network Ventures,31.52, 24-May-2016
1654,Revenue,CAHD,Social Lettings Agency,Fees - General,Individual,10, 04-May-2016
1655,Revenue,CAHD,Social Lettings Agency,Other Supplies & Services,Individual,565, 04-May-2016
1656,Revenue,CAHD,Statemented Support Payments to OLAs,Other L.A.'s - General,Newbridge Primary School,733.3, 31-May-2016
1657,Revenue,CAHD,Home Care - Elderly - North,Supported Living,Newplan House,2602.92, 10-May-2016
1658,Revenue,CAHD,Home Care - Elderly - North,Supported Living,Newplan House,2602.92, 10-May-2016
1659,Revenue,CAHD,Children & Young People�s Health,Other Small Contracts,NHS Bristol CCG,300583, 19-May-2016
1660,Revenue,CAHD,CSC - Childrens Mental Health Grant,Other Supplies & Services,NHS South Gloucestershire CCG,15000, 06-May-2016
1661,Revenue,CAHD,CSC - LAC Nurse,Care Management/Assessment Staff Pay,NHS South Gloucestershire CCG,26271.87, 06-May-2016
1662,Revenue,CAHD,0-25  Service,Agency Staff (Admin/Support Staff) Pay,NonStop Recruitment Ltd,1875, 04-May-2016
1663,Revenue,CAHD,0-25  Service,Agency Staff (Admin/Support Staff) Pay,NonStop Recruitment Ltd,1875, 11-May-2016
1664,Revenue,CAHD,0-25  Service,Agency Staff (Admin/Support Staff) Pay,NonStop Recruitment Ltd,1875, 18-May-2016
1665,Revenue,CAHD,0-25  Service,Agency Staff (Admin/Support Staff) Pay,NonStop Recruitment Ltd,1875, 27-May-2016
1666,Revenue,CAHD,CSC - LAT Placements,Personal Needs of Clients,North Bristol NHS Trust,909, 26-May-2016
1667,Revenue,CAHD,Section 117 Placements MH Younger,Day Care / Social Activities,North Somerset Council,104369.09, 20-May-2016
1668,Revenue,CAHD,Bed Purchasing - South,Permanent Residential,Norwood   Broadway House,5099.92, 10-May-2016
1669,Revenue,CAHD,Bed Purchasing - Southmead Hospital,Respite Planned - Residential,Notaro Homes Ltd  Queensmead Court,3121.88, 10-May-2016
1670,Revenue,CAHD,Bed Purchasing - South,Permanent Residential,Notaro Homes Ltd  Queensmead Court,1931.08, 10-May-2016
1671,Revenue,CAHD,MH Purchasing - Younger,Permanent Residential,Notaro Homes Ltd  Queensmead Court,3073.64, 10-May-2016
1672,Revenue,CAHD,Home Care - Elderly - South,Day Care / Social Activities,Nursing Solutions Limited,48.36, 10-May-2016
1673,Revenue,CAHD,Home Care - Elderly - South,Other Small Contracts,Nursing Solutions Limited,1434.68, 10-May-2016
1674,Revenue,CAHD,Home Care - Elderly - South,Day Care / Social Activities,Nursing Solutions Limited,48.36, 18-May-2016
1675,Revenue,CAHD,Home Care - Elderly - South,Other Small Contracts,Nursing Solutions Limited,1442.74, 18-May-2016
1676,Revenue,CAHD,Home Care - Elderly - South,Other Small Contracts,Nursing Solutions Limited,1616.03, 18-May-2016
1677,Revenue,CAHD,Home Care - Elderly - South,Other Small Contracts,Nursing Solutions Limited,1394.38, 24-May-2016
1678,Revenue,CAHD,Section 117 Placements MH Younger,Permanent Nursing,Oaklands,4679.96, 10-May-2016
1679,Revenue,CAHD,Jointly Funded H&SC Packages,Permanent Nursing,Oaklands,1558.32, 10-May-2016
1680,Revenue,CAHD,Alexandra Way,Refuse Collection Charges,OCS Group UK Ltd,481.26, 18-May-2016
1681,Revenue,CAHD,Statemented Support Payments to OLAs,Other L.A.'s - General,Oldfield School,641.64, 31-May-2016
1682,Revenue,CAHD,Early Years Development,Educational Supplies & Equipment,Olidom Handyman Services,1980, 03-May-2016
1683,Revenue,CAHD,Academy Resource Base Funding,Other Public Bodies,Olympus Academy Trust,509.59, 16-May-2016
1684,Revenue,CAHD,Academy Resource Base Funding,Other Public Bodies,Olympus Academy Trust,509.59, 16-May-2016
1685,Revenue,CAHD,Academy Resource Base Funding,Other Public Bodies,Olympus Academy Trust,509.59, 16-May-2016
1686,Revenue,CAHD,Academy Resource Base Funding,Other Public Bodies,Olympus Academy Trust,509.59, 16-May-2016
1687,Revenue,CAHD,Academy Resource Base Funding,Other Public Bodies,Olympus Academy Trust,509.59, 16-May-2016
1688,Revenue,CAHD,Academy Resource Base Funding,Other Public Bodies,Olympus Academy Trust,1613.7, 16-May-2016
1689,Revenue,CAHD,Academy Resource Base Funding,Other Public Bodies,Olympus Academy Trust,1613.7, 16-May-2016
1690,Revenue,CAHD,Academy Resource Base Funding,Other Public Bodies,Olympus Academy Trust,509.59, 16-May-2016
1691,Revenue,CAHD,Academy Resource Base Funding,Other Public Bodies,Olympus Academy Trust,1613.7, 16-May-2016
1692,Revenue,CAHD,Academy Resource Base Funding,Other Public Bodies,Olympus Academy Trust,509.59, 16-May-2016
1693,Revenue,CAHD,Academy Resource Base Funding,Other Public Bodies,Olympus Academy Trust,509.59, 16-May-2016
1694,Revenue,CAHD,Academy Resource Base Funding,Other Public Bodies,Olympus Academy Trust,1613.7, 16-May-2016
1695,Revenue,CAHD,Academy Resource Base Funding,Other Public Bodies,Olympus Academy Trust,1613.7, 16-May-2016
1696,Revenue,CAHD,Academy Resource Base Funding,Other Public Bodies,Olympus Academy Trust,509.59, 16-May-2016
1697,Revenue,CAHD,Academy Resource Base Funding,Other Public Bodies,Olympus Academy Trust,1613.7, 16-May-2016
1698,Revenue,CAHD,Academy Resource Base Funding,Other Public Bodies,Olympus Academy Trust,1613.7, 16-May-2016
1699,Revenue,CAHD,Academy Resource Base Funding,Other Public Bodies,Olympus Academy Trust,1613.7, 16-May-2016
1700,Revenue,CAHD,Academy Resource Base Funding,Other Public Bodies,Olympus Academy Trust,509.59, 16-May-2016
1701,Revenue,CAHD,Academy Resource Base Funding,Other Public Bodies,Olympus Academy Trust,509.59, 16-May-2016
1702,Revenue,CAHD,Academy Resource Base Funding,Other Public Bodies,Olympus Academy Trust,1613.7, 16-May-2016
1703,Revenue,CAHD,Academy Resource Base Funding,Other Public Bodies,Olympus Academy Trust,1613.7, 16-May-2016
1704,Revenue,CAHD,Academy Resource Base Funding,Other Public Bodies,Olympus Academy Trust,509.59, 16-May-2016
1705,Revenue,CAHD,Academy Resource Base Funding,Other Public Bodies,Olympus Academy Trust,509.59, 16-May-2016
1706,Revenue,CAHD,Academy Resource Base Funding,Other Public Bodies,Olympus Academy Trust,509.59, 16-May-2016
1707,Revenue,CAHD,Statemented Support Academies,Schools Funding,Olympus Academy Trust,541.64, 31-May-2016
1708,Revenue,CAHD,Statemented Support Academies,Schools Funding,Olympus Academy Trust,933.3, 31-May-2016
1709,Revenue,CAHD,Statemented Support Academies,Schools Funding,Olympus Academy Trust,1341.64, 31-May-2016
1710,Revenue,CAHD,Statemented Support Academies,Schools Funding,Olympus Academy Trust,699.97, 31-May-2016
1711,Revenue,CAHD,Statemented Support Academies,Schools Funding,Olympus Academy Trust,549.97, 31-May-2016
1712,Revenue,CAHD,Statemented Support Academies,Schools Funding,Olympus Academy Trust,683.3, 31-May-2016
1713,Revenue,CAHD,Statemented Support Academies,Schools Funding,Olympus Academy Trust,816.64, 31-May-2016
1714,Revenue,CAHD,Statemented Support Academies,Schools Funding,Olympus Academy Trust,1174.97, 31-May-2016
1715,Revenue,CAHD,Statemented Support Academies,Schools Funding,Olympus Academy Trust,666.64, 31-May-2016
1716,Revenue,CAHD,Statemented Support Academies,Schools Funding,Olympus Academy Trust,724.97, 31-May-2016
1717,Revenue,CAHD,Statemented Support Academies,Schools Funding,Olympus Academy Trust,824.97, 31-May-2016
1718,Revenue,CAHD,Statemented Support Academies,Schools Funding,Olympus Academy Trust,1283.3, 31-May-2016
1719,Revenue,CAHD,Statemented Support Academies,Schools Funding,Olympus Academy Trust,933.3, 31-May-2016
1720,Revenue,CAHD,Statemented Support Academies,Schools Funding,Olympus Academy Trust,766.64, 31-May-2016
1721,Revenue,CAHD,Statemented Support Academies,Schools Funding,Olympus Academy Trust,583.3, 31-May-2016
1722,Revenue,CAHD,Statemented Support Academies,Schools Funding,Olympus Academy Trust,3299.91, 31-May-2016
1723,Revenue,CAHD,Statemented Support Academies,Schools Funding,Olympus Academy Trust,583.3, 31-May-2016
1724,Revenue,CAHD,Statemented Support Academies,Schools Funding,Olympus Academy Trust,1774.97, 31-May-2016
1725,Revenue,CAHD,Academy Resource Base Funding,Other Public Bodies,Olympus Academy Trust,509.59, 16-May-2016
1726,Revenue,CAHD,Academy Resource Base Funding,Other Public Bodies,Olympus Academy Trust,509.59, 16-May-2016
1727,Revenue,CAHD,Academy Resource Base Funding,Other Public Bodies,Olympus Academy Trust,1231.51, 16-May-2016
1728,Revenue,CAHD,Academy Resource Base Funding,Other Public Bodies,Olympus Academy Trust,1231.51, 16-May-2016
1729,Revenue,CAHD,Statemented Support Academies,Schools Funding,Olympus Academy Trust,599.97, 31-May-2016
1730,Revenue,CAHD,Statemented Support Academies,Schools Funding,Olympus Academy Trust,583.3, 31-May-2016
1731,Revenue,CAHD,Statemented Support Academies,Schools Funding,Olympus Academy Trust,1149.97, 31-May-2016
1732,Revenue,CAHD,Statemented Support Academies,Schools Funding,Olympus Academy Trust,983.3, 31-May-2016
1733,Revenue,CAHD,Statemented Support Academies,Schools Funding,Olympus Academy Trust,791.64, 31-May-2016
1734,Revenue,CAHD,Statemented Support Academies,Schools Funding,Olympus Academy Trust,666.64, 31-May-2016
1735,Revenue,CAHD,CSC - Residential Placements,Permanent Residential,Options College Stoke,9598.93, 31-May-2016
1736,Revenue,CAHD,Independent Special Placements - Pre 16,Other Private Contractors,Options College Stoke,9598.93, 31-May-2016
1737,Revenue,CAHD,Bed purchasing -S28A  Under 65 - North,Permanent Residential,Orchard End Limited,7753.96, 10-May-2016
1738,Revenue,CAHD,Statemented Support Payments to OLAs,Other L.A.'s - General,Orchard School Bristol,766.64, 31-May-2016
1739,Revenue,CAHD,Bed Purchasing - North,Permanent Residential,Osbourne Court,2035.2, 10-May-2016
1740,Revenue,CAHD,Bed Purchasing - North,Permanent Residential,Osbourne Court,2286.32, 10-May-2016
1741,Revenue,CAHD,Bed Purchasing - Southmead Hospital,Permanent Residential,Osbourne Court,987.68, 10-May-2016
1742,Revenue,CAHD,Bed Purchasing - North,Permanent Residential,Osbourne Court,2234.28, 10-May-2016
1743,Revenue,CAHD,Bed Purchasing - North,Permanent Residential,Osbourne Court,1850.84, 10-May-2016
1744,Revenue,CAHD,Bed Purchasing - North,Permanent Residential,Osbourne Court,2089.8, 10-May-2016
1745,Revenue,CAHD,Bed Purchasing - North,Permanent Residential,Osbourne Court,11126.2, 10-May-2016
1746,Revenue,CAHD,Bed Purchasing - North,Permanent Residential,Osbourne Court,1400.9, 10-May-2016
1747,Revenue,CAHD,Bed Purchasing - North,Permanent Residential,Osbourne Court,2719.6, 10-May-2016
1748,Revenue,CAHD,Breakthrough and Inclusion Work,Other Supplies & Services,P3D,2930.56, 13-May-2016
1749,Revenue,CAHD,Bed Purchasing - Southmead Hospital,Permanent Nursing,Palm Court Nursing Home,1630.36, 10-May-2016
1750,Revenue,CAHD,Bed Purchasing - South,Permanent Residential,Park Farm House,1820.48, 10-May-2016
1751,Revenue,CAHD,Bed Purchasing - North,Permanent Residential,Park Farm House,841.36, 10-May-2016
1752,Revenue,CAHD,Bed Purchasing - South,Permanent Residential,Park Farm House,1638.96, 10-May-2016
1753,Revenue,CAHD,Bed Purchasing - Southmead Hospital,Permanent Residential,Park Farm House,2635.36, 10-May-2016
1754,Revenue,CAHD,Bed Purchasing - South,Permanent Residential,Park Hall,5699.6, 10-May-2016
1755,Revenue,CAHD,Bed Purchasing - North,Permanent Residential,Park Hall,5357.88, 10-May-2016
1756,Revenue,CAHD,Bed Purchasing - South,Permanent Residential,Park Hall,5064.16, 10-May-2016
1757,Revenue,CAHD,Bed Purchasing - South,Permanent Residential,Park Hall,2603.6, 10-May-2016
1758,Revenue,CAHD,Bed purchasing - S28A Under 65 - South,Permanent Residential,Park Hall,4803.32, 10-May-2016
1759,Revenue,CAHD,Bed Purchasing - South,Permanent Residential,Park Hall,5039.56, 10-May-2016
1760,Revenue,CAHD,Bed Purchasing - North,Permanent Residential,Park Hall,4434.6, 10-May-2016
1761,Revenue,CAHD,Bed Purchasing - South,Permanent Residential,Park Hall,7512.36, 10-May-2016
1762,Revenue,CAHD,Jointly Funded H&SC Packages,Permanent Residential,Park Hall,3520.74, 10-May-2016
1763,Revenue,CAHD,Bed purchasing -S28A  Under 65 - North,Permanent Residential,Park Hall,6082.16, 10-May-2016
1764,Revenue,CAHD,Bed purchasing - S28A Under 65 - South,Permanent Residential,Park Hall,5665.68, 10-May-2016
1765,Revenue,CAHD,18-25 Year Olds,Permanent Residential,Park Hall,7380.88, 10-May-2016
1766,Revenue,CAHD,Statemented Support Academies,Schools Funding,Patchway Community College,1016.64, 31-May-2016
1767,Revenue,CAHD,Statemented Support Academies,Schools Funding,Patchway Community College,1216.64, 31-May-2016
1768,Revenue,CAHD,Statemented Support Academies,Schools Funding,Patchway Community College,1216.64, 31-May-2016
1769,Revenue,CAHD,Statemented Support Academies,Schools Funding,Patchway Community College,508.3, 31-May-2016
1770,Revenue,CAHD,Statemented Support Academies,Schools Funding,Patchway Community College,558.3, 31-May-2016
1771,Revenue,CAHD,Social Lettings Agency,Fees - General,Individual,10, 27-May-2016
1772,Revenue,CAHD,Social Lettings Agency,Other Supplies & Services,Individual,565, 27-May-2016
1773,Revenue,CAHD,Home Care - Elderly - North,Day Care / Social Activities,Pauls Place,504.48, 10-May-2016
1774,Revenue,CAHD,Home Care - Elderly - South,Day Care / Social Activities,Pauls Place,504.48, 10-May-2016
1775,Revenue,CAHD,CSC - OT Equipment - Children,Daily Living Equipment,Pearce Bros Mobility Centre,453, 04-May-2016
1776,Revenue,CAHD,CSC - OT Equipment - Children,Daily Living Equipment,Pearce Bros Mobility Centre,513, 20-May-2016
1777,Revenue,CAHD,CSC - OT Equipment - Children,Daily Living Equipment,Pearce Bros Mobility Centre,934, 20-May-2016
1778,Revenue,CAHD,Bed Purchasing - South,Permanent Residential,Penleigh House Care Home,4677.88, 10-May-2016
1779,Revenue,CAHD,Bed Purchasing - South,Permanent Residential,Penleigh House Care Home,6593.96, 10-May-2016
1780,Revenue,CAHD,Bed Purchasing - South,Permanent Residential,Penleigh House Care Home,4410.08, 10-May-2016
1781,Revenue,CAHD,Bed purchasing - S28A Under 65 - South,Permanent Residential,Penleigh House Care Home,5638.08, 10-May-2016
1782,Revenue,CAHD,Bed Purchasing - South,Permanent Residential,Penleigh House Care Home,5093.48, 10-May-2016
1783,Revenue,CAHD,"Strategy, Advice and Public Protection",Computer Equipment - Purchase,Phoenix Software Limited,148.33, 05-May-2016
1784,Revenue,CAHD,Information Systems - Software,Computer Equipment - Purchase,Phoenix Software Limited,148.33, 05-May-2016
1785,Revenue,CAHD,Community Promoting Independence Team,Care Management/Assessment Staff Pay,Piers Meadows Recruitment Limited,920.76, 06-May-2016
1786,Revenue,CAHD,Community Promoting Independence Team,Care Management/Assessment Staff Pay,Piers Meadows Recruitment Limited,1221.23, 13-May-2016
1787,Revenue,CAHD,Community Promoting Independence Team,Care Management/Assessment Staff Pay,Piers Meadows Recruitment Limited,560.72, 20-May-2016
1788,Revenue,CAHD,Community Promoting Independence Team,Care Management/Assessment Staff Pay,Piers Meadows Recruitment Limited,887.91, 27-May-2016
1789,Revenue,CAHD,Early Years High Needs Support,Other Private Contractors,Play Station Nursery,1200, 20-May-2016
1790,Revenue,CAHD,Planning and Partnerships Procurement,Other Supplies & Services,Police and Crime Commissioner for Avon and,4000, 10-May-2016
1791,Revenue,CAHD,CSC - Care Leavers Independent Living,Adults - Family Support,Premier Care Management Limited,2256, 10-May-2016
1792,Revenue,CAHD,CSC - Care Leavers Independent Living,Adults - Family Support,Premier Care Management Limited,15233, 23-May-2016
1793,Revenue,CAHD,Home Care - Elderly - North,Day Care / Social Activities,Premier Homecare Limited,84.24, 04-May-2016
1794,Revenue,CAHD,Home Care - Elderly - North,Other Small Contracts,Premier Homecare Limited,10127.52, 04-May-2016
1795,Revenue,CAHD,Home care - Elderly MH - North,Other Small Contracts,Premier Homecare Limited,131.04, 04-May-2016
1796,Revenue,CAHD,Elderly MH Day Care North,Day Care / Social Activities,Premier Homecare Limited,74.88, 04-May-2016
1797,Revenue,CAHD,Home Care - Elderly - North,Day Care / Social Activities,Premier Homecare Limited,84.24, 10-May-2016
1798,Revenue,CAHD,Home Care - Elderly - North,Other Small Contracts,Premier Homecare Limited,9842.04, 10-May-2016
1799,Revenue,CAHD,Home care - Elderly MH - North,Other Small Contracts,Premier Homecare Limited,131.04, 10-May-2016
1800,Revenue,CAHD,Elderly MH Day Care North,Day Care / Social Activities,Premier Homecare Limited,74.88, 10-May-2016
1801,Revenue,CAHD,Home Care - Elderly - South,Other Small Contracts,Prestige Nursing,518.31, 04-May-2016
1802,Revenue,CAHD,Home Care - Elderly - North,Other Small Contracts,Prestige Nursing,1382.16, 04-May-2016
1803,Revenue,CAHD,Day Care - South,Day Care / Social Activities,Prestige Nursing,124.04, 04-May-2016
1804,Revenue,CAHD,Home Care - Elderly - South,Other Small Contracts,Prestige Nursing,584.76, 05-May-2016
1805,Revenue,CAHD,Home Care - Elderly - North,Other Small Contracts,Prestige Nursing,1411.39, 05-May-2016
1806,Revenue,CAHD,Day Care - South,Day Care / Social Activities,Prestige Nursing,124.04, 05-May-2016
1807,Revenue,CAHD,Home Care - Elderly - South,Other Small Contracts,Prestige Nursing,509.45, 05-May-2016
1808,Revenue,CAHD,Home Care - Elderly - North,Other Small Contracts,Prestige Nursing,1488.48, 05-May-2016
1809,Revenue,CAHD,Day Care - South,Day Care / Social Activities,Prestige Nursing,124.04, 05-May-2016
1810,Revenue,CAHD,Home Care - Elderly - South,Other Small Contracts,Prestige Nursing,429.71, 13-May-2016
1811,Revenue,CAHD,Home Care - Elderly - North,Other Small Contracts,Prestige Nursing,1559.36, 13-May-2016
1812,Revenue,CAHD,Day Care - South,Day Care / Social Activities,Prestige Nursing,124.04, 13-May-2016
1813,Revenue,CAHD,Home Care - Elderly - South,Other Small Contracts,Prestige Nursing,474.01, 13-May-2016
1814,Revenue,CAHD,Home Care - Elderly - North,Other Small Contracts,Prestige Nursing,1484.05, 13-May-2016
1815,Revenue,CAHD,Day Care - South,Day Care / Social Activities,Prestige Nursing,124.04, 13-May-2016
1816,Revenue,CAHD,Home Care - Elderly - South,Other Small Contracts,Prestige Nursing,425.28, 13-May-2016
1817,Revenue,CAHD,Home Care - Elderly - North,Other Small Contracts,Prestige Nursing,1656.82, 13-May-2016
1818,Revenue,CAHD,Day Care - South,Day Care / Social Activities,Prestige Nursing,124.04, 13-May-2016
1819,Revenue,CAHD,Home Care - Elderly - South,Other Small Contracts,Prestige Nursing,372.67, 13-May-2016
1820,Revenue,CAHD,Home Care - Elderly - North,Other Small Contracts,Prestige Nursing,1581.36, 13-May-2016
1821,Revenue,CAHD,Day Care - South,Day Care / Social Activities,Prestige Nursing,125.72, 13-May-2016
1822,Revenue,CAHD,Home Care - Elderly - South,Other Small Contracts,Prestige Nursing,246.95, 13-May-2016
1823,Revenue,CAHD,Home Care - Elderly - North,Other Small Contracts,Prestige Nursing,1504.15, 13-May-2016
1824,Revenue,CAHD,Day Care - South,Day Care / Social Activities,Prestige Nursing,125.72, 13-May-2016
1825,Revenue,CAHD,Alexandra Way,Agency Staff (Operational)/PCT Pay,Prestige Nursing,733.34, 16-May-2016
1826,Revenue,CAHD,Alexandra Way,Agency Staff (Operational)/PCT Pay,Prestige Nursing,1972.51, 16-May-2016
1827,Revenue,CAHD,Alexandra Way,Agency Staff (Operational)/PCT Pay,Prestige Nursing,1137.22, 16-May-2016
1828,Revenue,CAHD,Alexandra Way,Agency Staff (Operational)/PCT Pay,Prestige Nursing,1756.43, 27-May-2016
1829,Revenue,CAHD,Alexandra Way,Agency Staff (Operational)/PCT Pay,Prestige Nursing,1061.27, 18-May-2016
1830,Revenue,CAHD,Tenancy Start Up Scheme,Other Supplies & Services,Property Wise Limited,1669.23, 26-May-2016
1831,Revenue,CAHD,Bed Purchasing - Southmead Hospital,Permanent Nursing,Quarry House,5328.91, 10-May-2016
